Workbook

Sheet Menu
Z1: 2
Z4: 2
A6: Rolling Plains Extension District - 3
D8: Budgets
D11: Forage Crops
D13: =+AlfalfaDrylandEstablish!A3 -> Dryland Alfalfa Establishment
D14: =AlfalfaHayDryland!A3 -> Dryland Alfalfa Hay
D15: =AlfalfaIrrigatedEstablish!A3 -> Irrigated Alfalfa Establishment
D16: =AlfalfaHayIrrigated!A3 -> Irrigated Alfalfa Hay
D17: =SmallGrain!A3 -> Small Grain Grazing
D19: Field Crops
B20: Links
D21: =CottonDrylandSolid!A3 -> Dryland Cotton (Solid 40" Rows)
D22: ='Red Till Irrig Cotton'!A3 -> Cotton - Red Till Irrig
D23: ='Conv M Irrig Cotton'!A3 -> Conventional Irrig Cotton
D24: ='NT Irrig M Cotton'!A3 -> Cotton - No-Till Irrigated
D25: ='NT-CC2 Irr M Cotton'!A3 -> Cotton NT - Cover Crop Wheat Irrig
D26: ='No Till Dryland Cotton'!A3 -> Cotton - No Till Dryland
D27: =Peanuts!A3 -> Irrigated Peanuts
D28: =SorghumDryland!A3 -> Dryland Sorghum
D29: =WheatDryland!A3 -> Dryland Wheat
D31: Livestock
D33: =+CowCalf!A3 -> Rolling Plains Cow-Calf Production
D34: =+StockersMar1!A3 -> Stocker Calf Budget - Pull off Wheat March 1
D35: =StockerGrazeOut!A3 -> Stocker Calf Budget - Grazeout
D37: Other Budgets
D39: ='Livestock Budget'!A3 -> Livestock Budget
D40: ='Crop Budget'!A3 -> Crop Enterprise
A66: Francisco Abelló, Assistant Professor and Extension Specialist, Texas A&M AgriLife Extension, 940-647-3908

Sheet Links
B2: Texas Crop and Livestock Budgets
B3: A Program of the Texas A&M AgriLife Extension Service
B4: Agricultural Economics Department, The Texas A&M University System
B6: Developed by Texas A&M AgriLife Extension Service Economists and Other Specialists
B8: Contact Us | G8: Clickable Logos
B10: Resources
B12: Decision Aids (includes Machinery Cost Estimator)
B14: Custom Rate Survey
B16: Basis Data
B18: Master Marketer
B20: Extension Ag Economics
B22: Department of Agricultural Economics
B24: Menu Page
B26: Links last checked 4/17/2020

Sheet AlfalfaDrylandEstablish
A1: Projections for Planning Purposes Only -- Not to be Used without Updating
A2: 2021 Estimated Costs and Returns per Acre
A3: Dryland Alfalfa Establishment
A4: Enter your name for this budget in the cell above.
A5: Enter Your Values in the cells highlighed in MAROON.
E6: Your Acres | R6: Your
C7: Crop Acres | D7: 100 | L7: Your | Q7: Enterprise | R7: Enterprise
E8: Your | H8: Your | I8: Cash | J8: Your | K8: Landlord | L8: Landlord | N8: Your | P8: Your | Q8: Total | R8: Total
A9: REVENUE | D9: Quantity | E9: Quantity | F9: Units | G9: $/Unit | H9: $/Unit | I9: Total | J9: Total | K9: Share | L9: Share | M9: Landlord | N9: Landlord | O9: Tenant | P9: Tenant | Q9: (100 acres) | R9: ="(" & E7 & " acres)" -> ( acres)
B10: 0 | D10: 0 | G10: 0 | I10: 0 | J10: =E10*H10 -> 0 | K10: 0 | M10: 0 | N10: =J10*L10 -> 0 | O10: 0 | P10: =+J10-N10 -> 0 | Q10: 0 | R10: =+J10*E$7 -> 0
D11: 0 | G11: 0 | I11: 0 | J11: 0 | K11: 0 | M11: 0 | N11: 0 | O11: 0 | P11: 0 | Q11: 0 | R11: 0
D12: 0 | G12: 0 | I12: 0 | J12: 0 | K12: 0 | M12: 0 | N12: 0 | O12: 0 | P12: 0 | Q12: 0 | R12: 0
A13: Total Revenue | I13: 0 | J13: =SUM(J10:J12) -> 0 | M13: 0 | N13: =SUM(N10:N12) -> 0 | O13: 0 | P13: =SUM(P10:P12) -> 0 | Q13: 0 | R13: =SUM(R10:R12) -> 0
Q14: Enterprise | R14: Enterprise
A15: VARIABLE COSTS | D15: Quantity | E15: Quantity | F15: Units | G15: $/Unit | H15: $/Unit | I15: Total | J15: Total | K15: Share | L15: Share | M15: Landlord | N15: Landlord | O15: Tenant | P15: Tenant | Q15: Total | R15: Total
A16: Production Costs
B17: Fertilizer
C18: Fertilizer (N) | D18: 40 | F18: Pound | G18: 0.25 | I18: 10 | J18: =E18*H18 -> 0 | K18: 0 | M18: 0 | N18: =J18*L18 -> 0 | O18: 10 | P18: =+J18-N18 -> 0 | Q18: 1000 | R18: =+J18*E$7 -> 0
C19: Fertilizer (P) | D19: 80 | F19: Pound | G19: 0.325 | I19: 26 | J19: 0 | K19: 0 | M19: 0 | N19: 0 | O19: 26 | P19: 0 | Q19: 2600 | R19: 0
C20: Potash (K) | D20: 40 | F20: Pound | G20: 0.3 | I20: 12 | J20: 0 | K20: 0 | M20: 0 | N20: 0 | O20: 12 | P20: 0 | Q20: 1200 | R20: 0
C21: Sulfur | D21: 12 | F21: Pound | G21: 0.22 | I21: 2.64 | J21: 0 | K21: 0 | M21: 0 | N21: 0 | O21: 2.64 | P21: 0 | Q21: 264 | R21: 0
B22: Herbicide
C23: Roundup | D23: 2 | F23: Pint | G23: 1.875 | I23: 3.75 | J23: 0 | K23: 0 | M23: 0 | N23: 0 | O23: 3.75 | P23: 0 | Q23: 375 | R23: 0
C24: Herbicide Application | D24: 1 | F24: Acre | G24: 5.5 | I24: 5.5 | J24: 0 | K24: 0 | M24: 0 | N24: 0 | O24: 5.5 | P24: 0 | Q24: 550 | R24: 0
B25: Seed
C26: Alfalfa Seed | D26: 20 | F26: Acre | G26: 5.75 | I26: 115 | J26: 0 | K26: 0 | M26: 0 | N26: 0 | O26: 115 | P26: 0 | Q26: 11500 | R26: 0
D27: 0 | G27: 0 | I27: 0 | J27: 0 | K27: 0 | M27: 0 | N27: 0 | O27: 0 | P27: 0 | Q27: 0 | R27: 0
D28: 0 | G28: 0 | I28: 0 | J28: 0 | K28: 0 | M28: 0 | N28: 0 | O28: 0 | P28: 0 | Q28: 0 | R28: 0
D29: 0 | G29: 0 | I29: 0 | J29: =E29*H29 -> 0 | K29: 0 | M29: 0 | N29: =J29*L29 -> 0 | O29: 0 | P29: =+J29-N29 -> 0 | Q29: 0 | R29: =+J29*E$7 -> 0
B30: Machinery Labor
C31: Tractors/Self-Propelled | D31: 0.43 | F31: Hour | G31: 14 | I31: 6.02 | J31: =E31*H31 -> 0 | K31: 0 | M31: 0 | N31: =J31*L31 -> 0 | O31: 6.02 | P31: =+J31-N31 -> 0 | Q31: 602 | R31: =+J31*E$7 -> 0
C32: Other Labor | D32: 0.48 | F32: Hour | G32: 14 | I32: 6.72 | J32: =E32*H32 -> 0 | K32: 0 | M32: 0 | N32: =J32*L32 -> 0 | O32: 6.72 | P32: =+J32-N32 -> 0 | Q32: 672 | R32: =+J32*E$7 -> 0
B34: Diesel Fuel
C35: Pickup/General Use Equipment | D35: 1 | F35: Acre | G35: 0 | I35: 0 | J35: =E35*H35 -> 0 | K35: 0 | M35: 0 | N35: =J35*L35 -> 0 | O35: 0 | P35: =+J35-N35 -> 0 | Q35: 0 | R35: =+J35*E$7 -> 0
C36: Tractors/Self-Propelled | D36: 2.91 | F36: Gallon | G36: 1.4 | I36: 4.074 | J36: =E36*H36 -> 0 | K36: 0 | M36: 0 | N36: =J36*L36 -> 0 | O36: 4.074 | P36: =+J36-N36 -> 0 | Q36: 407.4 | R36: =+J36*E$7 -> 0
B38: Gasoline
C39: Pickup/General Use Equipment | D39: 1 | F39: Acre | G39: 9 | I39: 9 | J39: =E39*H39 -> 0 | K39: 0 | M39: 0 | N39: =J39*L39 -> 0 | O39: 9 | P39: =+J39-N39 -> 0 | Q39: 900 | R39: =+J39*E$7 -> 0
C40: Tractors/Self-Propelled | D40: 0 | F40: Gallon | G40: 2 | I40: 0 | J40: =E40*H40 -> 0 | K40: 0 | M40: 0 | N40: =J40*L40 -> 0 | O40: 0 | P40: =+J40-N40 -> 0 | Q40: 0 | R40: =+J40*E$7 -> 0
B42: Repairs & Maintenance
C43: Pickup/General Use Equipment | D43: 1 | F43: Acre | G43: 3 | I43: 3 | J43: =E43*H43 -> 0 | K43: 0 | M43: 0 | N43: =J43*L43 -> 0 | O43: 3 | P43: =+J43-N43 -> 0 | Q43: 300 | R43: =+J43*E$7 -> 0
C44: Irrigation Equipment | D44: 1 | F44: Acre | G44: 0 | I44: 0 | J44: 0 | K44: 0 | M44: 0 | N44: 0 | O44: 0 | P44: 0 | Q44: 0 | R44: 0
C45: Tractors/Self-Propelled | D45: 1 | F45: Acre | G45: 5.959953349 | I45: 5.959953349 | J45: 0 | K45: 0 | M45: 0 | N45: 0 | O45: 5.959953349 | P45: 0 | Q45: 595.9953349 | R45: 0
C46: Implements | D46: 1 | F46: Acre | G46: 5.819466524 | I46: 5.819466524 | J46: 0 | K46: 0 | M46: 0 | N46: 0 | O46: 5.819466524 | P46: 0 | Q46: 581.9466524 | R46: 0
I47: 0 | J47: 0 | K47: 0 | M47: 0 | N47: 0 | O47: 0 | P47: 0 | Q47: 0 | R47: =+J47*E$7 -> 0
I48: 0 | J48: 0 | K48: 0 | M48: 0 | N48: 0 | O48: 0 | P48: 0 | Q48: 0 | R48: 0
B49: Interest on Credit Line | G49: 0.065 | I49: 2.100656572 | J49: =+SUM(J17:J48)/2*H49 -> 0 | M49: 0 | N49: =+SUM(N17:N48)/2*L49 -> 0 | O49: 2.100656572 | P49: =+SUM(P17:P48)/2*L49 -> 0 | Q49: 210.0656572 | R49: =+J49*E$7 -> 0
A50: Total Variable Costs | I50: 217.5840764 | J50: =SUM(J18:J49) -> 0 | M50: 0 | N50: =SUM(N18:N49) -> 0 | O50: 217.5840764 | P50: =SUM(P18:P49) -> 0 | Q50: 21758.40764 | R50: =SUM(R18:R49) -> 0
A51: Planned Returns Above Variable Costs: | I51: -217.5840764 | J51: =+J13-J50 -> 0 | M51: 0 | N51: =+N13-N50 -> 0 | O51: -217.5840764 | P51: =+P13-P50 -> 0 | Q51: -21758.40764 | R51: =+R13-R50 -> 0
B52: Breakeven Price to Cover Variable Costs | G52: n/a | H52: =IF(E10=0,"n/a",(YVarExp-(YTotExp+YTotRet-J10))/E10) -> n/a
Q53: Enterprise | R53: Enterprise
A54: FIXED COSTS | D54: Quantity | E54: Quantity | F54: Units | G54: $/Unit | H54: $/Unit | J54: Total | K54: Share | L54: Share | M54: Landlord | N54: Landlord | O54: Tenant | P54: Tenant | Q54: Total | R54: Total
B55: Machinery Depreciation
C56: Pickup/General Use Equipment | D56: 1 | F56: Acre | G56: 4.165 | I56: 4.165 | J56: =E56*H56 -> 0 | K56: 0 | M56: 0 | N56: =J56*L56 -> 0 | O56: 4.165 | P56: =+J56-N56 -> 0 | Q56: 416.5 | R56: =+J56*E$7 -> 0
C57: Tractors/Self-Propelled | D57: 1 | F57: Acre | G57: 6.158618461 | I57: 6.158618461 | J57: 0 | K57: 0 | M57: 0 | N57: =J57*L57 -> 0 | O57: 6.158618461 | P57: 0 | Q57: 615.8618461 | R57: 0
C58: Implements | D58: 1 | F58: Acre | G58: 7.065586656 | I58: 7.065586656 | J58: 0 | K58: 0 | M58: 0 | N58: =J58*L58 -> 0 | O58: 7.065586656 | P58: 0 | Q58: 706.5586656 | R58: 0
B59: Equipment Investment
C60: Pickup/General Use Equipment | D60: 29.175 | F60: Dollars | G60: 0.055 | I60: 1.604625 | J60: =E60*H60 -> 0 | K60: 0 | M60: 0 | N60: =J60*L60 -> 0 | O60: 1.604625 | P60: =+J60-N60 -> 0 | Q60: 160.4625 | R60: =+J60*E$7 -> 0
C61: Tractors/Self-Propelled | D61: 47.97762446 | F61: Dollars | G61: 0.055 | I61: 2.638769345 | J61: 0 | K61: 0 | M61: 0 | N61: =J61*L61 -> 0 | O61: 2.638769345 | P61: 0 | Q61: 263.8769345 | R61: 0
C62: Implements | D62: 30.22500959 | F62: Dollars | G62: 0.055 | I62: 1.662375527 | J62: 0 | K62: 0 | M62: 0 | N62: =J62*L62 -> 0 | O62: 1.662375527 | P62: 0 | Q62: 166.2375527 | R62: 0
B63: Salaried Labor | D63: 1 | F63: Acre | G63: 0 | I63: 0 | J63: 0 | K63: 0 | M63: 0 | N63: =J63*L63 -> 0 | O63: 0 | P63: =+J63-N63 -> 0 | Q63: 0 | R63: =+J63*E$7 -> 0
B64: Management Fee, Owner/Operator Labor | D64: 1 | F64: Acre | G64: 0 | I64: 0 | J64: 0 | K64: 0 | M64: 0 | N64: 0 | O64: 0 | P64: 0 | Q64: 0 | R64: 0
B65: Allocated Establishment Cost | D65: 1 | F65: Acre | G65: 0 | I65: 0 | J65: 0 | K65: 0 | M65: 0 | N65: 0 | O65: 0 | P65: 0 | Q65: 0 | R65: 0
B66: Cash Rent - Dryland Alfalfa | D66: 1 | F66: Acre | G66: 30 | I66: 30 | J66: 0 | K66: 0 | M66: 0 | N66: 0 | O66: 30 | P66: 0 | Q66: 3000 | R66: 0
B67: Property Taxes | D67: 1 | F67: Acre | G67: 0 | I67: 0 | J67: =E67*H67 -> 0 | K67: 0 | M67: 0 | N67: 0 | O67: 0 | P67: 0 | Q67: 0 | R67: =+J67*E$7 -> 0
B68: Whole Farm Insurance | D68: 1 | F68: Acre | G68: 0 | I68: 0 | J68: 0 | K68: 0 | M68: 0 | N68: 0 | O68: 0 | P68: 0 | Q68: 0 | R68: 0
D69: 1 | G69: 0 | I69: 0 | J69: 0 | K69: 0 | M69: 0 | N69: 0 | O69: 0 | P69: 0 | Q69: 0 | R69: 0
D70: 1 | G70: 0 | I70: 0 | J70: 0 | K70: 0 | M70: 0 | N70: 0 | O70: 0 | P70: 0 | Q70: 0 | R70: 0
A71: Total Fixed Costs | I71: 53.29497499 | J71: =+SUM(J56:J70) -> 0 | M71: 0 | N71: =+SUM(N56:N70) -> 0 | O71: 53.29497499 | P71: =+SUM(P56:P70) -> 0 | Q71: 5329.497499 | R71: =+SUM(R56:R70) -> 0
A72: Total Specified Costs | I72: 270.8790514 | J72: =+J50+J71 -> 0 | M72: 0 | N72: =+N50+N71 -> 0 | O72: 270.8790514 | P72: =+P50+P71 -> 0 | Q72: 27087.90514 | R72: =+R50+R71 -> 0
A74: Returns Above Specified Costs | I74: -270.8790514 | J74: =+J13-J72 -> 0 | M74: 0 | N74: =+N13-N72 -> 0 | O74: -270.8790514 | P74: =+P13-P72 -> 0 | Q74: -27087.90514 | R74: =+R13-R72 -> 0
A76: Breakeven Price to Cover Total Costs | G76: n/a | H76: =IF(E10=0,"n/a",(YTotExp-(YTotExp+YTotRet-J10))/E10) -> n/a
D78: Example Breakeven Prices
B79: Example | C79: Example | D79: To Cover | G79: To Cover
B80: Yield | C80: Yield | D80: Variable | G80: Total
B81: Percent | D81: Costs | G81: Costs
B82: 0.75 | C82: 0 | D82: 0 | G82: 0
B83: 0.9 | C83: 0 | D83: 0 | G83: 0
B84: 1 | C84: 0 | D84: 0 | G84: 0
B85: 1.1 | C85: 0 | D85: 0 | G85: 0
B86: 1.25 | C86: 0 | D86: 0 | G86: 0
A88: Francisco Abelló, Assistant Professor and Extension Specialist, Texas A&M AgriLife Extension, 940-647-3908
A90: Information presented is prepared solely as a general guide and not intended to recognize or predict the costs and returns from any one operation. Brand names are mentioned only as examples and imply no endorsement.

Sheet AlfalfaHayDryland
A1: Projections for Planning Purposes Only -- Not to be Used without Updating
A2: 2021 Estimated Costs and Returns per Acre
A3: Dryland Alfalfa Hay
A4: Enter your name for this budget in the cell above.
A5: Enter Your Values in the cells highlighed in MAROON.
E6: Your Acres | R6: Your
C7: Crop Acres | D7: 100 | L7: Your | Q7: Enterprise | R7: Enterprise
E8: Your | H8: Your | I8: Cash | J8: Your | K8: Landlord | L8: Landlord | N8: Your | P8: Your | Q8: Total | R8: Total
A9: REVENUE | D9: Quantity | E9: Quantity | F9: Units | G9: $/Unit | H9: $/Unit | I9: Total | J9: Total | K9: Share | L9: Share | M9: Landlord | N9: Landlord | O9: Tenant | P9: Tenant | Q9: (100 acres) | R9: ="(" & E7 & " acres)" -> ( acres)
B10: Alfalfa Hay | D10: 3.25 | F10: Ton | G10: 230 | I10: 747.5 | J10: =E10*H10 -> 0 | K10: 0 | M10: 0 | N10: =J10*L10 -> 0 | O10: 747.5 | P10: =+J10-N10 -> 0 | Q10: 74750 | R10: =+J10*E$7 -> 0
D11: 0 | G11: 0 | I11: 0 | J11: 0 | K11: 0 | M11: 0 | N11: 0 | O11: 0 | P11: =+J11-N11 -> 0 | Q11: 0 | R11: 0
D12: 0 | G12: 0 | I12: 0 | J12: 0 | K12: 0 | M12: 0 | N12: 0 | O12: 0 | P12: 0 | Q12: 0 | R12: 0
A13: Total Revenue | I13: 747.5 | J13: =SUM(J10:J12) -> 0 | M13: 0 | N13: =SUM(N10:N12) -> 0 | O13: 747.5 | P13: =SUM(P10:P12) -> 0 | Q13: 74750 | R13: =SUM(R10:R12) -> 0
Q14: Enterprise | R14: Enterprise
A15: VARIABLE COSTS | D15: Quantity | E15: Quantity | F15: Units | G15: $/Unit | H15: $/Unit | I15: Total | J15: Total | K15: Share | L15: Share | M15: Landlord | N15: Landlord | O15: Tenant | P15: Tenant | Q15: Total | R15: Total
A16: Production Costs
B17: Custom
C18: Fertilizer Application | D18: 1 | F18: Acre | G18: 4.5 | I18: 4.5 | J18: =E18*H18 -> 0 | K18: 0 | M18: 0 | N18: =J18*L18 -> 0 | O18: 4.5 | P18: =+J18-N18 -> 0 | Q18: 450 | R18: =+J18*E$7 -> 0
C19: Herbicide Application | D19: 2 | F19: Acre | G19: 5.5 | I19: 11 | J19: 0 | K19: 0 | M19: 0 | N19: 0 | O19: 11 | P19: 0 | Q19: 1100 | R19: 0
C20: Insecticide Application | D20: 2 | F20: Acre | G20: 5.5 | I20: 11 | J20: 0 | K20: 0 | M20: 0 | N20: 0 | O20: 11 | P20: 0 | Q20: 1100 | R20: 0
C21: Custom Baling - Alfalfa | D21: 3.25 | F21: Ton | G21: 32 | I21: 104 | J21: 0 | K21: 0 | M21: 0 | N21: 0 | O21: 104 | P21: 0 | Q21: 10400 | R21: 0
B22: Fertilizer
C23: Sulfur | D23: 12 | F23: Pound | G23: 0.22 | I23: 2.64 | J23: 0 | K23: 0 | M23: 0 | N23: 0 | O23: 2.64 | P23: 0 | Q23: 264 | R23: 0
C24: Fertilizer (N) | D24: 20 | F24: Pound | G24: 0.25 | I24: 5 | J24: 0 | K24: 0 | M24: 0 | N24: 0 | O24: 5 | P24: 0 | Q24: 500 | R24: 0
C25: Fertilizer (P) | D25: 50 | F25: Pound | G25: 0.325 | I25: 16.25 | J25: 0 | K25: 0 | M25: 0 | N25: 0 | O25: 16.25 | P25: 0 | Q25: 1625 | R25: 0
B26: Herbicide
C27: Valpar | D27: 2 | F27: Pint | G27: 11.875 | I27: 23.75 | J27: 0 | K27: 0 | M27: 0 | N27: 0 | O27: 23.75 | P27: 0 | Q27: 2375 | R27: 0
C28: Butyrac | D28: 2 | F28: Pint | G28: 5.2 | I28: 10.4 | J28: 0 | K28: 0 | M28: 0 | N28: 0 | O28: 10.4 | P28: 0 | Q28: 1040 | R28: 0
B29: Insecticide
C30: Insecticide - Alfalfa 1 | D30: 2 | F30: Pint | G30: 4.12 | I30: 8.24 | J30: 0 | K30: 0 | M30: 0 | N30: 0 | O30: 8.24 | P30: 0 | Q30: 824 | R30: 0
C31: Insecticide - Alfalfa 2 Baythroid | D31: 3 | F31: Fluid Ounce | G31: 1.0546875 | I31: 3.1640625 | J31: 0 | K31: 0 | M31: 0 | N31: 0 | O31: 3.1640625 | P31: 0 | Q31: 316.40625 | R31: 0
D32: 0 | G32: 0 | I32: 0 | J32: 0 | K32: 0 | M32: 0 | N32: 0 | O32: 0 | P32: 0 | Q32: 0 | R32: 0
D33: 0 | G33: 0 | I33: 0 | J33: 0 | K33: 0 | M33: 0 | N33: 0 | O33: 0 | P33: 0 | Q33: 0 | R33: 0
D34: 0 | G34: 0 | I34: 0 | J34: =E34*H34 -> 0 | K34: 0 | M34: 0 | N34: =J34*L34 -> 0 | O34: 0 | P34: =+J34-N34 -> 0 | Q34: 0 | R34: =+J34*E$7 -> 0
B35: Machinery Labor
C36: Tractors/Self-Propelled | D36: 0 | F36: Hour | G36: 14 | I36: 0 | J36: =E36*H36 -> 0 | K36: 0 | M36: 0 | N36: =J36*L36 -> 0 | O36: 0 | P36: =+J36-N36 -> 0 | Q36: 0 | R36: =+J36*E$7 -> 0
C37: Other Labor | D37: 0 | F37: Hour | G37: 14 | I37: 0 | J37: =E37*H37 -> 0 | K37: 0 | M37: 0 | N37: =J37*L37 -> 0 | O37: 0 | P37: =+J37-N37 -> 0 | Q37: 0 | R37: =+J37*E$7 -> 0
B39: Diesel Fuel
C40: Pickup/General Use Equipment | D40: 1 | F40: Acre | G40: 0 | I40: 0 | J40: =E40*H40 -> 0 | K40: 0 | M40: 0 | N40: =J40*L40 -> 0 | O40: 0 | P40: =+J40-N40 -> 0 | Q40: 0 | R40: =+J40*E$7 -> 0
C41: Tractors/Self-Propelled | D41: 0 | F41: Gallon | G41: 1.4 | I41: 0 | J41: =E41*H41 -> 0 | K41: 0 | M41: 0 | N41: =J41*L41 -> 0 | O41: 0 | P41: =+J41-N41 -> 0 | Q41: 0 | R41: =+J41*E$7 -> 0
B43: Gasoline
C44: Pickup/General Use Equipment | D44: 1 | F44: Acre | G44: 4.5 | I44: 4.5 | J44: =E44*H44 -> 0 | K44: 0 | M44: 0 | N44: =J44*L44 -> 0 | O44: 4.5 | P44: =+J44-N44 -> 0 | Q44: 450 | R44: =+J44*E$7 -> 0
C45: Tractors/Self-Propelled | D45: 0 | F45: Gallon | G45: 2 | I45: 0 | J45: =E45*H45 -> 0 | K45: 0 | M45: 0 | N45: =J45*L45 -> 0 | O45: 0 | P45: =+J45-N45 -> 0 | Q45: 0 | R45: =+J45*E$7 -> 0
B47: Repairs & Maintenance
C48: Pickup/General Use Equipment | D48: 1 | F48: Acre | G48: 19.5 | I48: 19.5 | J48: =E48*H48 -> 0 | K48: 0 | M48: 0 | N48: =J48*L48 -> 0 | O48: 19.5 | P48: =+J48-N48 -> 0 | Q48: 1950 | R48: =+J48*E$7 -> 0
C49: Irrigation Equipment | D49: 1 | F49: Acre | G49: 0 | I49: 0 | J49: 0 | K49: 0 | M49: 0 | N49: 0 | O49: 0 | P49: 0 | Q49: 0 | R49: 0
C50: Tractors/Self-Propelled | D50: 1 | F50: Acre | G50: 0 | I50: 0 | J50: 0 | K50: 0 | M50: 0 | N50: 0 | O50: 0 | P50: 0 | Q50: 0 | R50: 0
C51: Implements | D51: 1 | F51: Acre | G51: 0 | I51: 0 | J51: 0 | K51: 0 | M51: 0 | N51: 0 | O51: 0 | P51: 0 | Q51: 0 | R51: 0
I52: 0 | J52: 0 | K52: 0 | M52: 0 | N52: 0 | O52: 0 | P52: 0 | Q52: 0 | R52: 0
I53: 0 | J53: 0 | K53: 0 | M53: 0 | N53: 0 | O53: 0 | P53: 0 | Q53: 0 | R53: 0
B54: Interest on Credit Line | G54: 0.065 | I54: 5.125655638 | J54: =+SUM(J17:J53)/2*H54 -> 0 | M54: 0 | N54: =+SUM(N17:N53)/2*L54 -> 0 | O54: 5.125655638 | P54: =+SUM(P17:P53)/2*L54 -> 0 | Q54: 512.5655638 | R54: =+J54*E$7 -> 0
A55: Total Variable Costs | I55: 229.0697181 | J55: =SUM(J18:J54) -> 0 | M55: 0 | N55: =SUM(N18:N54) -> 0 | O55: 229.0697181 | P55: =SUM(P18:P54) -> 0 | Q55: 22906.97181 | R55: =SUM(R18:R54) -> 0
A56: Planned Returns Above Variable Costs: | I56: 518.4302819 | J56: =+J13-J55 -> 0 | M56: 0 | N56: =+N13-N55 -> 0 | O56: 518.4302819 | P56: =+P13-P55 -> 0 | Q56: 51843.02819 | R56: =+R13-R55 -> 0
B57: Breakeven Price to Cover Variable Costs | G57: 70.4829902 | H57: =IF(E10=0,"n/a",(YVarExp-(YTotExp+YTotRet-J10))/E10) -> n/a | I57: Ton
Q58: Enterprise | R58: Enterprise
A59: FIXED COSTS | D59: Quantity | E59: Quantity | F59: Units | G59: $/Unit | H59: $/Unit | I59: Total | J59: Total | K59: Share | L59: Share | M59: Landlord | N59: Landlord | O59: Tenant | P59: Tenant | Q59: Total | R59: Total
B60: Machinery Depreciation
C61: Pickup/General Use Equipment | D61: 1 | F61: Acre | G61: 28.325 | I61: 28.325 | J61: =E61*H61 -> 0 | K61: 0 | M61: 0 | N61: =J61*L61 -> 0 | O61: 28.325 | P61: =+J61-N61 -> 0 | Q61: 2832.5 | R61: =+J61*E$7 -> 0
B62: Equipment Investment
C63: Pickup/General Use Equipment | D63: 220.875 | F63: Dollars | G63: 0.055 | I63: 12.148125 | J63: =E63*H63 -> 0 | K63: 0 | M63: 0 | N63: =J63*L63 -> 0 | O63: 12.148125 | P63: =+J63-N63 -> 0 | Q63: 1214.8125 | R63: =+J63*E$7 -> 0
B64: Salaried Labor | D64: 1 | F64: Acre | G64: 0 | I64: 0 | J64: 0 | K64: 0 | M64: 0 | N64: =J64*L64 -> 0 | O64: 0 | P64: =+J64-N64 -> 0 | Q64: 0 | R64: =+J64*E$7 -> 0
B65: Management Fee, Owner/Operator Labor | D65: 1 | F65: Acre | G65: 0 | I65: 0 | J65: 0 | K65: 0 | M65: 0 | N65: 0 | O65: 0 | P65: 0 | Q65: 0 | R65: 0
B66: Allocated Establishment Cost | D66: 1 | F66: Acre | G66: 60.176 | I66: 60.176 | J66: 0 | K66: 0 | M66: 0 | N66: 0 | O66: 60.176 | P66: 0 | Q66: 6017.6 | R66: 0
B67: Cash Rent - Dryland Alfalfa | D67: 1 | F67: Acre | G67: 30 | I67: 30 | J67: 0 | K67: 0 | M67: 0 | N67: 0 | O67: 30 | P67: 0 | Q67: 3000 | R67: 0
B68: Property Taxes | D68: 1 | F68: Acre | G68: 0 | I68: 0 | J68: 0 | K68: 0 | M68: 0 | N68: 0 | O68: 0 | P68: 0 | Q68: 0 | R68: 0
B69: Whole Farm Insurance | D69: 1 | F69: Acre | G69: 0 | I69: 0 | J69: 0 | K69: 0 | M69: 0 | N69: 0 | O69: 0 | P69: 0 | Q69: 0 | R69: 0
D70: 1 | G70: 0 | I70: 0 | J70: 0 | K70: 0 | M70: 0 | N70: 0 | O70: 0 | P70: 0 | Q70: 0 | R70: 0
D71: 1 | G71: 0 | I71: 0 | J71: =E71*H71 -> 0 | K71: 0 | M71: 0 | N71: 0 | O71: 0 | P71: 0 | Q71: 0 | R71: 0
A72: Total Fixed Costs | I72: 130.649125 | J72: =+SUM(J61:J71) -> 0 | M72: 0 | N72: =+SUM(N61:N71) -> 0 | O72: 130.649125 | P72: =+SUM(P61:P71) -> 0 | Q72: 13064.9125 | R72: =+SUM(R61:R71) -> 0
A73: Total Specified Costs | I73: 359.7188431 | J73: =+J55+J72 -> 0 | M73: 0 | N73: =+N55+N72 -> 0 | O73: 359.7188431 | P73: =+P55+P72 -> 0 | Q73: 35971.88431 | R73: =+R55+R72 -> 0
A75: Returns Above Specified Costs | I75: 387.7811569 | J75: =+J13-J73 -> 0 | M75: 0 | N75: =+N13-N73 -> 0 | O75: 387.7811569 | P75: =+P13-P73 -> 0 | Q75: 38778.11569 | R75: =+R13-R73 -> 0
A77: Breakeven Price to Cover Total Costs | G77: 110.682721 | H77: =IF(E10=0,"n/a",(YTotExp-(YTotExp+YTotRet-J10))/E10) -> n/a | I77: Ton
D79: Example Breakeven Prices
B80: Example | C80: Example | D80: To Cover | G80: To Cover
B81: Yield | C81: Yield | D81: Variable | G81: Total
B82: Percent | C82: Ton | D82: Costs | G82: Costs
B83: 0.75 | C83: 2.4375 | D83: 93.97732026 | G83: 147.5769613
B84: 0.9 | C84: 2.925 | D84: 78.31443355 | G84: 122.9808011
B85: 1 | C85: 3.25 | D85: 70.4829902 | G85: 110.682721
B86: 1.1 | C86: 3.575 | D86: 64.07544563 | G86: 100.6206554
B87: 1.25 | C87: 4.0625 | D87: 56.38639216 | G87: 88.54617677
A89: Francisco Abelló, Assistant Professor and Extension Specialist, Texas A&M AgriLife Extension, 940-647-3908
A91: Information presented is prepared solely as a general guide and not intended to recognize or predict the costs and returns from any one operation. Brand names are mentioned only as examples and imply no endorsement.

Sheet AlfalfaIrrigatedEstablish
A1: Projections for Planning Purposes Only -- Not to be Used without Updating
A2: 2021 Estimated Costs and Returns per Acre
A3: Irrigated Alfalfa Establishment
A4: Enter your name for this budget in the cell above.
A5: Enter Your Values in the cells highlighed in MAROON.
E6: Your Acres | R6: Your
C7: Crop Acres | D7: 100 | L7: Your | Q7: Enterprise | R7: Enterprise
E8: Your | H8: Your | I8: Cash | J8: Your | K8: Landlord | L8: Landlord | N8: Your | P8: Your | Q8: Total | R8: Total
A9: REVENUE | D9: Quantity | E9: Quantity | F9: Units | G9: $/Unit | H9: $/Unit | I9: Total | J9: Total | K9: Share | L9: Share | M9: Landlord | N9: Landlord | O9: Tenant | P9: Tenant | Q9: (100 acres) | R9: ="(" & E7 & " acres)" -> ( acres)
B10: 0 | D10: 0 | G10: 0 | I10: 0 | J10: =E10*H10 -> 0 | K10: 0 | M10: 0 | N10: =J10*L10 -> 0 | O10: 0 | P10: =+J10-N10 -> 0 | Q10: 0 | R10: =+J10*E$7 -> 0
D11: 0 | G11: 0 | I11: 0 | J11: 0 | K11: 0 | M11: 0 | N11: 0 | O11: 0 | P11: =+J11-N11 -> 0 | Q11: 0 | R11: 0
D12: 0 | G12: 0 | I12: 0 | J12: 0 | K12: 0 | M12: 0 | N12: 0 | O12: 0 | P12: 0 | Q12: 0 | R12: 0
A13: Total Revenue | I13: 0 | J13: =SUM(J10:J12) -> 0 | M13: 0 | N13: =SUM(N10:N12) -> 0 | O13: 0 | P13: =SUM(P10:P12) -> 0 | Q13: 0 | R13: =SUM(R10:R12) -> 0
Q14: Enterprise | R14: Enterprise
A15: VARIABLE COSTS | D15: Quantity | E15: Quantity | F15: Units | G15: $/Unit | H15: $/Unit | I15: Total | J15: Total | K15: Share | L15: Share | M15: Landlord | N15: Landlord | O15: Tenant | P15: Tenant | Q15: Total | R15: Total
A16: Production Costs
B17: Fertilizer
C18: Fertilizer (N) | D18: 40 | F18: Pound | G18: 0.25 | I18: 10 | J18: =E18*H18 -> 0 | K18: 0 | M18: 0 | N18: =J18*L18 -> 0 | O18: 10 | P18: =+J18-N18 -> 0 | Q18: 1000 | R18: =+J18*E$7 -> 0
C19: Fertilizer (P) | D19: 80 | F19: Pound | G19: 0.325 | I19: 26 | J19: 0 | K19: 0 | M19: 0 | N19: 0 | O19: 26 | P19: 0 | Q19: 2600 | R19: 0
C20: Potash (K) | D20: 40 | F20: Pound | G20: 0.3 | I20: 12 | J20: 0 | K20: 0 | M20: 0 | N20: 0 | O20: 12 | P20: 0 | Q20: 1200 | R20: 0
C21: Sulfur | D21: 12 | F21: Pound | G21: 0.22 | I21: 2.64 | J21: 0 | K21: 0 | M21: 0 | N21: 0 | O21: 2.64 | P21: 0 | Q21: 264 | R21: 0
B22: Herbicide
C23: Roundup | D23: 2 | F23: Pint | G23: 1.875 | I23: 3.75 | J23: 0 | K23: 0 | M23: 0 | N23: 0 | O23: 3.75 | P23: 0 | Q23: 375 | R23: 0
C24: Herbicide Application | D24: 1 | F24: Acre | G24: 5.5 | I24: 5.5 | J24: 0 | K24: 0 | M24: 0 | N24: 0 | O24: 5.5 | P24: 0 | Q24: 550 | R24: 0
B25: Seed
C26: Alfalfa Seed | D26: 20 | F26: Acre | G26: 5.75 | I26: 115 | J26: 0 | K26: 0 | M26: 0 | N26: 0 | O26: 115 | P26: 0 | Q26: 11500 | R26: 0
D27: 0 | G27: 0 | I27: 0 | J27: 0 | K27: 0 | M27: 0 | N27: 0 | O27: 0 | P27: 0 | Q27: 0 | R27: 0
D28: 0 | G28: 0 | I28: 0 | J28: 0 | K28: 0 | M28: 0 | N28: 0 | O28: 0 | P28: 0 | Q28: 0 | R28: 0
D29: 0 | G29: 0 | I29: 0 | J29: =E29*H29 -> 0 | K29: 0 | M29: 0 | N29: =J29*L29 -> 0 | O29: 0 | P29: =+J29-N29 -> 0 | Q29: 0 | R29: =+J29*E$7 -> 0
B30: Irrigation
C31: Energy Cost | D31: 6 | F31: AcreInch | G31: 4.5 | I31: 27 | J31: =E31*H31 -> 0 | K31: 0 | M31: 0 | N31: =J31*L31 -> 0 | O31: 27 | P31: =+J31-N31 -> 0 | Q31: 2700 | R31: =+J31*E$7 -> 0
C32: Irrigation Labor | D32: 0.512 | F32: Hour | G32: 14 | I32: 7.168 | J32: 0 | K32: 0 | M32: 0 | N32: 0 | O32: 7.168 | P32: 0 | Q32: 716.8 | R32: 0
B33: Machinery Labor
C34: Tractors/Self-Propelled | D34: 0.43 | F34: Hour | G34: 14 | I34: 6.02 | J34: =E34*H34 -> 0 | K34: 0 | M34: 0 | N34: =J34*L34 -> 0 | O34: 6.02 | P34: =+J34-N34 -> 0 | Q34: 602 | R34: =+J34*E$7 -> 0
C35: Other Labor | D35: 0.48 | F35: Hour | G35: 14 | I35: 6.72 | J35: =E35*H35 -> 0 | K35: 0 | M35: 0 | N35: =J35*L35 -> 0 | O35: 6.72 | P35: =+J35-N35 -> 0 | Q35: 672 | R35: =+J35*E$7 -> 0
B37: Diesel Fuel
C38: Pickup/General Use Equipment | D38: 1 | F38: Acre | G38: 0 | I38: 0 | J38: =E38*H38 -> 0 | K38: 0 | M38: 0 | N38: =J38*L38 -> 0 | O38: 0 | P38: =+J38-N38 -> 0 | Q38: 0 | R38: =+J38*E$7 -> 0
C39: Tractors/Self-Propelled | D39: 2.91 | F39: Gallon | G39: 1.4 | I39: 4.074 | J39: =E39*H39 -> 0 | K39: 0 | M39: 0 | N39: =J39*L39 -> 0 | O39: 4.074 | P39: =+J39-N39 -> 0 | Q39: 407.4 | R39: =+J39*E$7 -> 0
B41: Gasoline
C42: Pickup/General Use Equipment | D42: 1 | F42: Acre | G42: 9 | I42: 9 | J42: =E42*H42 -> 0 | K42: 0 | M42: 0 | N42: =J42*L42 -> 0 | O42: 9 | P42: =+J42-N42 -> 0 | Q42: 900 | R42: =+J42*E$7 -> 0
C43: Tractors/Self-Propelled | D43: 0 | F43: Gallon | G43: 2 | I43: 0 | J43: =E43*H43 -> 0 | K43: 0 | M43: 0 | N43: =J43*L43 -> 0 | O43: 0 | P43: =+J43-N43 -> 0 | Q43: 0 | R43: =+J43*E$7 -> 0
B45: Repairs & Maintenance
C46: Pickup/General Use Equipment | D46: 1 | F46: Acre | G46: 3 | I46: 3 | J46: =E46*H46 -> 0 | K46: 0 | M46: 0 | N46: =J46*L46 -> 0 | O46: 3 | P46: =+J46-N46 -> 0 | Q46: 300 | R46: =+J46*E$7 -> 0
C47: Irrigation Equipment | D47: 1 | F47: Acre | G47: 10.0002 | I47: 10.0002 | J47: 0 | K47: 0 | M47: 0 | N47: 0 | O47: 10.0002 | P47: 0 | Q47: 1000.02 | R47: 0
C48: Tractors/Self-Propelled | D48: 1 | F48: Acre | G48: 5.959953349 | I48: 5.959953349 | J48: 0 | K48: 0 | M48: 0 | N48: 0 | O48: 5.959953349 | P48: 0 | Q48: 595.9953349 | R48: 0
C49: Implements | D49: 1 | F49: Acre | G49: 5.819466524 | I49: 5.819466524 | J49: 0 | K49: 0 | M49: 0 | N49: 0 | O49: 5.819466524 | P49: 0 | Q49: 581.9466524 | R49: 0
I50: 0 | J50: 0 | K50: 0 | M50: 0 | N50: 0 | O50: 0 | P50: 0 | Q50: 0 | R50: 0
I51: 0 | J51: 0 | K51: 0 | M51: 0 | N51: 0 | O51: 0 | P51: 0 | Q51: 0 | R51: 0
B52: Interest on Credit Line | G52: 0.065 | I52: 2.922892218 | J52: =+SUM(J17:J51)/2*H52 -> 0 | M52: 0 | N52: =+SUM(N17:N51)/2*L52 -> 0 | O52: 2.922892218 | P52: =+SUM(P17:P51)/2*L52 -> 0 | Q52: 292.2892218 | R52: =+J52*E$7 -> 0
A53: Total Variable Costs | I53: 262.5745121 | J53: =SUM(J18:J52) -> 0 | M53: 0 | N53: =SUM(N18:N52) -> 0 | O53: 262.5745121 | P53: =SUM(P18:P52) -> 0 | Q53: 26257.45121 | R53: =SUM(R18:R52) -> 0
A54: Planned Returns Above Variable Costs: | I54: -262.5745121 | J54: =+J13-J53 -> 0 | M54: 0 | N54: =+N13-N53 -> 0 | O54: -262.5745121 | P54: =+P13-P53 -> 0 | Q54: -26257.45121 | R54: =+R13-R53 -> 0
B55: Breakeven Price to Cover Variable Costs | G55: n/a | H55: =IF(E10=0,"n/a",(YVarExp-(YTotExp+YTotRet-J10))/E10) -> n/a
Q56: Enterprise | R56: Enterprise
A57: FIXED COSTS | D57: Quantity | E57: Quantity | F57: Units | G57: $/Unit | H57: $/Unit | I57: Total | J57: Total | K57: Share | L57: Share | M57: Landlord | N57: Landlord | O57: Tenant | P57: Tenant | Q57: Total | R57: Total
B58: Machinery Depreciation
C59: Pickup/General Use Equipment | D59: 1 | F59: Acre | G59: 4.165 | I59: 4.165 | J59: =E59*H59 -> 0 | K59: 0 | M59: 0 | N59: =J59*L59 -> 0 | O59: 4.165 | P59: =+J59-N59 -> 0 | Q59: 416.5 | R59: =+J59*E$7 -> 0
C60: Irrigation Equipment | D60: 1 | F60: Acre | G60: 9 | I60: 9 | J60: 0 | K60: 0 | M60: 0 | N60: =J60*L60 -> 0 | O60: 9 | P60: 0 | Q60: 900 | R60: 0
C61: Tractors/Self-Propelled | D61: 1 | F61: Acre | G61: 6.158618461 | I61: 6.158618461 | J61: 0 | K61: 0 | M61: 0 | N61: =J61*L61 -> 0 | O61: 6.158618461 | P61: 0 | Q61: 615.8618461 | R61: 0
C62: Implements | D62: 1 | F62: Acre | G62: 7.065586656 | I62: 7.065586656 | J62: 0 | K62: 0 | M62: 0 | N62: =J62*L62 -> 0 | O62: 7.065586656 | P62: 0 | Q62: 706.5586656 | R62: 0
B63: Equipment Investment
C64: Pickup/General Use Equipment | D64: 29.175 | F64: Dollars | G64: 0.055 | I64: 1.604625 | J64: =E64*H64 -> 0 | K64: 0 | M64: 0 | N64: =J64*L64 -> 0 | O64: 1.604625 | P64: =+J64-N64 -> 0 | Q64: 160.4625 | R64: =+J64*E$7 -> 0
C65: Irrigation Equipment | D65: 262.5 | F65: Dollars | G65: 0.055 | I65: 14.4375 | J65: 0 | K65: 0 | M65: 0 | N65: =J65*L65 -> 0 | O65: 14.4375 | P65: 0 | Q65: 1443.75 | R65: 0
C66: Tractors/Self-Propelled | D66: 47.97762446 | F66: Dollars | G66: 0.055 | I66: 2.638769345 | J66: 0 | K66: 0 | M66: 0 | N66: =J66*L66 -> 0 | O66: 2.638769345 | P66: 0 | Q66: 263.8769345 | R66: 0
C67: Implements | D67: 30.22500959 | F67: Dollars | G67: 0.055 | I67: 1.662375527 | J67: 0 | K67: 0 | M67: 0 | N67: =J67*L67 -> 0 | O67: 1.662375527 | P67: 0 | Q67: 166.2375527 | R67: 0
B68: Salaried Labor | D68: 1 | F68: Acre | G68: 0 | I68: 0 | J68: 0 | K68: 0 | M68: 0 | N68: =J68*L68 -> 0 | O68: 0 | P68: =+J68-N68 -> 0 | Q68: 0 | R68: =+J68*E$7 -> 0
B69: Management Fee, Owner/Operator Labor | D69: 1 | F69: Acre | G69: 0 | I69: 0 | J69: 0 | K69: 0 | M69: 0 | N69: 0 | O69: 0 | P69: 0 | Q69: 0 | R69: 0
B70: Allocated Establishment Cost | D70: 1 | F70: Acre | G70: 0 | I70: 0 | J70: 0 | K70: 0 | M70: 0 | N70: 0 | O70: 0 | P70: 0 | Q70: 0 | R70: 0
B71: Cash Rent - Irrigated Alfalfa | D71: 1 | F71: Acre | G71: 90 | I71: 90 | J71: 0 | K71: 0 | M71: 0 | N71: 0 | O71: 90 | P71: 0 | Q71: 9000 | R71: 0
B72: Property Taxes | D72: 1 | F72: Acre | G72: 0 | I72: 0 | J72: 0 | K72: 0 | M72: 0 | N72: 0 | O72: 0 | P72: 0 | Q72: 0 | R72: 0
B73: Whole Farm Insurance | D73: 1 | F73: Acre | G73: 0 | I73: 0 | J73: 0 | K73: 0 | M73: 0 | N73: 0 | O73: 0 | P73: 0 | Q73: 0 | R73: 0
D74: 1 | G74: 0 | I74: 0 | J74: 0 | K74: 0 | M74: 0 | N74: 0 | O74: 0 | P74: 0 | Q74: 0 | R74: 0
D75: 1 | G75: 0 | I75: 0 | J75: =E75*H75 -> 0 | K75: 0 | M75: 0 | N75: 0 | O75: 0 | P75: 0 | Q75: 0 | R75: 0
A76: Total Fixed Costs | I76: 136.732475 | J76: =+SUM(J59:J75) -> 0 | M76: 0 | N76: =+SUM(N59:N75) -> 0 | O76: 136.732475 | P76: =+SUM(P59:P75) -> 0 | Q76: 13673.2475 | R76: =+SUM(R59:R75) -> 0
A77: Total Specified Costs | I77: 399.3069871 | J77: =+J53+J76 -> 0 | M77: 0 | N77: =+N53+N76 -> 0 | O77: 399.3069871 | P77: =+P53+P76 -> 0 | Q77: 39930.69871 | R77: =+R53+R76 -> 0
A79: Returns Above Specified Costs | I79: -399.3069871 | J79: =+J13-J77 -> 0 | M79: 0 | N79: =+N13-N77 -> 0 | O79: -399.3069871 | P79: =+P13-P77 -> 0 | Q79: -39930.69871 | R79: =+R13-R77 -> 0
A81: Breakeven Price to Cover Total Costs | G81: n/a | H81: =IF(E10=0,"n/a",(YTotExp-(YTotExp+YTotRet-J10))/E10) -> n/a
D83: Example Breakeven Prices
B84: Example | C84: Example | D84: To Cover | G84: To Cover
B85: Yield | C85: Yield | D85: Variable | G85: Total
B86: Percent | D86: Costs | G86: Costs
B87: 0.75 | C87: 0 | D87: 0 | G87: 0
B88: 0.9 | C88: 0 | D88: 0 | G88: 0
B89: 1 | C89: 0 | D89: 0 | G89: 0
B90: 1.1 | C90: 0 | D90: 0 | G90: 0
B91: 1.25 | C91: 0 | D91: 0 | G91: 0
A93: Francisco Abelló, Assistant Professor and Extension Specialist, Texas A&M AgriLife Extension, 940-647-3908
A95: Information presented is prepared solely as a general guide and not intended to recognize or predict the costs and returns from any one operation. Brand names are mentioned only as examples and imply no endorsement.

Sheet AlfalfaHayIrrigated
A1: Projections for Planning Purposes Only -- Not to be Used without Updating
A2: 2021 Estimated Costs and Returns per Acre
A3: Irrigated Alfalfa Hay
A4: Enter your name for this budget in the cell above.
A5: Enter Your Values in the cells highlighed in MAROON.
E6: Your Acres | R6: Your
C7: Crop Acres | D7: 100 | L7: Your | Q7: Enterprise | R7: Enterprise
E8: Your | H8: Your | I8: Cash | J8: Your | K8: Landlord | L8: Landlord | N8: Your | P8: Your | Q8: Total | R8: Total
A9: REVENUE | D9: Quantity | E9: Quantity | F9: Units | G9: $/Unit | H9: $/Unit | I9: Total | J9: Total | K9: Share | L9: Share | M9: Landlord | N9: Landlord | O9: Tenant | P9: Tenant | Q9: (100 acres) | R9: ="(" & E7 & " acres)" -> ( acres)
B10: Alfalfa Hay | D10: 6.5 | F10: Ton | G10: 230 | I10: 1495 | J10: =E10*H10 -> 0 | K10: 0 | M10: 0 | N10: =J10*L10 -> 0 | O10: 1495 | P10: =+J10-N10 -> 0 | Q10: 149500 | R10: =+J10*E$7 -> 0
D11: 0 | G11: 0 | I11: 0 | J11: 0 | K11: 0 | M11: 0 | N11: 0 | O11: 0 | P11: =+J11-N11 -> 0 | Q11: 0 | R11: 0
D12: 0 | G12: 0 | I12: 0 | J12: 0 | K12: 0 | M12: 0 | N12: 0 | O12: 0 | P12: 0 | Q12: 0 | R12: 0
A13: Total Revenue | I13: 1495 | J13: =SUM(J10:J12) -> 0 | M13: 0 | N13: =SUM(N10:N12) -> 0 | O13: 1495 | P13: =SUM(P10:P12) -> 0 | Q13: 149500 | R13: =SUM(R10:R12) -> 0
Q14: Enterprise | R14: Enterprise
A15: VARIABLE COSTS | D15: Quantity | E15: Quantity | F15: Units | G15: $/Unit | H15: $/Unit | I15: Total | J15: Total | K15: Share | L15: Share | M15: Landlord | N15: Landlord | O15: Tenant | P15: Tenant | Q15: Total | R15: Total
A16: Production Costs
B17: Custom
C18: Herbicide Application | D18: 2 | F18: Acre | G18: 5.5 | I18: 11 | J18: =E18*H18 -> 0 | K18: 0 | M18: 0 | N18: =J18*L18 -> 0 | O18: 11 | P18: =+J18-N18 -> 0 | Q18: 1100 | R18: =+J18*E$7 -> 0
C19: Insecticide Application | D19: 3 | F19: Acre | G19: 5.5 | I19: 16.5 | J19: 0 | K19: 0 | M19: 0 | N19: 0 | O19: 16.5 | P19: 0 | Q19: 1650 | R19: 0
C20: Fertilizer Application | D20: 1 | F20: Acre | G20: 4.5 | I20: 4.5 | J20: 0 | K20: 0 | M20: 0 | N20: 0 | O20: 4.5 | P20: 0 | Q20: 450 | R20: 0
C21: Custom Baling - Alfalfa | D21: 6.5 | F21: Ton | G21: 32 | I21: 208 | J21: 0 | K21: 0 | M21: 0 | N21: 0 | O21: 208 | P21: 0 | Q21: 20800 | R21: 0
B22: Fertilizer
C23: Fertilizer (N) | D23: 30 | F23: Pound | G23: 0.25 | I23: 7.5 | J23: 0 | K23: 0 | M23: 0 | N23: 0 | O23: 7.5 | P23: 0 | Q23: 750 | R23: 0
C24: Fertilizer (P) | D24: 50 | F24: Pound | G24: 0.325 | I24: 16.25 | J24: 0 | K24: 0 | M24: 0 | N24: 0 | O24: 16.25 | P24: 0 | Q24: 1625 | R24: 0
C25: Sulfur | D25: 12 | F25: Pound | G25: 0.22 | I25: 2.64 | J25: 0 | K25: 0 | M25: 0 | N25: 0 | O25: 2.64 | P25: 0 | Q25: 264 | R25: 0
B26: Herbicide
C27: Valpar | D27: 2 | F27: Pint | G27: 11.875 | I27: 23.75 | J27: 0 | K27: 0 | M27: 0 | N27: 0 | O27: 23.75 | P27: 0 | Q27: 2375 | R27: 0
C28: Butyrac | D28: 2 | F28: Pint | G28: 5.2 | I28: 10.4 | J28: 0 | K28: 0 | M28: 0 | N28: 0 | O28: 10.4 | P28: 0 | Q28: 1040 | R28: 0
B29: Insecticide
C30: Insecticide - Alfalfa 1 | D30: 2 | F30: Pint | G30: 4.12 | I30: 8.24 | J30: 0 | K30: 0 | M30: 0 | N30: 0 | O30: 8.24 | P30: 0 | Q30: 824 | R30: 0
C31: Insecticide - Alfalfa 2 Baythroid | D31: 3 | F31: Fluid Ounce | G31: 1.0546875 | I31: 3.1640625 | J31: 0 | K31: 0 | M31: 0 | N31: 0 | O31: 3.1640625 | P31: 0 | Q31: 316.40625 | R31: 0
D32: 0 | G32: 0 | I32: 0 | J32: 0 | K32: 0 | M32: 0 | N32: 0 | O32: 0 | P32: 0 | Q32: 0 | R32: 0
D33: 0 | G33: 0 | I33: 0 | J33: 0 | K33: 0 | M33: 0 | N33: 0 | O33: 0 | P33: 0 | Q33: 0 | R33: 0
D34: 0 | G34: 0 | I34: 0 | J34: =E34*H34 -> 0 | K34: 0 | M34: 0 | N34: =J34*L34 -> 0 | O34: 0 | P34: =+J34-N34 -> 0 | Q34: 0 | R34: =+J34*E$7 -> 0
B35: Irrigation
C36: Energy Cost | D36: 10 | F36: AcreInch | G36: 4.5 | I36: 45 | J36: =E36*H36 -> 0 | K36: 0 | M36: 0 | N36: =J36*L36 -> 0 | O36: 45 | P36: =+J36-N36 -> 0 | Q36: 4500 | R36: =+J36*E$7 -> 0
C37: Irrigation Labor | D37: 0.96 | F37: Hour | G37: 14 | I37: 13.44 | J37: 0 | K37: 0 | M37: 0 | N37: 0 | O37: 13.44 | P37: 0 | Q37: 1344 | R37: 0
B38: Machinery Labor
C39: Tractors/Self-Propelled | D39: 0 | F39: Hour | G39: 14 | I39: 0 | J39: =E39*H39 -> 0 | K39: 0 | M39: 0 | N39: =J39*L39 -> 0 | O39: 0 | P39: =+J39-N39 -> 0 | Q39: 0 | R39: =+J39*E$7 -> 0
C40: Other Labor | D40: 0 | F40: Hour | G40: 14 | I40: 0 | J40: =E40*H40 -> 0 | K40: 0 | M40: 0 | N40: =J40*L40 -> 0 | O40: 0 | P40: =+J40-N40 -> 0 | Q40: 0 | R40: =+J40*E$7 -> 0
B42: Diesel Fuel
C43: Pickup/General Use Equipment | D43: 1 | F43: Acre | G43: 0 | I43: 0 | J43: =E43*H43 -> 0 | K43: 0 | M43: 0 | N43: =J43*L43 -> 0 | O43: 0 | P43: =+J43-N43 -> 0 | Q43: 0 | R43: =+J43*E$7 -> 0
C44: Tractors/Self-Propelled | D44: 0 | F44: Gallon | G44: 1.4 | I44: 0 | J44: =E44*H44 -> 0 | K44: 0 | M44: 0 | N44: =J44*L44 -> 0 | O44: 0 | P44: =+J44-N44 -> 0 | Q44: 0 | R44: =+J44*E$7 -> 0
B46: Gasoline
C47: Pickup/General Use Equipment | D47: 1 | F47: Acre | G47: 6.75 | I47: 6.75 | J47: =E47*H47 -> 0 | K47: 0 | M47: 0 | N47: =J47*L47 -> 0 | O47: 6.75 | P47: =+J47-N47 -> 0 | Q47: 675 | R47: =+J47*E$7 -> 0
C48: Tractors/Self-Propelled | D48: 0 | F48: Gallon | G48: 2 | I48: 0 | J48: =E48*H48 -> 0 | K48: 0 | M48: 0 | N48: =J48*L48 -> 0 | O48: 0 | P48: =+J48-N48 -> 0 | Q48: 0 | R48: =+J48*E$7 -> 0
B50: Repairs & Maintenance
C51: Pickup/General Use Equipment | D51: 1 | F51: Acre | G51: 26.25 | I51: 26.25 | J51: =E51*H51 -> 0 | K51: 0 | M51: 0 | N51: =J51*L51 -> 0 | O51: 26.25 | P51: =+J51-N51 -> 0 | Q51: 2625 | R51: =+J51*E$7 -> 0
C52: Irrigation Equipment | D52: 1 | F52: Acre | G52: 20 | I52: 20 | J52: 0 | K52: 0 | M52: 0 | N52: 0 | O52: 20 | P52: 0 | Q52: 2000 | R52: 0
C53: Tractors/Self-Propelled | D53: 1 | F53: Acre | G53: 0 | I53: 0 | J53: 0 | K53: 0 | M53: 0 | N53: 0 | O53: 0 | P53: 0 | Q53: 0 | R53: 0
C54: Implements | D54: 1 | F54: Acre | G54: 0 | I54: 0 | J54: 0 | K54: 0 | M54: 0 | N54: 0 | O54: 0 | P54: 0 | Q54: 0 | R54: 0
I55: 0 | J55: 0 | K55: 0 | M55: 0 | N55: 0 | O55: 0 | P55: 0 | Q55: 0 | R55: 0
I56: 0 | J56: 0 | K56: 0 | M56: 0 | N56: 0 | O56: 0 | P56: 0 | Q56: 0 | R56: 0
B57: Interest on Credit Line | G57: 0.065 | I57: 8.092793591 | J57: =+SUM(J17:J56)/2*H57 -> 0 | M57: 0 | N57: =+SUM(N17:N56)/2*L57 -> 0 | O57: 8.092793591 | P57: =+SUM(P17:P56)/2*L57 -> 0 | Q57: 809.2793591 | R57: =+J57*E$7 -> 0
A58: Total Variable Costs | I58: 431.4768561 | J58: =SUM(J18:J57) -> 0 | M58: 0 | N58: =SUM(N18:N57) -> 0 | O58: 431.4768561 | P58: =SUM(P18:P57) -> 0 | Q58: 43147.68561 | R58: =SUM(R18:R57) -> 0
A59: Planned Returns Above Variable Costs: | I59: 1063.523144 | J59: =+J13-J58 -> 0 | M59: 0 | N59: =+N13-N58 -> 0 | O59: 1063.523144 | P59: =+P13-P58 -> 0 | Q59: 106352.3144 | R59: =+R13-R58 -> 0
B60: Breakeven Price to Cover Variable Costs | G60: 66.38105478 | H60: =IF(E10=0,"n/a",(YVarExp-(YTotExp+YTotRet-J10))/E10) -> n/a | I60: Ton
Q61: Enterprise | R61: Enterprise
A62: FIXED COSTS | D62: Quantity | E62: Quantity | F62: Units | G62: $/Unit | H62: $/Unit | I62: Total | J62: Total | K62: Share | L62: Share | M62: Landlord | N62: Landlord | O62: Tenant | P62: Tenant | Q62: Total | R62: Total
B63: Machinery Depreciation
C64: Pickup/General Use Equipment | D64: 1 | F64: Acre | G64: 38.11375 | I64: 38.11375 | J64: =E64*H64 -> 0 | K64: 0 | M64: 0 | N64: =J64*L64 -> 0 | O64: 38.11375 | P64: =+J64-N64 -> 0 | Q64: 3811.375 | R64: =+J64*E$7 -> 0
C65: Irrigation Equipment | D65: 1 | F65: Acre | G65: 18 | I65: 18 | J65: 0 | K65: 0 | M65: 0 | N65: =J65*L65 -> 0 | O65: 18 | P65: 0 | Q65: 1800 | R65: 0
B66: Equipment Investment
C67: Pickup/General Use Equipment | D67: 296.93125 | F67: Dollars | G67: 0.055 | I67: 16.33121875 | J67: =E67*H67 -> 0 | K67: 0 | M67: 0 | N67: =J67*L67 -> 0 | O67: 16.33121875 | P67: =+J67-N67 -> 0 | Q67: 1633.121875 | R67: =+J67*E$7 -> 0
C68: Irrigation Equipment | D68: 525 | F68: Dollars | G68: 0.055 | I68: 28.875 | J68: 0 | K68: 0 | M68: 0 | N68: =J68*L68 -> 0 | O68: 28.875 | P68: 0 | Q68: 2887.5 | R68: 0
B69: Salaried Labor | D69: 1 | F69: Acre | G69: 0 | I69: 0 | J69: 0 | K69: 0 | M69: 0 | N69: =J69*L69 -> 0 | O69: 0 | P69: =+J69-N69 -> 0 | Q69: 0 | R69: =+J69*E$7 -> 0
B70: Management Fee, Owner/Operator Labor | D70: 1 | F70: Acre | G70: 0 | I70: 0 | J70: 0 | K70: 0 | M70: 0 | N70: 0 | O70: 0 | P70: 0 | Q70: 0 | R70: 0
B71: Allocated Establishment Cost | D71: 1 | F71: Acre | G71: 85.66 | I71: 85.66 | J71: 0 | K71: 0 | M71: 0 | N71: 0 | O71: 85.66 | P71: 0 | Q71: 8566 | R71: 0
B72: Cash Rent - Irrigated Alfalfa | D72: 1 | F72: Acre | G72: 90 | I72: 90 | J72: 0 | K72: 0 | M72: 0 | N72: 0 | O72: 90 | P72: 0 | Q72: 9000 | R72: 0
B73: Property Taxes | D73: 1 | F73: Acre | G73: 0 | I73: 0 | J73: 0 | K73: 0 | M73: 0 | N73: 0 | O73: 0 | P73: 0 | Q73: 0 | R73: 0
B74: Whole Farm Insurance | D74: 1 | F74: Acre | G74: 0 | I74: 0 | J74: 0 | K74: 0 | M74: 0 | N74: 0 | O74: 0 | P74: 0 | Q74: 0 | R74: 0
D75: 1 | G75: 0 | I75: 0 | J75: 0 | K75: 0 | M75: 0 | N75: 0 | O75: 0 | P75: 0 | Q75: 0 | R75: 0
D76: 1 | G76: 0 | I76: 0 | J76: =E76*H76 -> 0 | K76: 0 | M76: 0 | N76: 0 | O76: 0 | P76: 0 | Q76: 0 | R76: 0
A77: Total Fixed Costs | I77: 276.9799688 | J77: =+SUM(J64:J76) -> 0 | M77: 0 | N77: =+SUM(N64:N76) -> 0 | O77: 276.9799688 | P77: =+SUM(P64:P76) -> 0 | Q77: 27697.99688 | R77: =+SUM(R64:R76) -> 0
A78: Total Specified Costs | I78: 708.4568248 | J78: =+J58+J77 -> 0 | M78: 0 | N78: =+N58+N77 -> 0 | O78: 708.4568248 | P78: =+P58+P77 -> 0 | Q78: 70845.68248 | R78: =+R58+R77 -> 0
A80: Returns Above Specified Costs | I80: 786.5431752 | J80: =+J13-J78 -> 0 | M80: 0 | N80: =+N13-N78 -> 0 | O80: 786.5431752 | P80: =+P13-P78 -> 0 | Q80: 78654.31752 | R80: =+R13-R78 -> 0
A82: Breakeven Price to Cover Total Costs | G82: 108.9933577 | H82: =IF(E10=0,"n/a",(YTotExp-(YTotExp+YTotRet-J10))/E10) -> n/a | I82: Ton
D84: Example Breakeven Prices
B85: Example | C85: Example | D85: To Cover | G85: To Cover
B86: Yield | C86: Yield | D86: Variable | G86: Total
B87: Percent | C87: Ton | D87: Costs | G87: Costs
B88: 0.75 | C88: 4.875 | D88: 88.50807304 | G88: 145.3244769
B89: 0.9 | C89: 5.85 | D89: 73.75672754 | G89: 121.1037307
B90: 1 | C90: 6.5 | D90: 66.38105478 | G90: 108.9933577
B91: 1.1 | C91: 7.15 | D91: 60.34641344 | G91: 99.08487061
B92: 1.25 | C92: 8.125 | D92: 53.10484383 | G92: 87.19468613
A94: Francisco Abelló, Assistant Professor and Extension Specialist, Texas A&M AgriLife Extension, 940-647-3908
A96: Information presented is prepared solely as a general guide and not intended to recognize or predict the costs and returns from any one operation. Brand names are mentioned only as examples and imply no endorsement.

Sheet CottonDrylandSolid
A1: Projections for Planning Purposes Only -- Not to be Used without Updating
A2: 2021 Estimated Costs and Returns per Acre
A3: Dryland Cotton (Solid 40" Rows)
A4: Enter your name for this budget in the cell above.
A5: Enter Your Values in the cells highlighed in MAROON.
E6: Your Acres | R6: Your
C7: Crop Acres | D7: 640 | L7: Your | Q7: Enterprise | R7: Enterprise
E8: Your | H8: Your | I8: Cash | J8: Your | K8: Landlord | L8: Landlord | N8: Your | P8: Your | Q8: Total | R8: Total
A9: REVENUE | D9: Quantity | E9: Quantity | F9: Units | G9: $/Unit | H9: $/Unit | I9: Total | J9: Total | K9: Share | L9: Share | M9: Landlord | N9: Landlord | O9: Tenant | P9: Tenant | Q9: (640 acres) | R9: ="(" & E7 & " acres)" -> ( acres)
B10: Cotton Lint | D10: 440 | F10: Pound | G10: 0.74 | I10: 325.6 | J10: =E10*H10 -> 0 | K10: 0 | M10: 0 | N10: =J10*L10 -> 0 | O10: 325.6 | P10: =+J10-N10 -> 0 | Q10: 208384 | R10: =+J10*E$7 -> 0
D11: 0 | G11: 0 | I11: 0 | J11: 0 | K11: 0 | M11: 0 | N11: 0 | O11: 0 | P11: =+J11-N11 -> 0 | Q11: 0 | R11: 0
D12: 0 | G12: 0 | I12: 0 | J12: 0 | K12: 0 | M12: 0 | N12: 0 | O12: 0 | P12: 0 | Q12: 0 | R12: 0
A13: Total Revenue | I13: 325.6 | J13: =SUM(J10:J12) -> 0 | M13: 0 | N13: =SUM(N10:N12) -> 0 | O13: 325.6 | P13: =SUM(P10:P12) -> 0 | Q13: 208384 | R13: =SUM(R10:R12) -> 0
Q14: Enterprise | R14: Enterprise
A15: VARIABLE COSTS | D15: Quantity | E15: Quantity | F15: Units | G15: $/Unit | H15: $/Unit | I15: Total | J15: Total | K15: Share | L15: Share | M15: Landlord | N15: Landlord | O15: Tenant | P15: Tenant | Q15: Total | R15: Total
A16: Production Costs
B17: Custom
C18: Fertilizer Application | D18: 1 | F18: Acre | G18: 4.5 | I18: 4.5 | J18: =E18*H18 -> 0 | K18: 0 | M18: 0 | N18: =J18*L18 -> 0 | O18: 4.5 | P18: =+J18-N18 -> 0 | Q18: 2880 | R18: =+J18*E$7 -> 0
C19: Custom Stripping | D19: 480 | F19: Pound | G19: 0.12 | I19: 57.6 | J19: 0 | K19: 0 | M19: 0 | N19: 0 | O19: 57.6 | P19: 0 | Q19: 36864 | R19: 0
B20: Fertilizer
C21: Fertilizer (N) | D21: 57 | F21: Pound | G21: 0.25 | I21: 14.25 | J21: 0 | K21: 0 | M21: 0 | N21: 0 | O21: 14.25 | P21: 0 | Q21: 9120 | R21: 0
B22: Herbicide
C23: Roundup | D23: 4 | F23: Pint | G23: 1.875 | I23: 7.5 | J23: 0 | K23: 0 | M23: 0 | N23: 0 | O23: 7.5 | P23: 0 | Q23: 4800 | R23: 0
C24: Prowl | D24: 64 | F24: Ounces | G24: 0.51 | I24: 32.64 | J24: 0 | K24: 0 | M24: 0 | N24: 0 | O24: 32.64 | P24: 0 | Q24: 20889.6 | R24: 0
C25: Enlist Duo | D25: 4.7 | F25: Pint | G25: 3.515 | I25: 16.5205 | J25: 0 | K25: 0 | M25: 0 | N25: 0 | O25: 16.5205 | P25: 0 | Q25: 10573.12 | R25: 0
C26: Liberty | D26: 29 | F26: Ounce | G26: 0.39 | I26: 11.31 | J26: 0 | K26: 0 | M26: 0 | N26: 0 | O26: 11.31 | P26: 0 | Q26: 7238.4 | R26: 0
C27: Harvest Aid - Prep | D27: 1 | F27: Pint | G27: 3.75 | I27: 3.75 | J27: 0 | K27: 0 | M27: 0 | N27: 0 | O27: 3.75 | P27: 0 | Q27: 2400 | R27: 0
C28: Harvest Aid -Def | D28: 1 | F28: Ounce | G28: 0.546875 | I28: 0.546875 | J28: 0 | K28: 0 | M28: 0 | N28: 0 | O28: 0.546875 | P28: 0 | Q28: 350 | R28: 0
C29: 2,4D | D29: 1.5 | F29: Pint | G29: 2.7475 | I29: 4.12125 | J29: 0 | K29: 0 | M29: 0 | N29: 0 | O29: 4.12125 | P29: 0 | Q29: 2637.6 | R29: 0
B30: Insecticide
C31: Insecticide - Cotton | D31: 0.5 | F31: Pound | G31: 7.2 | I31: 3.6 | J31: 0 | K31: 0 | M31: 0 | N31: 0 | O31: 3.6 | P31: 0 | Q31: 2304 | R31: 0
C32: Prevathon | D32: 16 | F32: Ounce | G32: 0.83 | I32: 13.28 | J32: 0 | K32: 0 | M32: 0 | N32: 0 | O32: 13.28 | P32: 0 | Q32: 8499.2 | R32: 0
C33: Brigade | D33: 2 | F33: Ounce | G33: 1.74875 | I33: 3.4975 | J33: 0 | K33: 0 | M33: 0 | N33: 0 | O33: 3.4975 | P33: 0 | Q33: 2238.4 | R33: 0
B34: Miscellaneous
C35: Insurance - Dryland Cotton | D35: 1 | F35: Acre | G35: 15 | I35: 15 | J35: 0 | K35: 0 | M35: 0 | N35: 0 | O35: 15 | P35: 0 | Q35: 9600 | R35: 0
B36: Seed
C37: Cotton Seed | D37: 5 | F37: Pound | G37: 8 | I37: 40 | J37: 0 | K37: 0 | M37: 0 | N37: 0 | O37: 40 | P37: 0 | Q37: 25600 | R37: 0
D38: 0 | G38: 0 | I38: 0 | J38: 0 | K38: 0 | M38: 0 | N38: 0 | O38: 0 | P38: 0 | Q38: 0 | R38: 0
D39: 0 | G39: 0 | I39: 0 | J39: 0 | K39: 0 | M39: 0 | N39: 0 | O39: 0 | P39: 0 | Q39: 0 | R39: 0
D40: 0 | G40: 0 | I40: 0 | J40: =E40*H40 -> 0 | K40: 0 | M40: 0 | N40: =J40*L40 -> 0 | O40: 0 | P40: =+J40-N40 -> 0 | Q40: 0 | R40: =+J40*E$7 -> 0
B41: Machinery Labor
C42: Tractors/Self-Propelled | D42: 0.35 | F42: Hour | G42: 14 | I42: 4.9 | J42: =E42*H42 -> 0 | K42: 0 | M42: 0 | N42: =J42*L42 -> 0 | O42: 4.9 | P42: =+J42-N42 -> 0 | Q42: 3136 | R42: =+J42*E$7 -> 0
C43: Other Labor | D43: 0.42 | F43: Hour | G43: 14 | I43: 5.88 | J43: =E43*H43 -> 0 | K43: 0 | M43: 0 | N43: =J43*L43 -> 0 | O43: 5.88 | P43: =+J43-N43 -> 0 | Q43: 3763.2 | R43: =+J43*E$7 -> 0
B45: Diesel Fuel
C46: Pickup/General Use Equipment | D46: 1 | F46: Acre | G46: 0 | I46: 0 | J46: =E46*H46 -> 0 | K46: 0 | M46: 0 | N46: =J46*L46 -> 0 | O46: 0 | P46: =+J46-N46 -> 0 | Q46: 0 | R46: =+J46*E$7 -> 0
C47: Tractors/Self-Propelled | D47: 5.98 | F47: Gallon | G47: 1.4 | I47: 8.372 | J47: =E47*H47 -> 0 | K47: 0 | M47: 0 | N47: =J47*L47 -> 0 | O47: 8.372 | P47: =+J47-N47 -> 0 | Q47: 5358.08 | R47: =+J47*E$7 -> 0
B49: Gasoline
C50: Pickup/General Use Equipment | D50: 1 | F50: Acre | G50: 1.0546875 | I50: 1.0546875 | J50: =E50*H50 -> 0 | K50: 0 | M50: 0 | N50: =J50*L50 -> 0 | O50: 1.0546875 | P50: =+J50-N50 -> 0 | Q50: 675 | R50: =+J50*E$7 -> 0
C51: Tractors/Self-Propelled | D51: 0 | F51: Gallon | G51: 2 | I51: 0 | J51: =E51*H51 -> 0 | K51: 0 | M51: 0 | N51: =J51*L51 -> 0 | O51: 0 | P51: =+J51-N51 -> 0 | Q51: 0 | R51: =+J51*E$7 -> 0
B53: Repairs & Maintenance
C54: Pickup/General Use Equipment | D54: 1 | F54: Acre | G54: 0.3515625 | I54: 0.3515625 | J54: =E54*H54 -> 0 | K54: 0 | M54: 0 | N54: =J54*L54 -> 0 | O54: 0.3515625 | P54: =+J54-N54 -> 0 | Q54: 225 | R54: =+J54*E$7 -> 0
C55: Irrigation Equipment | D55: 1 | F55: Acre | G55: 0 | I55: 0 | J55: 0 | K55: 0 | M55: 0 | N55: 0 | O55: 0 | P55: 0 | Q55: 0 | R55: 0
C56: Tractors/Self-Propelled | D56: 1 | F56: Acre | G56: 16.23030297 | I56: 16.23030297 | J56: 0 | K56: 0 | M56: 0 | N56: 0 | O56: 16.23030297 | P56: 0 | Q56: 10387.3939 | R56: 0
C57: Implements | D57: 1 | F57: Acre | G57: 6.920615113 | I57: 6.920615113 | J57: 0 | K57: 0 | M57: 0 | N57: 0 | O57: 6.920615113 | P57: 0 | Q57: 4429.193672 | R57: 0
I58: 0 | J58: 0 | K58: 0 | M58: 0 | N58: 0 | O58: 0 | P58: 0 | Q58: 0 | R58: 0
I59: 0 | J59: 0 | K59: 0 | M59: 0 | N59: 0 | O59: 0 | P59: 0 | Q59: 0 | R59: 0
B60: Interest on Credit Line | G60: 0.065 | I60: 34.61467468 | J60: =+SUM(J17:J59)/2*H60 -> 0 | M60: 0 | N60: =+SUM(N17:N59)/2*L60 -> 0 | O60: 34.61467468 | P60: =+SUM(P17:P59)/2*L60 -> 0 | Q60: 22153.3918 | R60: =+J60*E$7 -> 0
A61: Total Variable Costs | I61: 306.4399678 | J61: =SUM(J18:J60) -> 0 | M61: 0 | N61: =SUM(N18:N60) -> 0 | O61: 306.4399678 | P61: =SUM(P18:P60) -> 0 | Q61: 196121.5794 | R61: =SUM(R18:R60) -> 0
A62: Planned Returns Above Variable Costs: | I62: 19.16003223 | J62: =+J13-J61 -> 0 | M62: 0 | N62: =+N13-N61 -> 0 | O62: 19.16003223 | P62: =+P13-P61 -> 0 | Q62: 12262.42063 | R62: =+R13-R61 -> 0
B63: Breakeven Price to Cover Variable Costs | G63: 0.6964544722 | H63: =IF(E10=0,"n/a",(YVarExp-(YTotExp+YTotRet-J10))/E10) -> n/a | I63: Pound
Q64: Enterprise | R64: Enterprise
A65: FIXED COSTS | D65: Quantity | E65: Quantity | F65: Units | G65: $/Unit | H65: $/Unit | I65: Total | J65: Total | K65: Share | L65: Share | M65: Landlord | N65: Landlord | O65: Tenant | P65: Tenant | Q65: Total | R65: Total
B66: Machinery Depreciation
C67: Pickup/General Use Equipment | D67: 1 | F67: Acre | G67: 0.4880859375 | I67: 0.4880859375 | J67: =E67*H67 -> 0 | K67: 0 | M67: 0 | N67: =J67*L67 -> 0 | O67: 0.4880859375 | P67: =+J67-N67 -> 0 | Q67: 312.375 | R67: =+J67*E$7 -> 0
C68: Tractors/Self-Propelled | D68: 1 | F68: Acre | G68: 21.00555751 | I68: 21.00555751 | J68: 0 | K68: 0 | M68: 0 | N68: =J68*L68 -> 0 | O68: 21.00555751 | P68: 0 | Q68: 13443.55681 | R68: 0
C69: Implements | D69: 1 | F69: Acre | G69: 9.264415976 | I69: 9.264415976 | J69: 0 | K69: 0 | M69: 0 | N69: =J69*L69 -> 0 | O69: 9.264415976 | P69: 0 | Q69: 5929.226224 | R69: 0
B70: Equipment Investment
C71: Pickup/General Use Equipment | D71: 3.418945312 | F71: Dollars | G71: 0.055 | I71: 0.1880419922 | J71: =E71*H71 -> 0 | K71: 0 | M71: 0 | N71: =J71*L71 -> 0 | O71: 0.1880419922 | P71: =+J71-N71 -> 0 | Q71: 120.346875 | R71: =+J71*E$7 -> 0
C72: Tractors/Self-Propelled | D72: 161.6726929 | F72: Dollars | G72: 0.055 | I72: 8.891998111 | J72: 0 | K72: 0 | M72: 0 | N72: =J72*L72 -> 0 | O72: 8.891998111 | P72: 0 | Q72: 5690.878791 | R72: 0
C73: Implements | D73: 39.63111278 | F73: Dollars | G73: 0.055 | I73: 2.179711203 | J73: 0 | K73: 0 | M73: 0 | N73: =J73*L73 -> 0 | O73: 2.179711203 | P73: 0 | Q73: 1395.01517 | R73: 0
B74: Salaried Labor | D74: 1 | F74: Acre | G74: 0 | I74: 0 | J74: 0 | K74: 0 | M74: 0 | N74: =J74*L74 -> 0 | O74: 0 | P74: =+J74-N74 -> 0 | Q74: 0 | R74: =+J74*E$7 -> 0
B75: Management Fee, Owner/Operator Labor | D75: 1 | F75: Acre | G75: 0 | I75: 0 | J75: 0 | K75: 0 | M75: 0 | N75: 0 | O75: 0 | P75: 0 | Q75: 0 | R75: 0
B76: Allocated Establishment Cost | D76: 1 | F76: Acre | G76: 0 | I76: 0 | J76: 0 | K76: 0 | M76: 0 | N76: 0 | O76: 0 | P76: 0 | Q76: 0 | R76: 0
B77: Cash Rent - Dryland Cotton | D77: 1 | F77: Acre | G77: 30 | I77: 30 | J77: 0 | K77: 0 | M77: 0 | N77: 0 | O77: 30 | P77: 0 | Q77: 19200 | R77: 0
B78: Property Taxes | D78: 1 | F78: Acre | G78: 0 | I78: 0 | J78: 0 | K78: 0 | M78: 0 | N78: 0 | O78: 0 | P78: 0 | Q78: 0 | R78: 0
B79: Whole Farm Insurance | D79: 1 | F79: Acre | G79: 0 | I79: 0 | J79: 0 | K79: 0 | M79: 0 | N79: 0 | O79: 0 | P79: 0 | Q79: 0 | R79: 0
D80: 1 | G80: 0 | I80: 0 | J80: 0 | K80: 0 | M80: 0 | N80: 0 | O80: 0 | P80: 0 | Q80: 0 | R80: 0
D81: 1 | G81: 0 | I81: 0 | J81: =E81*H81 -> 0 | K81: 0 | M81: 0 | N81: 0 | O81: 0 | P81: 0 | Q81: 0 | R81: 0
A82: Total Fixed Costs | I82: 72.01781073 | J82: =+SUM(J67:J81) -> 0 | M82: 0 | N82: =+SUM(N67:N81) -> 0 | O82: 72.01781073 | P82: =+SUM(P67:P81) -> 0 | Q82: 46091.39887 | R82: =+SUM(R67:R81) -> 0
A83: Total Specified Costs | I83: 378.4577785 | J83: =+J61+J82 -> 0 | M83: 0 | N83: =+N61+N82 -> 0 | O83: 378.4577785 | P83: =+P61+P82 -> 0 | Q83: 242212.9782 | R83: =+R61+R82 -> 0
A85: Returns Above Specified Costs | I85: -52.8577785 | J85: =+J13-J83 -> 0 | M85: 0 | N85: =+N13-N83 -> 0 | O85: -52.8577785 | P85: =+P13-P83 -> 0 | Q85: -33828.97824 | R85: =+R13-R83 -> 0
A87: Breakeven Price to Cover Total Costs | G87: 0.8601313148 | H87: =IF(E10=0,"n/a",(YTotExp-(YTotExp+YTotRet-J10))/E10) -> n/a | I87: Pound
D89: Example Breakeven Prices
B90: Example | C90: Example | D90: To Cover | G90: To Cover
B91: Yield | C91: Yield | D91: Variable | G91: Total
B92: Percent | C92: Pound | D92: Costs | G92: Costs
B93: 0.75 | C93: 330 | D93: 0.9286059629 | G93: 1.146841753
B94: 0.9 | C94: 396 | D94: 0.7738383025 | G94: 0.9557014609
B95: 1 | C95: 440 | D95: 0.6964544722 | G95: 0.8601313148
B96: 1.1 | C96: 484 | D96: 0.6331404293 | G96: 0.7819375589
B97: 1.25 | C97: 550 | D97: 0.5571635778 | G97: 0.6881050518
A99: Francisco Abelló, Assistant Professor and Extension Specialist, Texas A&M AgriLife Extension, 940-647-3908
A101: Information presented is prepared solely as a general guide and not intended to recognize or predict the costs and returns from any one operation. Brand names are mentioned only as examples and imply no endorsement.

Sheet Red Till Irrig Cotton
A1: Projections for Planning Purposes Only -- Not to be Used without Updating
A2: 2021 Estimated Costs and Returns per Acre
A3: Cotton - Red Till Irrig
A4: Enter your name for this budget in the cell above.
A5: Enter Your Values in the cells highlighed in MAROON.
E6: Your Acres | R6: Your
C7: Crop Acres | D7: 640 | L7: Your | Q7: Enterprise | R7: Enterprise
E8: Your | H8: Your | I8: Cash | J8: Your | K8: Landlord | L8: Landlord | N8: Your | P8: Your | Q8: Total | R8: Total
A9: REVENUE | D9: Quantity | E9: Quantity | F9: Units | G9: $/Unit | H9: $/Unit | I9: Total | J9: Total | K9: Share | L9: Share | M9: Landlord | N9: Landlord | O9: Tenant | P9: Tenant | Q9: (640 acres) | R9: ="(" & E7 & " acres)" -> ( acres)
B10: Cotton Lint | D10: 1267 | F10: Pound | G10: 0.74 | I10: 937.58 | J10: =E10*H10 -> 0 | K10: 0 | M10: 0 | N10: =J10*L10 -> 0 | O10: 937.58 | P10: =+J10-N10 -> 0 | Q10: 600051.2 | R10: =+J10*E$7 -> 0
D11: 0 | G11: 0 | I11: 0 | J11: 0 | K11: 0 | M11: 0 | N11: 0 | O11: 0 | P11: =+J11-N11 -> 0 | Q11: 0 | R11: 0
D12: 0 | G12: 0 | I12: 0 | J12: 0 | K12: 0 | M12: 0 | N12: 0 | O12: 0 | P12: 0 | Q12: 0 | R12: 0
A13: Total Revenue | I13: 937.58 | J13: =SUM(J10:J12) -> 0 | M13: 0 | N13: =SUM(N10:N12) -> 0 | O13: 937.58 | P13: =SUM(P10:P12) -> 0 | Q13: 600051.2 | R13: =SUM(R10:R12) -> 0
Q14: Enterprise | R14: Enterprise
A15: VARIABLE COSTS | D15: Quantity | E15: Quantity | F15: Units | G15: $/Unit | H15: $/Unit | I15: Total | J15: Total | K15: Share | L15: Share | M15: Landlord | N15: Landlord | O15: Tenant | P15: Tenant | Q15: Total | R15: Total
A16: Production Costs
B17: Custom
C18: Fertilizer Application | D18: 1 | F18: Acre | G18: 4.5 | I18: 4.5 | J18: =E18*H18 -> 0 | K18: 0 | M18: 0 | N18: =J18*L18 -> 0 | O18: 4.5 | P18: =+J18-N18 -> 0 | Q18: 2880 | R18: =+J18*E$7 -> 0
C19: Custom Stripping | D19: 1267 | F19: Pound | G19: 0.12 | I19: 152.04 | J19: 0 | K19: 0 | M19: 0 | N19: 0 | O19: 152.04 | P19: 0 | Q19: 97305.6 | R19: 0
B20: Fertilizer
C21: Fertilizer (N) | D21: 100 | F21: Pound | G21: 0.25 | I21: 25 | J21: 0 | K21: 0 | M21: 0 | N21: 0 | O21: 25 | P21: 0 | Q21: 16000 | R21: 0
C22: Fertilizer (P) | D22: 50 | F22: Pound | G22: 0.325 | I22: 16.25 | J22: 0 | K22: 0 | M22: 0 | N22: 0 | O22: 16.25 | P22: 0 | Q22: 10400 | R22: 0
B23: Herbicide
C24: Roundup | D24: 4 | F24: Pint | G24: 1.875 | I24: 7.5 | J24: 0 | K24: 0 | M24: 0 | N24: 0 | O24: 7.5 | P24: 0 | Q24: 4800 | R24: 0
C25: Prowl | D25: 64 | F25: Ounces | G25: 0.51 | I25: 32.64 | J25: 0 | K25: 0 | M25: 0 | N25: 0 | O25: 32.64 | P25: 0 | Q25: 20889.6 | R25: 0
C26: Enlist Duo | D26: 4.7 | F26: Pint | G26: 3.515 | I26: 16.5205 | J26: 0 | K26: 0 | M26: 0 | N26: 0 | O26: 16.5205 | P26: 0 | Q26: 10573.12 | R26: 0
C27: Liberty | D27: 29 | F27: Ounce | G27: 0.39 | I27: 11.31 | J27: 0 | K27: 0 | M27: 0 | N27: 0 | O27: 11.31 | P27: 0 | Q27: 7238.4 | R27: 0
C28: Harvest Aid - Prep | D28: 1 | F28: Pint | G28: 3.75 | I28: 3.75 | J28: 0 | K28: 0 | M28: 0 | N28: 0 | O28: 3.75 | P28: 0 | Q28: 2400 | R28: 0
C29: Harvest Aid -Def | D29: 1 | F29: Ounce | G29: 0.546875 | I29: 0.546875 | J29: 0 | K29: 0 | M29: 0 | N29: 0 | O29: 0.546875 | P29: 0 | Q29: 350 | R29: 0
C30: 2,4D | D30: 1.5 | F30: Pint | G30: 2.7475 | I30: 4.12125 | J30: 0 | K30: 0 | M30: 0 | N30: 0 | O30: 4.12125 | P30: 0 | Q30: 2637.6 | R30: 0
B31: Insecticide
C32: Insecticide - Cotton | D32: 0.5 | F32: Pound | G32: 7.2 | I32: 3.6 | J32: 0 | K32: 0 | M32: 0 | N32: 0 | O32: 3.6 | P32: 0 | Q32: 2304 | R32: 0
C33: Prevathon | D33: 16 | F33: Ounce | G33: 0.83 | I33: 13.28 | J33: 0 | K33: 0 | M33: 0 | N33: 0 | O33: 13.28 | P33: 0 | Q33: 8499.2 | R33: 0
C34: Brigade | D34: 2 | F34: Ounce | G34: 1.74875 | I34: 3.4975 | J34: 0 | K34: 0 | M34: 0 | N34: 0 | O34: 3.4975 | P34: 0 | Q34: 2238.4 | R34: 0
B35: Miscellaneous
C36: Insurance - Dryland Cotton | D36: 1 | F36: Acre | G36: 15 | I36: 15 | J36: 0 | K36: 0 | M36: 0 | N36: 0 | O36: 15 | P36: 0 | Q36: 9600 | R36: 0
B37: Seed
C38: Cotton Seed | D38: 11.5 | F38: Pound | G38: 8 | I38: 92 | J38: 0 | K38: 0 | M38: 0 | N38: 0 | O38: 92 | P38: 0 | Q38: 58880 | R38: 0
D39: 0 | G39: 0 | I39: 0 | J39: 0 | K39: 0 | M39: 0 | N39: 0 | O39: 0 | P39: 0 | Q39: 0 | R39: 0
D40: 0 | G40: 0 | I40: 0 | J40: 0 | K40: 0 | M40: 0 | N40: 0 | O40: 0 | P40: 0 | Q40: 0 | R40: 0
D41: 0 | G41: 0 | I41: 0 | J41: =E41*H41 -> 0 | K41: 0 | M41: 0 | N41: =J41*L41 -> 0 | O41: 0 | P41: =+J41-N41 -> 0 | Q41: 0 | R41: =+J41*E$7 -> 0
B42: Irrigation
C43: Energy Cost | D43: 11.8 | F43: AcreInch | G43: 4.5 | I43: 53.1 | J43: =E43*H43 -> 0 | K43: 0 | M43: 0 | N43: =J43*L43 -> 0 | O43: 53.1 | P43: =+J43-N43 -> 0 | Q43: 33984 | R43: =+J43*E$7 -> 0
C44: Irrigation Labor | D44: 0.96 | F44: Hour | G44: 14 | I44: 13.44 | J44: 0 | K44: 0 | M44: 0 | N44: 0 | O44: 13.44 | P44: 0 | Q44: 8601.6 | R44: 0
B45: Machinery Labor
C46: Tractors/Self-Propelled | D46: 0.37 | F46: Hour | G46: 14 | I46: 5.18 | J46: =E46*H46 -> 0 | K46: 0 | M46: 0 | N46: =J46*L46 -> 0 | O46: 5.18 | P46: =+J46-N46 -> 0 | Q46: 3315.2 | R46: =+J46*E$7 -> 0
C47: Other Labor | D47: 0.45 | F47: Hour | G47: 14 | I47: 6.3 | J47: =E47*H47 -> 0 | K47: 0 | M47: 0 | N47: =J47*L47 -> 0 | O47: 6.3 | P47: =+J47-N47 -> 0 | Q47: 4032 | R47: =+J47*E$7 -> 0
B49: Diesel Fuel
C50: Pickup/General Use Equipment | D50: 1 | F50: Acre | G50: 0 | I50: 0 | J50: =E50*H50 -> 0 | K50: 0 | M50: 0 | N50: =J50*L50 -> 0 | O50: 0 | P50: =+J50-N50 -> 0 | Q50: 0 | R50: =+J50*E$7 -> 0
C51: Tractors/Self-Propelled | D51: 4.64 | F51: Gallon | G51: 1.4 | I51: 6.496 | J51: =E51*H51 -> 0 | K51: 0 | M51: 0 | N51: =J51*L51 -> 0 | O51: 6.496 | P51: =+J51-N51 -> 0 | Q51: 4157.44 | R51: =+J51*E$7 -> 0
B53: Gasoline
C54: Pickup/General Use Equipment | D54: 1 | F54: Acre | G54: 1.0546875 | I54: 1.0546875 | J54: =E54*H54 -> 0 | K54: 0 | M54: 0 | N54: =J54*L54 -> 0 | O54: 1.0546875 | P54: =+J54-N54 -> 0 | Q54: 675 | R54: =+J54*E$7 -> 0
C55: Tractors/Self-Propelled | D55: 0 | F55: Gallon | G55: 2 | I55: 0 | J55: =E55*H55 -> 0 | K55: 0 | M55: 0 | N55: =J55*L55 -> 0 | O55: 0 | P55: =+J55-N55 -> 0 | Q55: 0 | R55: =+J55*E$7 -> 0
B57: Repairs & Maintenance
C58: Pickup/General Use Equipment | D58: 1 | F58: Acre | G58: 0.3515625 | I58: 0.3515625 | J58: =E58*H58 -> 0 | K58: 0 | M58: 0 | N58: =J58*L58 -> 0 | O58: 0.3515625 | P58: =+J58-N58 -> 0 | Q58: 225 | R58: =+J58*E$7 -> 0
C59: Irrigation Equipment | D59: 1 | F59: Acre | G59: 13.11334 | I59: 13.11334 | J59: 0 | K59: 0 | M59: 0 | N59: 0 | O59: 13.11334 | P59: 0 | Q59: 8392.5376 | R59: 0
C60: Tractors/Self-Propelled | D60: 1 | F60: Acre | G60: 12.36298875 | I60: 12.36298875 | J60: 0 | K60: 0 | M60: 0 | N60: 0 | O60: 12.36298875 | P60: 0 | Q60: 7912.312802 | R60: 0
C61: Implements | D61: 1 | F61: Acre | G61: 8.961917345 | I61: 8.961917345 | J61: 0 | K61: 0 | M61: 0 | N61: 0 | O61: 8.961917345 | P61: 0 | Q61: 5735.627101 | R61: 0
I62: 0 | J62: 0 | K62: 0 | M62: 0 | N62: 0 | O62: 0 | P62: 0 | Q62: 0 | R62: 0
I63: 0 | J63: 0 | K63: 0 | M63: 0 | N63: 0 | O63: 0 | P63: 0 | Q63: 0 | R63: 0
B64: Interest on Credit Line | G64: 0.065 | I64: 12.92747496 | J64: =+SUM(J17:J63)/2*H64 -> 0 | M64: 0 | N64: =+SUM(N17:N63)/2*L64 -> 0 | O64: 12.92747496 | P64: =+SUM(P17:P63)/2*L64 -> 0 | Q64: 8273.583975 | R64: =+J64*E$7 -> 0
A65: Total Variable Costs | I65: 534.8440961 | J65: =SUM(J18:J64) -> 0 | M65: 0 | N65: =SUM(N18:N64) -> 0 | O65: 534.8440961 | P65: =SUM(P18:P64) -> 0 | Q65: 342300.2215 | R65: =SUM(R18:R64) -> 0
A66: Planned Returns Above Variable Costs: | I66: 402.7359039 | J66: =+J13-J65 -> 0 | M66: 0 | N66: =+N13-N65 -> 0 | O66: 402.7359039 | P66: =+P13-P65 -> 0 | Q66: 257750.9785 | R66: =+R13-R65 -> 0
B67: Breakeven Price to Cover Variable Costs | G67: 0.422134251 | H67: =IF(E10=0,"n/a",(YVarExp-(YTotExp+YTotRet-J10))/E10) -> n/a | I67: Pound
Q68: Enterprise | R68: Enterprise
A69: FIXED COSTS | D69: Quantity | E69: Quantity | F69: Units | G69: $/Unit | H69: $/Unit | I69: Total | J69: Total | K69: Share | L69: Share | M69: Landlord | N69: Landlord | O69: Tenant | P69: Tenant | Q69: Total | R69: Total
B70: Machinery Depreciation
C71: Pickup/General Use Equipment | D71: 1 | F71: Acre | G71: 0.4880859375 | I71: 0.4880859375 | J71: =E71*H71 -> 0 | K71: 0 | M71: 0 | N71: =J71*L71 -> 0 | O71: 0.4880859375 | P71: =+J71-N71 -> 0 | Q71: 312.375 | R71: =+J71*E$7 -> 0
C72: Irrigation Equipment | D72: 1 | F72: Acre | G72: 24.375 | I72: 24.375 | J72: 0 | K72: 0 | M72: 0 | N72: =J72*L72 -> 0 | O72: 24.375 | P72: 0 | Q72: 15600 | R72: 0
C73: Tractors/Self-Propelled | D73: 1 | F73: Acre | G73: 17.00933282 | I73: 17.00933282 | J73: 0 | K73: 0 | M73: 0 | N73: =J73*L73 -> 0 | O73: 17.00933282 | P73: 0 | Q73: 10885.973 | R73: 0
C74: Implements | D74: 1 | F74: Acre | G74: 11.88544211 | I74: 11.88544211 | J74: 0 | K74: 0 | M74: 0 | N74: =J74*L74 -> 0 | O74: 11.88544211 | P74: 0 | Q74: 7606.682949 | R74: 0
B75: Equipment Investment
C76: Pickup/General Use Equipment | D76: 3.418945312 | F76: Dollars | G76: 0.055 | I76: 0.1880419922 | J76: =E76*H76 -> 0 | K76: 0 | M76: 0 | N76: =J76*L76 -> 0 | O76: 0.1880419922 | P76: =+J76-N76 -> 0 | Q76: 120.346875 | R76: =+J76*E$7 -> 0
C77: Irrigation Equipment | D77: 710.9375 | F77: Dollars | G77: 0.055 | I77: 39.1015625 | J77: 0 | K77: 0 | M77: 0 | N77: =J77*L77 -> 0 | O77: 39.1015625 | P77: 0 | Q77: 25025 | R77: 0
C78: Tractors/Self-Propelled | D78: 130.5408134 | F78: Dollars | G78: 0.055 | I78: 7.179744739 | J78: 0 | K78: 0 | M78: 0 | N78: =J78*L78 -> 0 | O78: 7.179744739 | P78: 0 | Q78: 4595.036633 | R78: 0
C79: Implements | D79: 50.84328013 | F79: Dollars | G79: 0.055 | I79: 2.796380407 | J79: 0 | K79: 0 | M79: 0 | N79: =J79*L79 -> 0 | O79: 2.796380407 | P79: 0 | Q79: 1789.68346 | R79: 0
B80: Salaried Labor | D80: 1 | F80: Acre | G80: 0 | I80: 0 | J80: 0 | K80: 0 | M80: 0 | N80: =J80*L80 -> 0 | O80: 0 | P80: =+J80-N80 -> 0 | Q80: 0 | R80: =+J80*E$7 -> 0
B81: Management Fee, Owner/Operator Labor | D81: 1 | F81: Acre | G81: 0 | I81: 0 | J81: 0 | K81: 0 | M81: 0 | N81: 0 | O81: 0 | P81: 0 | Q81: 0 | R81: 0
B82: Allocated Establishment Cost | D82: 1 | F82: Acre | G82: 0 | I82: 0 | J82: 0 | K82: 0 | M82: 0 | N82: 0 | O82: 0 | P82: 0 | Q82: 0 | R82: 0
B83: Cash Rent - Irrigated Cotton | D83: 1 | F83: Acre | G83: 90 | I83: 90 | J83: 0 | K83: 0 | M83: 0 | N83: 0 | O83: 90 | P83: 0 | Q83: 57600 | R83: 0
B84: Property Taxes | D84: 1 | F84: Acre | G84: 0 | I84: 0 | J84: 0 | K84: 0 | M84: 0 | N84: 0 | O84: 0 | P84: 0 | Q84: 0 | R84: 0
B85: Whole Farm Insurance | D85: 1 | F85: Acre | G85: 0 | I85: 0 | J85: 0 | K85: 0 | M85: 0 | N85: 0 | O85: 0 | P85: 0 | Q85: 0 | R85: 0
D86: 1 | G86: 0 | I86: 0 | J86: 0 | K86: 0 | M86: 0 | N86: 0 | O86: 0 | P86: 0 | Q86: 0 | R86: 0
D87: 1 | G87: 0 | I87: 0 | J87: =E87*H87 -> 0 | K87: 0 | M87: 0 | N87: 0 | O87: 0 | P87: 0 | Q87: 0 | R87: 0
A88: Total Fixed Costs | I88: 193.0235905 | J88: =+SUM(J71:J87) -> 0 | M88: 0 | N88: =+SUM(N71:N87) -> 0 | O88: 193.0235905 | P88: =+SUM(P71:P87) -> 0 | Q88: 123535.0979 | R88: =+SUM(R71:R87) -> 0
A89: Total Specified Costs | I89: 727.8676866 | J89: =+J65+J88 -> 0 | M89: 0 | N89: =+N65+N88 -> 0 | O89: 727.8676866 | P89: =+P65+P88 -> 0 | Q89: 465835.3194 | R89: =+R65+R88 -> 0
A91: Returns Above Specified Costs | I91: 209.7123134 | J91: =+J13-J89 -> 0 | M91: 0 | N91: =+N13-N89 -> 0 | O91: 209.7123134 | P91: =+P13-P89 -> 0 | Q91: 134215.8806 | R91: =+R13-R89 -> 0
A93: Breakeven Price to Cover Total Costs | G93: 0.5744812049 | H93: =IF(E10=0,"n/a",(YTotExp-(YTotExp+YTotRet-J10))/E10) -> n/a | I93: Pound
D95: Example Breakeven Prices
B96: Example | C96: Example | D96: To Cover | G96: To Cover
B97: Yield | C97: Yield | D97: Variable | G97: Total
B98: Percent | C98: Pound | D98: Costs | G98: Costs
B99: 0.75 | C99: 950.25 | D99: 0.562845668 | G99: 0.7659749398
B100: 0.9 | C100: 1140.3 | D100: 0.4690380567 | G100: 0.6383124498
B101: 1 | C101: 1267 | D101: 0.422134251 | G101: 0.5744812049
B102: 1.1 | C102: 1393.7 | D102: 0.38375841 | G102: 0.5222556408
B103: 1.25 | C103: 1583.75 | D103: 0.3377074008 | G103: 0.4595849639
A105: Francisco Abelló, Assistant Professor and Extension Specialist, Texas A&M AgriLife Extension, 940-647-3908
A107: Information presented is prepared solely as a general guide and not intended to recognize or predict the costs and returns from any one operation. Brand names are mentioned only as examples and imply no endorsement.

Sheet Conv M Irrig Cotton
A1: Projections for Planning Purposes Only -- Not to be Used without Updating
A2: 2021 Estimated Costs and Returns per Acre
A3: Conventional Irrig Cotton
A4: Enter your name for this budget in the cell above.
A5: Enter Your Values in the cells highlighed in MAROON.
E6: Your Acres | R6: Your
C7: Crop Acres | D7: 640 | L7: Your | Q7: Enterprise | R7: Enterprise
E8: Your | H8: Your | I8: Cash | J8: Your | K8: Landlord | L8: Landlord | N8: Your | P8: Your | Q8: Total | R8: Total
A9: REVENUE | D9: Quantity | E9: Quantity | F9: Units | G9: $/Unit | H9: $/Unit | I9: Total | J9: Total | K9: Share | L9: Share | M9: Landlord | N9: Landlord | O9: Tenant | P9: Tenant | Q9: (640 acres) | R9: ="(" & E7 & " acres)" -> ( acres)
B10: Cotton Lint | D10: 1312 | F10: Pound | G10: 0.74 | I10: 970.88 | J10: =E10*H10 -> 0 | K10: 0 | M10: 0 | N10: =J10*L10 -> 0 | O10: 970.88 | P10: =+J10-N10 -> 0 | Q10: 621363.2 | R10: =+J10*E$7 -> 0
D11: 0 | G11: 0 | I11: 0 | J11: 0 | K11: 0 | M11: 0 | N11: 0 | O11: 0 | P11: =+J11-N11 -> 0 | Q11: 0 | R11: 0
D12: 0 | G12: 0 | I12: 0 | J12: 0 | K12: 0 | M12: 0 | N12: 0 | O12: 0 | P12: 0 | Q12: 0 | R12: 0
A13: Total Revenue | I13: 970.88 | J13: =SUM(J10:J12) -> 0 | M13: 0 | N13: =SUM(N10:N12) -> 0 | O13: 970.88 | P13: =SUM(P10:P12) -> 0 | Q13: 621363.2 | R13: =SUM(R10:R12) -> 0
Q14: Enterprise | R14: Enterprise
A15: VARIABLE COSTS | D15: Quantity | E15: Quantity | F15: Units | G15: $/Unit | H15: $/Unit | I15: Total | J15: Total | K15: Share | L15: Share | M15: Landlord | N15: Landlord | O15: Tenant | P15: Tenant | Q15: Total | R15: Total
A16: Production Costs
B17: Custom
C18: Fertilizer Application | D18: 1 | F18: Acre | G18: 4.5 | I18: 4.5 | J18: =E18*H18 -> 0 | K18: 0 | M18: 0 | N18: =J18*L18 -> 0 | O18: 4.5 | P18: =+J18-N18 -> 0 | Q18: 2880 | R18: =+J18*E$7 -> 0
C19: Custom Stripping | D19: 1312 | F19: Pound | G19: 0.12 | I19: 157.44 | J19: 0 | K19: 0 | M19: 0 | N19: 0 | O19: 157.44 | P19: 0 | Q19: 100761.6 | R19: 0
C20: Herbicide Application | D20: 4 | F20: Acre | G20: 5.5 | I20: 22 | J20: 0 | K20: 0 | M20: 0 | N20: 0 | O20: 22 | P20: 0 | Q20: 14080 | R20: 0
B21: Fertilizer
C22: Fertilizer (N) | D22: 100 | F22: Pound | G22: 0.25 | I22: 25 | J22: 0 | K22: 0 | M22: 0 | N22: 0 | O22: 25 | P22: 0 | Q22: 16000 | R22: 0
C23: Fertilizer (P) | D23: 50 | F23: Pound | G23: 0.325 | I23: 16.25 | J23: 0 | K23: 0 | M23: 0 | N23: 0 | O23: 16.25 | P23: 0 | Q23: 10400 | R23: 0
B24: Herbicide
C25: Prowl | D25: 64 | F25: Ounces | G25: 0.51 | I25: 32.64 | J25: 0 | K25: 0 | M25: 0 | N25: 0 | O25: 32.64 | P25: 0 | Q25: 20889.6 | R25: 0
C26: Enlist Duo | D26: 4.7 | F26: Pint | G26: 3.515 | I26: 16.5205 | J26: 0 | K26: 0 | M26: 0 | N26: 0 | O26: 16.5205 | P26: 0 | Q26: 10573.12 | R26: 0
C27: Liberty | D27: 29 | F27: Ounce | G27: 0.39 | I27: 11.31 | J27: 0 | K27: 0 | M27: 0 | N27: 0 | O27: 11.31 | P27: 0 | Q27: 7238.4 | R27: 0
C28: Harvest Aid - Prep | D28: 1 | F28: Pint | G28: 3.75 | I28: 3.75 | J28: 0 | K28: 0 | M28: 0 | N28: 0 | O28: 3.75 | P28: 0 | Q28: 2400 | R28: 0
C29: Harvest Aid -Def | D29: 1 | F29: Ounce | G29: 0.546875 | I29: 0.546875 | J29: 0 | K29: 0 | M29: 0 | N29: 0 | O29: 0.546875 | P29: 0 | Q29: 350 | R29: 0
B30: Insecticide
C31: Prevathon | D31: 16 | F31: Ounce | G31: 0.83 | I31: 13.28 | J31: 0 | K31: 0 | M31: 0 | N31: 0 | O31: 13.28 | P31: 0 | Q31: 8499.2 | R31: 0
C32: Brigade | D32: 2 | F32: Ounce | G32: 1.74875 | I32: 3.4975 | J32: 0 | K32: 0 | M32: 0 | N32: 0 | O32: 3.4975 | P32: 0 | Q32: 2238.4 | R32: 0
B33: Miscellaneous
C34: Insurance - Dryland Cotton | D34: 1 | F34: Acre | G34: 15 | I34: 15 | J34: 0 | K34: 0 | M34: 0 | N34: 0 | O34: 15 | P34: 0 | Q34: 9600 | R34: 0
B35: Seed
C36: Cotton Seed | D36: 11.5 | F36: Pound | G36: 8 | I36: 92 | J36: 0 | K36: 0 | M36: 0 | N36: 0 | O36: 92 | P36: 0 | Q36: 58880 | R36: 0
D37: 0 | G37: 0 | I37: 0 | J37: 0 | K37: 0 | M37: 0 | N37: 0 | O37: 0 | P37: 0 | Q37: 0 | R37: 0
D38: 0 | G38: 0 | I38: 0 | J38: 0 | K38: 0 | M38: 0 | N38: 0 | O38: 0 | P38: 0 | Q38: 0 | R38: 0
D39: 0 | G39: 0 | I39: 0 | J39: =E39*H39 -> 0 | K39: 0 | M39: 0 | N39: =J39*L39 -> 0 | O39: 0 | P39: =+J39-N39 -> 0 | Q39: 0 | R39: =+J39*E$7 -> 0
B40: Irrigation
C41: Energy Cost | D41: 11.8 | F41: AcreInch | G41: 4.5 | I41: 53.1 | J41: =E41*H41 -> 0 | K41: 0 | M41: 0 | N41: =J41*L41 -> 0 | O41: 53.1 | P41: =+J41-N41 -> 0 | Q41: 33984 | R41: =+J41*E$7 -> 0
C42: Irrigation Labor | D42: 0.96 | F42: Hour | G42: 14 | I42: 13.44 | J42: 0 | K42: 0 | M42: 0 | N42: 0 | O42: 13.44 | P42: 0 | Q42: 8601.6 | R42: 0
B43: Machinery Labor
C44: Tractors/Self-Propelled | D44: 0.38 | F44: Hour | G44: 14 | I44: 5.32 | J44: =E44*H44 -> 0 | K44: 0 | M44: 0 | N44: =J44*L44 -> 0 | O44: 5.32 | P44: =+J44-N44 -> 0 | Q44: 3404.8 | R44: =+J44*E$7 -> 0
C45: Other Labor | D45: 0.46 | F45: Hour | G45: 14 | I45: 6.44 | J45: =E45*H45 -> 0 | K45: 0 | M45: 0 | N45: =J45*L45 -> 0 | O45: 6.44 | P45: =+J45-N45 -> 0 | Q45: 4121.6 | R45: =+J45*E$7 -> 0
B47: Diesel Fuel
C48: Pickup/General Use Equipment | D48: 1 | F48: Acre | G48: 0 | I48: 0 | J48: =E48*H48 -> 0 | K48: 0 | M48: 0 | N48: =J48*L48 -> 0 | O48: 0 | P48: =+J48-N48 -> 0 | Q48: 0 | R48: =+J48*E$7 -> 0
C49: Tractors/Self-Propelled | D49: 4.64 | F49: Gallon | G49: 1.4 | I49: 6.496 | J49: =E49*H49 -> 0 | K49: 0 | M49: 0 | N49: =J49*L49 -> 0 | O49: 6.496 | P49: =+J49-N49 -> 0 | Q49: 4157.44 | R49: =+J49*E$7 -> 0
B51: Gasoline
C52: Pickup/General Use Equipment | D52: 1 | F52: Acre | G52: 1.0546875 | I52: 1.0546875 | J52: =E52*H52 -> 0 | K52: 0 | M52: 0 | N52: =J52*L52 -> 0 | O52: 1.0546875 | P52: =+J52-N52 -> 0 | Q52: 675 | R52: =+J52*E$7 -> 0
C53: Tractors/Self-Propelled | D53: 0 | F53: Gallon | G53: 2 | I53: 0 | J53: =E53*H53 -> 0 | K53: 0 | M53: 0 | N53: =J53*L53 -> 0 | O53: 0 | P53: =+J53-N53 -> 0 | Q53: 0 | R53: =+J53*E$7 -> 0
B55: Repairs & Maintenance
C56: Pickup/General Use Equipment | D56: 1 | F56: Acre | G56: 0.3515625 | I56: 0.3515625 | J56: =E56*H56 -> 0 | K56: 0 | M56: 0 | N56: =J56*L56 -> 0 | O56: 0.3515625 | P56: =+J56-N56 -> 0 | Q56: 225 | R56: =+J56*E$7 -> 0
C57: Irrigation Equipment | D57: 1 | F57: Acre | G57: 13.11334 | I57: 13.11334 | J57: 0 | K57: 0 | M57: 0 | N57: 0 | O57: 13.11334 | P57: 0 | Q57: 8392.5376 | R57: 0
C58: Tractors/Self-Propelled | D58: 1 | F58: Acre | G58: 13.35150635 | I58: 13.35150635 | J58: 0 | K58: 0 | M58: 0 | N58: 0 | O58: 13.35150635 | P58: 0 | Q58: 8544.964067 | R58: 0
C59: Implements | D59: 1 | F59: Acre | G59: 12.44916701 | I59: 12.44916701 | J59: 0 | K59: 0 | M59: 0 | N59: 0 | O59: 12.44916701 | P59: 0 | Q59: 7967.466889 | R59: 0
I60: 0 | J60: 0 | K60: 0 | M60: 0 | N60: 0 | O60: 0 | P60: 0 | Q60: 0 | R60: 0
I61: 0 | J61: 0 | K61: 0 | M61: 0 | N61: 0 | O61: 0 | P61: 0 | Q61: 0 | R61: 0
B62: Interest on Credit Line | G62: 0.065 | I62: 18.41697939 | J62: =+SUM(J17:J61)/2*H62 -> 0 | M62: 0 | N62: =+SUM(N17:N61)/2*L62 -> 0 | O62: 18.41697939 | P62: =+SUM(P17:P61)/2*L62 -> 0 | Q62: 11786.86681 | R62: =+J62*E$7 -> 0
A63: Total Variable Costs | I63: 557.2681178 | J63: =SUM(J18:J62) -> 0 | M63: 0 | N63: =SUM(N18:N62) -> 0 | O63: 557.2681178 | P63: =SUM(P18:P62) -> 0 | Q63: 356651.5954 | R63: =SUM(R18:R62) -> 0
A64: Planned Returns Above Variable Costs: | I64: 413.6118822 | J64: =+J13-J63 -> 0 | M64: 0 | N64: =+N13-N63 -> 0 | O64: 413.6118822 | P64: =+P13-P63 -> 0 | Q64: 264711.6046 | R64: =+R13-R63 -> 0
B65: Breakeven Price to Cover Variable Costs | G65: 0.424747041 | H65: =IF(E10=0,"n/a",(YVarExp-(YTotExp+YTotRet-J10))/E10) -> n/a | I65: Pound
Q66: Enterprise | R66: Enterprise
A67: FIXED COSTS | D67: Quantity | E67: Quantity | F67: Units | G67: $/Unit | H67: $/Unit | I67: Total | J67: Total | K67: Share | L67: Share | M67: Landlord | N67: Landlord | O67: Tenant | P67: Tenant | Q67: Total | R67: Total
B68: Machinery Depreciation
C69: Pickup/General Use Equipment | D69: 1 | F69: Acre | G69: 0.4880859375 | I69: 0.4880859375 | J69: =E69*H69 -> 0 | K69: 0 | M69: 0 | N69: =J69*L69 -> 0 | O69: 0.4880859375 | P69: =+J69-N69 -> 0 | Q69: 312.375 | R69: =+J69*E$7 -> 0
C70: Irrigation Equipment | D70: 1 | F70: Acre | G70: 24.375 | I70: 24.375 | J70: 0 | K70: 0 | M70: 0 | N70: =J70*L70 -> 0 | O70: 24.375 | P70: 0 | Q70: 15600 | R70: 0
C71: Tractors/Self-Propelled | D71: 1 | F71: Acre | G71: 13.79655657 | I71: 13.79655657 | J71: 0 | K71: 0 | M71: 0 | N71: =J71*L71 -> 0 | O71: 13.79655657 | P71: 0 | Q71: 8829.796202 | R71: 0
C72: Implements | D72: 1 | F72: Acre | G72: 15.80859798 | I72: 15.80859798 | J72: 0 | K72: 0 | M72: 0 | N72: =J72*L72 -> 0 | O72: 15.80859798 | P72: 0 | Q72: 10117.50271 | R72: 0
B73: Equipment Investment
C74: Pickup/General Use Equipment | D74: 3.418945312 | F74: Dollars | G74: 0.055 | I74: 0.1880419922 | J74: =E74*H74 -> 0 | K74: 0 | M74: 0 | N74: =J74*L74 -> 0 | O74: 0.1880419922 | P74: =+J74-N74 -> 0 | Q74: 120.346875 | R74: =+J74*E$7 -> 0
C75: Irrigation Equipment | D75: 710.9375 | F75: Dollars | G75: 0.055 | I75: 39.1015625 | J75: 0 | K75: 0 | M75: 0 | N75: =J75*L75 -> 0 | O75: 39.1015625 | P75: 0 | Q75: 25025 | R75: 0
C76: Tractors/Self-Propelled | D76: 107.4796262 | F76: Dollars | G76: 0.055 | I76: 5.911379438 | J76: 0 | K76: 0 | M76: 0 | N76: =J76*L76 -> 0 | O76: 5.911379438 | P76: 0 | Q76: 3783.282841 | R76: 0
C77: Implements | D77: 67.62566916 | F77: Dollars | G77: 0.055 | I77: 3.719411804 | J77: 0 | K77: 0 | M77: 0 | N77: =J77*L77 -> 0 | O77: 3.719411804 | P77: 0 | Q77: 2380.423554 | R77: 0
B78: Salaried Labor | D78: 1 | F78: Acre | G78: 0 | I78: 0 | J78: 0 | K78: 0 | M78: 0 | N78: =J78*L78 -> 0 | O78: 0 | P78: =+J78-N78 -> 0 | Q78: 0 | R78: =+J78*E$7 -> 0
B79: Management Fee, Owner/Operator Labor | D79: 1 | F79: Acre | G79: 0 | I79: 0 | J79: 0 | K79: 0 | M79: 0 | N79: 0 | O79: 0 | P79: 0 | Q79: 0 | R79: 0
B80: Allocated Establishment Cost | D80: 1 | F80: Acre | G80: 0 | I80: 0 | J80: 0 | K80: 0 | M80: 0 | N80: 0 | O80: 0 | P80: 0 | Q80: 0 | R80: 0
B81: Cash Rent - Irrigated Cotton | D81: 1 | F81: Acre | G81: 90 | I81: 90 | J81: 0 | K81: 0 | M81: 0 | N81: 0 | O81: 90 | P81: 0 | Q81: 57600 | R81: 0
B82: Property Taxes | D82: 1 | F82: Acre | G82: 0 | I82: 0 | J82: 0 | K82: 0 | M82: 0 | N82: 0 | O82: 0 | P82: 0 | Q82: 0 | R82: 0
B83: Whole Farm Insurance | D83: 1 | F83: Acre | G83: 0 | I83: 0 | J83: 0 | K83: 0 | M83: 0 | N83: 0 | O83: 0 | P83: 0 | Q83: 0 | R83: 0
D84: 1 | G84: 0 | I84: 0 | J84: 0 | K84: 0 | M84: 0 | N84: 0 | O84: 0 | P84: 0 | Q84: 0 | R84: 0
D85: 1 | G85: 0 | I85: 0 | J85: =E85*H85 -> 0 | K85: 0 | M85: 0 | N85: 0 | O85: 0 | P85: 0 | Q85: 0 | R85: 0
A86: Total Fixed Costs | I86: 193.3886362 | J86: =+SUM(J69:J85) -> 0 | M86: 0 | N86: =+SUM(N69:N85) -> 0 | O86: 193.3886362 | P86: =+SUM(P69:P85) -> 0 | Q86: 123768.7272 | R86: =+SUM(R69:R85) -> 0
A87: Total Specified Costs | I87: 750.656754 | J87: =+J63+J86 -> 0 | M87: 0 | N87: =+N63+N86 -> 0 | O87: 750.656754 | P87: =+P63+P86 -> 0 | Q87: 480420.3225 | R87: =+R63+R86 -> 0
A89: Returns Above Specified Costs | I89: 220.223246 | J89: =+J13-J87 -> 0 | M89: 0 | N89: =+N13-N87 -> 0 | O89: 220.223246 | P89: =+P13-P87 -> 0 | Q89: 140942.8775 | R89: =+R13-R87 -> 0
A91: Breakeven Price to Cover Total Costs | G91: 0.5721469161 | H91: =IF(E10=0,"n/a",(YTotExp-(YTotExp+YTotRet-J10))/E10) -> n/a | I91: Pound
D93: Example Breakeven Prices
B94: Example | C94: Example | D94: To Cover | G94: To Cover
B95: Yield | C95: Yield | D95: Variable | G95: Total
B96: Percent | C96: Pound | D96: Costs | G96: Costs
B97: 0.75 | C97: 984 | D97: 0.566329388 | G97: 0.7628625549
B98: 0.9 | C98: 1180.8 | D98: 0.4719411566 | G98: 0.6357187957
B99: 1 | C99: 1312 | D99: 0.424747041 | G99: 0.5721469161
B100: 1.1 | C100: 1443.2 | D100: 0.3861336736 | G100: 0.5201335601
B101: 1.25 | C101: 1640 | D101: 0.3397976328 | G101: 0.4577175329
A103: Francisco Abelló, Assistant Professor and Extension Specialist, Texas A&M AgriLife Extension, 940-647-3908
A105: Information presented is prepared solely as a general guide and not intended to recognize or predict the costs and returns from any one operation. Brand names are mentioned only as examples and imply no endorsement.

Sheet No Till Dryland Cotton
A1: Projections for Planning Purposes Only -- Not to be Used without Updating
A2: 2021 Estimated Costs and Returns per Acre
A3: Cotton - No Till Dryland
A4: Enter your name for this budget in the cell above.
A5: Enter Your Values in the cells highlighed in MAROON.
E6: Your Acres | R6: Your
C7: Crop Acres | D7: 640 | L7: Your | Q7: Enterprise | R7: Enterprise
E8: Your | H8: Your | I8: Cash | J8: Your | K8: Landlord | L8: Landlord | N8: Your | P8: Your | Q8: Total | R8: Total
A9: REVENUE | D9: Quantity | E9: Quantity | F9: Units | G9: $/Unit | H9: $/Unit | I9: Total | J9: Total | K9: Share | L9: Share | M9: Landlord | N9: Landlord | O9: Tenant | P9: Tenant | Q9: (640 acres) | R9: ="(" & E7 & " acres)" -> ( acres)
B10: Cotton Lint | D10: 440 | F10: Pound | G10: 0.74 | I10: 325.6 | J10: =E10*H10 -> 0 | K10: 0 | M10: 0 | N10: =J10*L10 -> 0 | O10: 325.6 | P10: =+J10-N10 -> 0 | Q10: 208384 | R10: =+J10*E$7 -> 0
D11: 0 | G11: 0 | I11: 0 | J11: 0 | K11: 0 | M11: 0 | N11: 0 | O11: 0 | P11: =+J11-N11 -> 0 | Q11: 0 | R11: 0
D12: 0 | G12: 0 | I12: 0 | J12: 0 | K12: 0 | M12: 0 | N12: 0 | O12: 0 | P12: 0 | Q12: 0 | R12: 0
A13: Total Revenue | I13: 325.6 | J13: =SUM(J10:J12) -> 0 | M13: 0 | N13: =SUM(N10:N12) -> 0 | O13: 325.6 | P13: =SUM(P10:P12) -> 0 | Q13: 208384 | R13: =SUM(R10:R12) -> 0
Q14: Enterprise | R14: Enterprise
A15: VARIABLE COSTS | D15: Quantity | E15: Quantity | F15: Units | G15: $/Unit | H15: $/Unit | I15: Total | J15: Total | K15: Share | L15: Share | M15: Landlord | N15: Landlord | O15: Tenant | P15: Tenant | Q15: Total | R15: Total
A16: Production Costs
B17: Custom
C18: Fertilizer Application | D18: 1 | F18: Acre | G18: 4.5 | I18: 4.5 | J18: =E18*H18 -> 0 | K18: 0 | M18: 0 | N18: =J18*L18 -> 0 | O18: 4.5 | P18: =+J18-N18 -> 0 | Q18: 2880 | R18: =+J18*E$7 -> 0
C19: Custom Stripping | D19: 480 | F19: Pound | G19: 0.12 | I19: 57.6 | J19: 0 | K19: 0 | M19: 0 | N19: 0 | O19: 57.6 | P19: 0 | Q19: 36864 | R19: 0
B20: Fertilizer
C21: Fertilizer (N) | D21: 57 | F21: Pound | G21: 0.25 | I21: 14.25 | J21: 0 | K21: 0 | M21: 0 | N21: 0 | O21: 14.25 | P21: 0 | Q21: 9120 | R21: 0
B22: Herbicide
C23: Roundup | D23: 4 | F23: Pint | G23: 1.875 | I23: 7.5 | J23: 0 | K23: 0 | M23: 0 | N23: 0 | O23: 7.5 | P23: 0 | Q23: 4800 | R23: 0
C24: Prowl | D24: 64 | F24: Ounces | G24: 0.51 | I24: 32.64 | J24: 0 | K24: 0 | M24: 0 | N24: 0 | O24: 32.64 | P24: 0 | Q24: 20889.6 | R24: 0
C25: Enlist Duo | D25: 4.7 | F25: Pint | G25: 3.515 | I25: 16.5205 | J25: 0 | K25: 0 | M25: 0 | N25: 0 | O25: 16.5205 | P25: 0 | Q25: 10573.12 | R25: 0
C26: Liberty | D26: 29 | F26: Ounce | G26: 0.39 | I26: 11.31 | J26: 0 | K26: 0 | M26: 0 | N26: 0 | O26: 11.31 | P26: 0 | Q26: 7238.4 | R26: 0
C27: Harvest Aid - Prep | D27: 1 | F27: Pint | G27: 3.75 | I27: 3.75 | J27: 0 | K27: 0 | M27: 0 | N27: 0 | O27: 3.75 | P27: 0 | Q27: 2400 | R27: 0
C28: Harvest Aid -Def | D28: 1 | F28: Ounce | G28: 0.546875 | I28: 0.546875 | J28: 0 | K28: 0 | M28: 0 | N28: 0 | O28: 0.546875 | P28: 0 | Q28: 350 | R28: 0
C29: 2,4D | D29: 2.8 | F29: Pint | G29: 2.7475 | I29: 7.693 | J29: 0 | K29: 0 | M29: 0 | N29: 0 | O29: 7.693 | P29: 0 | Q29: 4923.52 | R29: 0
C30: Caparol | D30: 1.4 | F30: Pint | G30: 3.75 | I30: 5.25 | J30: 0 | K30: 0 | M30: 0 | N30: 0 | O30: 5.25 | P30: 0 | Q30: 3360 | R30: 0
C31: Dual Magnun | D31: 1.3 | F31: Pint | G31: 12.75 | I31: 16.575 | J31: 0 | K31: 0 | M31: 0 | N31: 0 | O31: 16.575 | P31: 0 | Q31: 10608 | R31: 0
B32: Insecticide
C33: Prevathon | D33: 16 | F33: Ounce | G33: 0.83 | I33: 13.28 | J33: 0 | K33: 0 | M33: 0 | N33: 0 | O33: 13.28 | P33: 0 | Q33: 8499.2 | R33: 0
C34: Brigade | D34: 2 | F34: Ounce | G34: 1.74875 | I34: 3.4975 | J34: 0 | K34: 0 | M34: 0 | N34: 0 | O34: 3.4975 | P34: 0 | Q34: 2238.4 | R34: 0
B35: Miscellaneous
C36: Insurance - Dryland Cotton | D36: 1 | F36: Acre | G36: 15 | I36: 15 | J36: 0 | K36: 0 | M36: 0 | N36: 0 | O36: 15 | P36: 0 | Q36: 9600 | R36: 0
B37: Seed
C38: Cotton Seed | D38: 5 | F38: Pound | G38: 8 | I38: 40 | J38: 0 | K38: 0 | M38: 0 | N38: 0 | O38: 40 | P38: 0 | Q38: 25600 | R38: 0
D39: 0 | G39: 0 | I39: 0 | J39: 0 | K39: 0 | M39: 0 | N39: 0 | O39: 0 | P39: 0 | Q39: 0 | R39: 0
D40: 0 | G40: 0 | I40: 0 | J40: 0 | K40: 0 | M40: 0 | N40: 0 | O40: 0 | P40: 0 | Q40: 0 | R40: 0
D41: 0 | G41: 0 | I41: 0 | J41: =E41*H41 -> 0 | K41: 0 | M41: 0 | N41: =J41*L41 -> 0 | O41: 0 | P41: =+J41-N41 -> 0 | Q41: 0 | R41: =+J41*E$7 -> 0
B42: Machinery Labor
C43: Tractors/Self-Propelled | D43: 0.28 | F43: Hour | G43: 14 | I43: 3.92 | J43: =E43*H43 -> 0 | K43: 0 | M43: 0 | N43: =J43*L43 -> 0 | O43: 3.92 | P43: =+J43-N43 -> 0 | Q43: 2508.8 | R43: =+J43*E$7 -> 0
C44: Other Labor | D44: 0.33 | F44: Hour | G44: 14 | I44: 4.62 | J44: =E44*H44 -> 0 | K44: 0 | M44: 0 | N44: =J44*L44 -> 0 | O44: 4.62 | P44: =+J44-N44 -> 0 | Q44: 2956.8 | R44: =+J44*E$7 -> 0
B46: Diesel Fuel
C47: Pickup/General Use Equipment | D47: 1 | F47: Acre | G47: 0 | I47: 0 | J47: =E47*H47 -> 0 | K47: 0 | M47: 0 | N47: =J47*L47 -> 0 | O47: 0 | P47: =+J47-N47 -> 0 | Q47: 0 | R47: =+J47*E$7 -> 0
C48: Tractors/Self-Propelled | D48: 3.53 | F48: Gallon | G48: 1.4 | I48: 4.942 | J48: =E48*H48 -> 0 | K48: 0 | M48: 0 | N48: =J48*L48 -> 0 | O48: 4.942 | P48: =+J48-N48 -> 0 | Q48: 3162.88 | R48: =+J48*E$7 -> 0
B50: Gasoline
C51: Pickup/General Use Equipment | D51: 1 | F51: Acre | G51: 1.0546875 | I51: 1.0546875 | J51: =E51*H51 -> 0 | K51: 0 | M51: 0 | N51: =J51*L51 -> 0 | O51: 1.0546875 | P51: =+J51-N51 -> 0 | Q51: 675 | R51: =+J51*E$7 -> 0
C52: Tractors/Self-Propelled | D52: 0 | F52: Gallon | G52: 2 | I52: 0 | J52: =E52*H52 -> 0 | K52: 0 | M52: 0 | N52: =J52*L52 -> 0 | O52: 0 | P52: =+J52-N52 -> 0 | Q52: 0 | R52: =+J52*E$7 -> 0
B54: Repairs & Maintenance
C55: Pickup/General Use Equipment | D55: 1 | F55: Acre | G55: 0.3515625 | I55: 0.3515625 | J55: =E55*H55 -> 0 | K55: 0 | M55: 0 | N55: =J55*L55 -> 0 | O55: 0.3515625 | P55: =+J55-N55 -> 0 | Q55: 225 | R55: =+J55*E$7 -> 0
C56: Irrigation Equipment | D56: 1 | F56: Acre | G56: 0 | I56: 0 | J56: 0 | K56: 0 | M56: 0 | N56: 0 | O56: 0 | P56: 0 | Q56: 0 | R56: 0
C57: Tractors/Self-Propelled | D57: 1 | F57: Acre | G57: 8.936416529 | I57: 8.936416529 | J57: 0 | K57: 0 | M57: 0 | N57: 0 | O57: 8.936416529 | P57: 0 | Q57: 5719.306578 | R57: 0
C58: Implements | D58: 1 | F58: Acre | G58: 2.842776583 | I58: 2.842776583 | J58: 0 | K58: 0 | M58: 0 | N58: 0 | O58: 2.842776583 | P58: 0 | Q58: 1819.377013 | R58: 0
I59: 0 | J59: 0 | K59: 0 | M59: 0 | N59: 0 | O59: 0 | P59: 0 | Q59: 0 | R59: 0
I60: 0 | J60: 0 | K60: 0 | M60: 0 | N60: 0 | O60: 0 | P60: 0 | Q60: 0 | R60: 0
B61: Interest on Credit Line | G61: 0.065 | I61: 8.056905999 | J61: =+SUM(J17:J60)/2*H61 -> 0 | M61: 0 | N61: =+SUM(N17:N60)/2*L61 -> 0 | O61: 8.056905999 | P61: =+SUM(P17:P60)/2*L61 -> 0 | Q61: 5156.419839 | R61: =+J61*E$7 -> 0
A62: Total Variable Costs | I62: 284.6372241 | J62: =SUM(J18:J61) -> 0 | M62: 0 | N62: =SUM(N18:N61) -> 0 | O62: 284.6372241 | P62: =SUM(P18:P61) -> 0 | Q62: 182167.8234 | R62: =SUM(R18:R61) -> 0
A63: Planned Returns Above Variable Costs: | I63: 40.96277589 | J63: =+J13-J62 -> 0 | M63: 0 | N63: =+N13-N62 -> 0 | O63: 40.96277589 | P63: =+P13-P62 -> 0 | Q63: 26216.17657 | R63: =+R13-R62 -> 0
B64: Breakeven Price to Cover Variable Costs | G64: 0.6469027821 | H64: =IF(E10=0,"n/a",(YVarExp-(YTotExp+YTotRet-J10))/E10) -> n/a | I64: Pound
Q65: Enterprise | R65: Enterprise
A66: FIXED COSTS | D66: Quantity | E66: Quantity | F66: Units | G66: $/Unit | H66: $/Unit | I66: Total | J66: Total | K66: Share | L66: Share | M66: Landlord | N66: Landlord | O66: Tenant | P66: Tenant | Q66: Total | R66: Total
B67: Machinery Depreciation
C68: Pickup/General Use Equipment | D68: 1 | F68: Acre | G68: 0.4880859375 | I68: 0.4880859375 | J68: =E68*H68 -> 0 | K68: 0 | M68: 0 | N68: =J68*L68 -> 0 | O68: 0.4880859375 | P68: =+J68-N68 -> 0 | Q68: 312.375 | R68: =+J68*E$7 -> 0
C69: Tractors/Self-Propelled | D69: 1 | F69: Acre | G69: 14.17424892 | I69: 14.17424892 | J69: 0 | K69: 0 | M69: 0 | N69: =J69*L69 -> 0 | O69: 14.17424892 | P69: 0 | Q69: 9071.519311 | R69: 0
C70: Implements | D70: 1 | F70: Acre | G70: 4.229773017 | I70: 4.229773017 | J70: 0 | K70: 0 | M70: 0 | N70: =J70*L70 -> 0 | O70: 4.229773017 | P70: 0 | Q70: 2707.054731 | R70: 0
B71: Equipment Investment
C72: Pickup/General Use Equipment | D72: 3.418945312 | F72: Dollars | G72: 0.055 | I72: 0.1880419922 | J72: =E72*H72 -> 0 | K72: 0 | M72: 0 | N72: =J72*L72 -> 0 | O72: 0.1880419922 | P72: =+J72-N72 -> 0 | Q72: 120.346875 | R72: =+J72*E$7 -> 0
C73: Tractors/Self-Propelled | D73: 108.1266994 | F73: Dollars | G73: 0.055 | I73: 5.946968465 | J73: 0 | K73: 0 | M73: 0 | N73: =J73*L73 -> 0 | O73: 5.946968465 | P73: 0 | Q73: 3806.059817 | R73: 0
C74: Implements | D74: 18.09402902 | F74: Dollars | G74: 0.055 | I74: 0.9951715959 | J74: 0 | K74: 0 | M74: 0 | N74: =J74*L74 -> 0 | O74: 0.9951715959 | P74: 0 | Q74: 636.9098214 | R74: 0
B75: Salaried Labor | D75: 1 | F75: Acre | G75: 0 | I75: 0 | J75: 0 | K75: 0 | M75: 0 | N75: =J75*L75 -> 0 | O75: 0 | P75: =+J75-N75 -> 0 | Q75: 0 | R75: =+J75*E$7 -> 0
B76: Management Fee, Owner/Operator Labor | D76: 1 | F76: Acre | G76: 0 | I76: 0 | J76: 0 | K76: 0 | M76: 0 | N76: 0 | O76: 0 | P76: 0 | Q76: 0 | R76: 0
B77: Allocated Establishment Cost | D77: 1 | F77: Acre | G77: 0 | I77: 0 | J77: 0 | K77: 0 | M77: 0 | N77: 0 | O77: 0 | P77: 0 | Q77: 0 | R77: 0
B78: Cash Rent - Dryland Cotton | D78: 1 | F78: Acre | G78: 30 | I78: 30 | J78: 0 | K78: 0 | M78: 0 | N78: 0 | O78: 30 | P78: 0 | Q78: 19200 | R78: 0
B79: Property Taxes | D79: 1 | F79: Acre | G79: 0 | I79: 0 | J79: 0 | K79: 0 | M79: 0 | N79: 0 | O79: 0 | P79: 0 | Q79: 0 | R79: 0
B80: Whole Farm Insurance | D80: 1 | F80: Acre | G80: 0 | I80: 0 | J80: 0 | K80: 0 | M80: 0 | N80: 0 | O80: 0 | P80: 0 | Q80: 0 | R80: 0
D81: 1 | G81: 0 | I81: 0 | J81: 0 | K81: 0 | M81: 0 | N81: 0 | O81: 0 | P81: 0 | Q81: 0 | R81: 0
D82: 1 | G82: 0 | I82: 0 | J82: =E82*H82 -> 0 | K82: 0 | M82: 0 | N82: 0 | O82: 0 | P82: 0 | Q82: 0 | R82: 0
A83: Total Fixed Costs | I83: 56.02228993 | J83: =+SUM(J68:J82) -> 0 | M83: 0 | N83: =+SUM(N68:N82) -> 0 | O83: 56.02228993 | P83: =+SUM(P68:P82) -> 0 | Q83: 35854.26556 | R83: =+SUM(R68:R82) -> 0
A84: Total Specified Costs | I84: 340.659514 | J84: =+J62+J83 -> 0 | M84: 0 | N84: =+N62+N83 -> 0 | O84: 340.659514 | P84: =+P62+P83 -> 0 | Q84: 218022.089 | R84: =+R62+R83 -> 0
A86: Returns Above Specified Costs | I86: -15.05951404 | J86: =+J13-J84 -> 0 | M86: 0 | N86: =+N13-N84 -> 0 | O86: -15.05951404 | P86: =+P13-P84 -> 0 | Q86: -9638.088986 | R86: =+R13-R84 -> 0
A88: Breakeven Price to Cover Total Costs | G88: 0.7742261683 | H88: =IF(E10=0,"n/a",(YTotExp-(YTotExp+YTotRet-J10))/E10) -> n/a | I88: Pound
D90: Example Breakeven Prices
B91: Example | C91: Example | D91: To Cover | G91: To Cover
B92: Yield | C92: Yield | D92: Variable | G92: Total
B93: Percent | C93: Pound | D93: Costs | G93: Costs
B94: 0.75 | C94: 330 | D94: 0.8625370428 | G94: 1.032301558
B95: 0.9 | C95: 396 | D95: 0.718780869 | G95: 0.8602512981
B96: 1 | C96: 440 | D96: 0.6469027821 | G96: 0.7742261683
B97: 1.1 | C97: 484 | D97: 0.5880934382 | G97: 0.7038419712
B98: 1.25 | C98: 550 | D98: 0.5175222257 | G98: 0.6193809346
A100: Francisco Abelló, Assistant Professor and Extension Specialist, Texas A&M AgriLife Extension, 940-647-3908
A102: Information presented is prepared solely as a general guide and not intended to recognize or predict the costs and returns from any one operation. Brand names are mentioned only as examples and imply no endorsement.

Sheet NT Irrig M Cotton
A1: Projections for Planning Purposes Only -- Not to be Used without Updating
A2: 2021 Estimated Costs and Returns per Acre
A3: Cotton - No-Till Irrigated
A4: Enter your name for this budget in the cell above.
A5: Enter Your Values in the cells highlighed in MAROON.
E6: Your Acres | R6: Your
C7: Crop Acres | D7: 640 | L7: Your | Q7: Enterprise | R7: Enterprise
E8: Your | H8: Your | I8: Cash | J8: Your | K8: Landlord | L8: Landlord | N8: Your | P8: Your | Q8: Total | R8: Total
A9: REVENUE | D9: Quantity | E9: Quantity | F9: Units | G9: $/Unit | H9: $/Unit | I9: Total | J9: Total | K9: Share | L9: Share | M9: Landlord | N9: Landlord | O9: Tenant | P9: Tenant | Q9: (640 acres) | R9: ="(" & E7 & " acres)" -> ( acres)
B10: Cotton Lint | D10: 1404 | F10: Pound | G10: 0.74 | I10: 1038.96 | J10: =E10*H10 -> 0 | K10: 0 | M10: 0 | N10: =J10*L10 -> 0 | O10: 1038.96 | P10: =+J10-N10 -> 0 | Q10: 664934.4 | R10: =+J10*E$7 -> 0
D11: 0 | G11: 0 | I11: 0 | J11: 0 | K11: 0 | M11: 0 | N11: 0 | O11: 0 | P11: =+J11-N11 -> 0 | Q11: 0 | R11: 0
D12: 0 | G12: 0 | I12: 0 | J12: 0 | K12: 0 | M12: 0 | N12: 0 | O12: 0 | P12: 0 | Q12: 0 | R12: 0
A13: Total Revenue | I13: 1038.96 | J13: =SUM(J10:J12) -> 0 | M13: 0 | N13: =SUM(N10:N12) -> 0 | O13: 1038.96 | P13: =SUM(P10:P12) -> 0 | Q13: 664934.4 | R13: =SUM(R10:R12) -> 0
Q14: Enterprise | R14: Enterprise
A15: VARIABLE COSTS | D15: Quantity | E15: Quantity | F15: Units | G15: $/Unit | H15: $/Unit | I15: Total | J15: Total | K15: Share | L15: Share | M15: Landlord | N15: Landlord | O15: Tenant | P15: Tenant | Q15: Total | R15: Total
A16: Production Costs
B17: Custom
C18: Fertilizer Application | D18: 1 | F18: Acre | G18: 4.5 | I18: 4.5 | J18: =E18*H18 -> 0 | K18: 0 | M18: 0 | N18: =J18*L18 -> 0 | O18: 4.5 | P18: =+J18-N18 -> 0 | Q18: 2880 | R18: =+J18*E$7 -> 0
C19: Custom Stripping | D19: 1404 | F19: Pound | G19: 0.12 | I19: 168.48 | J19: 0 | K19: 0 | M19: 0 | N19: 0 | O19: 168.48 | P19: 0 | Q19: 107827.2 | R19: 0
B20: Fertilizer
C21: Fertilizer (N) | D21: 100 | F21: Pound | G21: 0.25 | I21: 25 | J21: 0 | K21: 0 | M21: 0 | N21: 0 | O21: 25 | P21: 0 | Q21: 16000 | R21: 0
C22: Fertilizer (P) | D22: 50 | F22: Pound | G22: 0.325 | I22: 16.25 | J22: 0 | K22: 0 | M22: 0 | N22: 0 | O22: 16.25 | P22: 0 | Q22: 10400 | R22: 0
B23: Herbicide
C24: Roundup | D24: 2 | F24: Pint | G24: 1.875 | I24: 3.75 | J24: 0 | K24: 0 | M24: 0 | N24: 0 | O24: 3.75 | P24: 0 | Q24: 2400 | R24: 0
C25: Prowl | D25: 64 | F25: Ounces | G25: 0.51 | I25: 32.64 | J25: 0 | K25: 0 | M25: 0 | N25: 0 | O25: 32.64 | P25: 0 | Q25: 20889.6 | R25: 0
C26: Enlist Duo | D26: 4.7 | F26: Pint | G26: 3.515 | I26: 16.5205 | J26: 0 | K26: 0 | M26: 0 | N26: 0 | O26: 16.5205 | P26: 0 | Q26: 10573.12 | R26: 0
C27: Liberty | D27: 29 | F27: Ounce | G27: 0.39 | I27: 11.31 | J27: 0 | K27: 0 | M27: 0 | N27: 0 | O27: 11.31 | P27: 0 | Q27: 7238.4 | R27: 0
C28: Harvest Aid - Prep | D28: 1 | F28: Pint | G28: 3.75 | I28: 3.75 | J28: 0 | K28: 0 | M28: 0 | N28: 0 | O28: 3.75 | P28: 0 | Q28: 2400 | R28: 0
C29: Harvest Aid -Def | D29: 1 | F29: Ounce | G29: 0.546875 | I29: 0.546875 | J29: 0 | K29: 0 | M29: 0 | N29: 0 | O29: 0.546875 | P29: 0 | Q29: 350 | R29: 0
C30: 2,4D | D30: 1.4 | F30: Pint | G30: 2.7475 | I30: 3.8465 | J30: 0 | K30: 0 | M30: 0 | N30: 0 | O30: 3.8465 | P30: 0 | Q30: 2461.76 | R30: 0
C31: Caparol | D31: 1.4 | F31: Pint | G31: 3.75 | I31: 5.25 | J31: 0 | K31: 0 | M31: 0 | N31: 0 | O31: 5.25 | P31: 0 | Q31: 3360 | R31: 0
C32: Dual Magnun | D32: 1.3 | F32: Pint | G32: 12.75 | I32: 16.575 | J32: 0 | K32: 0 | M32: 0 | N32: 0 | O32: 16.575 | P32: 0 | Q32: 10608 | R32: 0
B33: Insecticide
C34: Prevathon | D34: 16 | F34: Ounce | G34: 0.83 | I34: 13.28 | J34: 0 | K34: 0 | M34: 0 | N34: 0 | O34: 13.28 | P34: 0 | Q34: 8499.2 | R34: 0
C35: Brigade | D35: 2 | F35: Ounce | G35: 1.74875 | I35: 3.4975 | J35: 0 | K35: 0 | M35: 0 | N35: 0 | O35: 3.4975 | P35: 0 | Q35: 2238.4 | R35: 0
B36: Miscellaneous
C37: Insurance - Dryland Cotton | D37: 1 | F37: Acre | G37: 15 | I37: 15 | J37: 0 | K37: 0 | M37: 0 | N37: 0 | O37: 15 | P37: 0 | Q37: 9600 | R37: 0
B38: Seed
C39: Cotton Seed | D39: 11.5 | F39: Pound | G39: 8 | I39: 92 | J39: 0 | K39: 0 | M39: 0 | N39: 0 | O39: 92 | P39: 0 | Q39: 58880 | R39: 0
D40: 0 | G40: 0 | I40: 0 | J40: 0 | K40: 0 | M40: 0 | N40: 0 | O40: 0 | P40: 0 | Q40: 0 | R40: 0
D41: 0 | G41: 0 | I41: 0 | J41: 0 | K41: 0 | M41: 0 | N41: 0 | O41: 0 | P41: 0 | Q41: 0 | R41: 0
D42: 0 | G42: 0 | I42: 0 | J42: =E42*H42 -> 0 | K42: 0 | M42: 0 | N42: =J42*L42 -> 0 | O42: 0 | P42: =+J42-N42 -> 0 | Q42: 0 | R42: =+J42*E$7 -> 0
B43: Irrigation
C44: Energy Cost | D44: 11.8 | F44: AcreInch | G44: 4.5 | I44: 53.1 | J44: =E44*H44 -> 0 | K44: 0 | M44: 0 | N44: =J44*L44 -> 0 | O44: 53.1 | P44: =+J44-N44 -> 0 | Q44: 33984 | R44: =+J44*E$7 -> 0
C45: Irrigation Labor | D45: 0.96 | F45: Hour | G45: 14 | I45: 13.44 | J45: 0 | K45: 0 | M45: 0 | N45: 0 | O45: 13.44 | P45: 0 | Q45: 8601.6 | R45: 0
B46: Machinery Labor
C47: Tractors/Self-Propelled | D47: 0.27 | F47: Hour | G47: 14 | I47: 3.78 | J47: =E47*H47 -> 0 | K47: 0 | M47: 0 | N47: =J47*L47 -> 0 | O47: 3.78 | P47: =+J47-N47 -> 0 | Q47: 2419.2 | R47: =+J47*E$7 -> 0
C48: Other Labor | D48: 0.32 | F48: Hour | G48: 14 | I48: 4.48 | J48: =E48*H48 -> 0 | K48: 0 | M48: 0 | N48: =J48*L48 -> 0 | O48: 4.48 | P48: =+J48-N48 -> 0 | Q48: 2867.2 | R48: =+J48*E$7 -> 0
B50: Diesel Fuel
C51: Pickup/General Use Equipment | D51: 1 | F51: Acre | G51: 0 | I51: 0 | J51: =E51*H51 -> 0 | K51: 0 | M51: 0 | N51: =J51*L51 -> 0 | O51: 0 | P51: =+J51-N51 -> 0 | Q51: 0 | R51: =+J51*E$7 -> 0
C52: Tractors/Self-Propelled | D52: 3.41 | F52: Gallon | G52: 1.4 | I52: 4.774 | J52: =E52*H52 -> 0 | K52: 0 | M52: 0 | N52: =J52*L52 -> 0 | O52: 4.774 | P52: =+J52-N52 -> 0 | Q52: 3055.36 | R52: =+J52*E$7 -> 0
B54: Gasoline
C55: Pickup/General Use Equipment | D55: 1 | F55: Acre | G55: 1.0546875 | I55: 1.0546875 | J55: =E55*H55 -> 0 | K55: 0 | M55: 0 | N55: =J55*L55 -> 0 | O55: 1.0546875 | P55: =+J55-N55 -> 0 | Q55: 675 | R55: =+J55*E$7 -> 0
C56: Tractors/Self-Propelled | D56: 0 | F56: Gallon | G56: 2 | I56: 0 | J56: =E56*H56 -> 0 | K56: 0 | M56: 0 | N56: =J56*L56 -> 0 | O56: 0 | P56: =+J56-N56 -> 0 | Q56: 0 | R56: =+J56*E$7 -> 0
B58: Repairs & Maintenance
C59: Pickup/General Use Equipment | D59: 1 | F59: Acre | G59: 0.3515625 | I59: 0.3515625 | J59: =E59*H59 -> 0 | K59: 0 | M59: 0 | N59: =J59*L59 -> 0 | O59: 0.3515625 | P59: =+J59-N59 -> 0 | Q59: 225 | R59: =+J59*E$7 -> 0
C60: Irrigation Equipment | D60: 1 | F60: Acre | G60: 13.11334 | I60: 13.11334 | J60: 0 | K60: 0 | M60: 0 | N60: 0 | O60: 13.11334 | P60: 0 | Q60: 8392.5376 | R60: 0
C61: Tractors/Self-Propelled | D61: 1 | F61: Acre | G61: 8.408974182 | I61: 8.408974182 | J61: 0 | K61: 0 | M61: 0 | N61: 0 | O61: 8.408974182 | P61: 0 | Q61: 5381.743476 | R61: 0
C62: Implements | D62: 1 | F62: Acre | G62: 6.364060185 | I62: 6.364060185 | J62: 0 | K62: 0 | M62: 0 | N62: 0 | O62: 6.364060185 | P62: 0 | Q62: 4072.998519 | R62: 0
I63: 0 | J63: 0 | K63: 0 | M63: 0 | N63: 0 | O63: 0 | P63: 0 | Q63: 0 | R63: 0
I64: 0 | J64: 0 | K64: 0 | M64: 0 | N64: 0 | O64: 0 | P64: 0 | Q64: 0 | R64: 0
B65: Interest on Credit Line | G65: 0.065 | I65: 14.61923329 | J65: =+SUM(J17:J64)/2*H65 -> 0 | M65: 0 | N65: =+SUM(N17:N64)/2*L65 -> 0 | O65: 14.61923329 | P65: =+SUM(P17:P64)/2*L65 -> 0 | Q65: 9356.309308 | R65: =+J65*E$7 -> 0
A66: Total Variable Costs | I66: 555.6822327 | J66: =SUM(J18:J65) -> 0 | M66: 0 | N66: =SUM(N18:N65) -> 0 | O66: 555.6822327 | P66: =SUM(P18:P65) -> 0 | Q66: 355636.6289 | R66: =SUM(R18:R65) -> 0
A67: Planned Returns Above Variable Costs: | I67: 483.2777673 | J67: =+J13-J66 -> 0 | M67: 0 | N67: =+N13-N66 -> 0 | O67: 483.2777673 | P67: =+P13-P66 -> 0 | Q67: 309297.7711 | R67: =+R13-R66 -> 0
B68: Breakeven Price to Cover Variable Costs | G68: 0.395785066 | H68: =IF(E10=0,"n/a",(YVarExp-(YTotExp+YTotRet-J10))/E10) -> n/a | I68: Pound
Q69: Enterprise | R69: Enterprise
A70: FIXED COSTS | D70: Quantity | E70: Quantity | F70: Units | G70: $/Unit | H70: $/Unit | I70: Total | J70: Total | K70: Share | L70: Share | M70: Landlord | N70: Landlord | O70: Tenant | P70: Tenant | Q70: Total | R70: Total
B71: Machinery Depreciation
C72: Pickup/General Use Equipment | D72: 1 | F72: Acre | G72: 0.4880859375 | I72: 0.4880859375 | J72: =E72*H72 -> 0 | K72: 0 | M72: 0 | N72: =J72*L72 -> 0 | O72: 0.4880859375 | P72: =+J72-N72 -> 0 | Q72: 312.375 | R72: =+J72*E$7 -> 0
C73: Irrigation Equipment | D73: 1 | F73: Acre | G73: 24.375 | I73: 24.375 | J73: 0 | K73: 0 | M73: 0 | N73: =J73*L73 -> 0 | O73: 24.375 | P73: 0 | Q73: 15600 | R73: 0
C74: Tractors/Self-Propelled | D74: 1 | F74: Acre | G74: 12.92351776 | I74: 12.92351776 | J74: 0 | K74: 0 | M74: 0 | N74: =J74*L74 -> 0 | O74: 12.92351776 | P74: 0 | Q74: 8271.051365 | R74: 0
C75: Implements | D75: 1 | F75: Acre | G75: 8.757137649 | I75: 8.757137649 | J75: 0 | K75: 0 | M75: 0 | N75: =J75*L75 -> 0 | O75: 8.757137649 | P75: 0 | Q75: 5604.568095 | R75: 0
B76: Equipment Investment
C77: Pickup/General Use Equipment | D77: 3.418945312 | F77: Dollars | G77: 0.055 | I77: 0.1880419922 | J77: =E77*H77 -> 0 | K77: 0 | M77: 0 | N77: =J77*L77 -> 0 | O77: 0.1880419922 | P77: =+J77-N77 -> 0 | Q77: 120.346875 | R77: =+J77*E$7 -> 0
C78: Irrigation Equipment | D78: 710.9375 | F78: Dollars | G78: 0.055 | I78: 39.1015625 | J78: 0 | K78: 0 | M78: 0 | N78: =J78*L78 -> 0 | O78: 39.1015625 | P78: 0 | Q78: 25025 | R78: 0
C79: Tractors/Self-Propelled | D79: 98.71099613 | F79: Dollars | G79: 0.055 | I79: 5.429104787 | J79: 0 | K79: 0 | M79: 0 | N79: =J79*L79 -> 0 | O79: 5.429104787 | P79: 0 | Q79: 3474.627064 | R79: 0
C80: Implements | D80: 37.46108883 | F80: Dollars | G80: 0.055 | I80: 2.060359886 | J80: 0 | K80: 0 | M80: 0 | N80: =J80*L80 -> 0 | O80: 2.060359886 | P80: 0 | Q80: 1318.630327 | R80: 0
B81: Salaried Labor | D81: 1 | F81: Acre | G81: 0 | I81: 0 | J81: 0 | K81: 0 | M81: 0 | N81: =J81*L81 -> 0 | O81: 0 | P81: =+J81-N81 -> 0 | Q81: 0 | R81: =+J81*E$7 -> 0
B82: Management Fee, Owner/Operator Labor | D82: 1 | F82: Acre | G82: 0 | I82: 0 | J82: 0 | K82: 0 | M82: 0 | N82: 0 | O82: 0 | P82: 0 | Q82: 0 | R82: 0
B83: Allocated Establishment Cost | D83: 1 | F83: Acre | G83: 0 | I83: 0 | J83: 0 | K83: 0 | M83: 0 | N83: 0 | O83: 0 | P83: 0 | Q83: 0 | R83: 0
B84: Cash Rent - Irrigated Cotton | D84: 1 | F84: Acre | G84: 90 | I84: 90 | J84: 0 | K84: 0 | M84: 0 | N84: 0 | O84: 90 | P84: 0 | Q84: 57600 | R84: 0
B85: Property Taxes | D85: 1 | F85: Acre | G85: 0 | I85: 0 | J85: 0 | K85: 0 | M85: 0 | N85: 0 | O85: 0 | P85: 0 | Q85: 0 | R85: 0
B86: Whole Farm Insurance | D86: 1 | F86: Acre | G86: 0 | I86: 0 | J86: 0 | K86: 0 | M86: 0 | N86: 0 | O86: 0 | P86: 0 | Q86: 0 | R86: 0
D87: 1 | G87: 0 | I87: 0 | J87: 0 | K87: 0 | M87: 0 | N87: 0 | O87: 0 | P87: 0 | Q87: 0 | R87: 0
D88: 1 | G88: 0 | I88: 0 | J88: =E88*H88 -> 0 | K88: 0 | M88: 0 | N88: 0 | O88: 0 | P88: 0 | Q88: 0 | R88: 0
A89: Total Fixed Costs | I89: 183.3228105 | J89: =+SUM(J72:J88) -> 0 | M89: 0 | N89: =+SUM(N72:N88) -> 0 | O89: 183.3228105 | P89: =+SUM(P72:P88) -> 0 | Q89: 117326.5987 | R89: =+SUM(R72:R88) -> 0
A90: Total Specified Costs | I90: 739.0050432 | J90: =+J66+J89 -> 0 | M90: 0 | N90: =+N66+N89 -> 0 | O90: 739.0050432 | P90: =+P66+P89 -> 0 | Q90: 472963.2276 | R90: =+R66+R89 -> 0
A92: Returns Above Specified Costs | I92: 299.9549568 | J92: =+J13-J90 -> 0 | M92: 0 | N92: =+N13-N90 -> 0 | O92: 299.9549568 | P92: =+P13-P90 -> 0 | Q92: 191971.1724 | R92: =+R13-R90 -> 0
A94: Breakeven Price to Cover Total Costs | G94: 0.5263568684 | H94: =IF(E10=0,"n/a",(YTotExp-(YTotExp+YTotRet-J10))/E10) -> n/a | I94: Pound
D96: Example Breakeven Prices
B97: Example | C97: Example | D97: To Cover | G97: To Cover
B98: Yield | C98: Yield | D98: Variable | G98: Total
B99: Percent | C99: Pound | D99: Costs | G99: Costs
B100: 0.75 | C100: 1053 | D100: 0.5277134213 | G100: 0.7018091578
B101: 0.9 | C101: 1263.6 | D101: 0.4397611844 | G101: 0.5848409648
B102: 1 | C102: 1404 | D102: 0.395785066 | G102: 0.5263568684
B103: 1.1 | C103: 1544.4 | D103: 0.3598046055 | G103: 0.478506244
B104: 1.25 | C104: 1755 | D104: 0.3166280528 | G104: 0.4210854947
A106: Francisco Abelló, Assistant Professor and Extension Specialist, Texas A&M AgriLife Extension, 940-647-3908
A108: Information presented is prepared solely as a general guide and not intended to recognize or predict the costs and returns from any one operation. Brand names are mentioned only as examples and imply no endorsement.

Sheet NT-CC2 Irr M Cotton
A1: Projections for Planning Purposes Only -- Not to be Used without Updating
A2: 2021 Estimated Costs and Returns per Acre
A3: Cotton NT - Cover Crop Wheat Irrig
A4: Enter your name for this budget in the cell above.
A5: Enter Your Values in the cells highlighed in MAROON.
E6: Your Acres | R6: Your
C7: Crop Acres | D7: 640 | L7: Your | Q7: Enterprise | R7: Enterprise
E8: Your | H8: Your | I8: Cash | J8: Your | K8: Landlord | L8: Landlord | N8: Your | P8: Your | Q8: Total | R8: Total
A9: REVENUE | D9: Quantity | E9: Quantity | F9: Units | G9: $/Unit | H9: $/Unit | I9: Total | J9: Total | K9: Share | L9: Share | M9: Landlord | N9: Landlord | O9: Tenant | P9: Tenant | Q9: (640 acres) | R9: ="(" & E7 & " acres)" -> ( acres)
B10: Cotton Lint | D10: 1429 | F10: Pound | G10: 0.74 | I10: 1057.46 | J10: =E10*H10 -> 0 | K10: 0 | M10: 0 | N10: =J10*L10 -> 0 | O10: 1057.46 | P10: =+J10-N10 -> 0 | Q10: 676774.4 | R10: =+J10*E$7 -> 0
D11: 0 | G11: 0 | I11: 0 | J11: 0 | K11: 0 | M11: 0 | N11: 0 | O11: 0 | P11: =+J11-N11 -> 0 | Q11: 0 | R11: 0
D12: 0 | G12: 0 | I12: 0 | J12: 0 | K12: 0 | M12: 0 | N12: 0 | O12: 0 | P12: 0 | Q12: 0 | R12: 0
A13: Total Revenue | I13: 1057.46 | J13: =SUM(J10:J12) -> 0 | M13: 0 | N13: =SUM(N10:N12) -> 0 | O13: 1057.46 | P13: =SUM(P10:P12) -> 0 | Q13: 676774.4 | R13: =SUM(R10:R12) -> 0
Q14: Enterprise | R14: Enterprise
A15: VARIABLE COSTS | D15: Quantity | E15: Quantity | F15: Units | G15: $/Unit | H15: $/Unit | I15: Total | J15: Total | K15: Share | L15: Share | M15: Landlord | N15: Landlord | O15: Tenant | P15: Tenant | Q15: Total | R15: Total
A16: Production Costs
B17: Custom
C18: Fertilizer Application | D18: 1 | F18: Acre | G18: 4.5 | I18: 4.5 | J18: =E18*H18 -> 0 | K18: 0 | M18: 0 | N18: =J18*L18 -> 0 | O18: 4.5 | P18: =+J18-N18 -> 0 | Q18: 2880 | R18: =+J18*E$7 -> 0
C19: Custom Stripping | D19: 1429 | F19: Pound | G19: 0.12 | I19: 171.48 | J19: 0 | K19: 0 | M19: 0 | N19: 0 | O19: 171.48 | P19: 0 | Q19: 109747.2 | R19: 0
B20: Fertilizer
C21: Fertilizer (N) | D21: 100 | F21: Pound | G21: 0.25 | I21: 25 | J21: 0 | K21: 0 | M21: 0 | N21: 0 | O21: 25 | P21: 0 | Q21: 16000 | R21: 0
C22: Fertilizer (P) | D22: 50 | F22: Pound | G22: 0.325 | I22: 16.25 | J22: 0 | K22: 0 | M22: 0 | N22: 0 | O22: 16.25 | P22: 0 | Q22: 10400 | R22: 0
B23: Herbicide
C24: Roundup | D24: 2 | F24: Pint | G24: 1.875 | I24: 3.75 | J24: 0 | K24: 0 | M24: 0 | N24: 0 | O24: 3.75 | P24: 0 | Q24: 2400 | R24: 0
C25: Prowl | D25: 64 | F25: Ounces | G25: 0.51 | I25: 32.64 | J25: 0 | K25: 0 | M25: 0 | N25: 0 | O25: 32.64 | P25: 0 | Q25: 20889.6 | R25: 0
C26: Enlist Duo | D26: 4.7 | F26: Pint | G26: 3.515 | I26: 16.5205 | J26: 0 | K26: 0 | M26: 0 | N26: 0 | O26: 16.5205 | P26: 0 | Q26: 10573.12 | R26: 0
C27: Liberty | D27: 29 | F27: Ounce | G27: 0.39 | I27: 11.31 | J27: 0 | K27: 0 | M27: 0 | N27: 0 | O27: 11.31 | P27: 0 | Q27: 7238.4 | R27: 0
C28: Harvest Aid - Prep | D28: 1 | F28: Pint | G28: 3.75 | I28: 3.75 | J28: 0 | K28: 0 | M28: 0 | N28: 0 | O28: 3.75 | P28: 0 | Q28: 2400 | R28: 0
C29: Harvest Aid -Def | D29: 1 | F29: Ounce | G29: 0.546875 | I29: 0.546875 | J29: 0 | K29: 0 | M29: 0 | N29: 0 | O29: 0.546875 | P29: 0 | Q29: 350 | R29: 0
C30: 2,4D | D30: 1.4 | F30: Pint | G30: 2.7475 | I30: 3.8465 | J30: 0 | K30: 0 | M30: 0 | N30: 0 | O30: 3.8465 | P30: 0 | Q30: 2461.76 | R30: 0
C31: Caparol | D31: 1.4 | F31: Pint | G31: 3.75 | I31: 5.25 | J31: 0 | K31: 0 | M31: 0 | N31: 0 | O31: 5.25 | P31: 0 | Q31: 3360 | R31: 0
C32: Dual Magnun | D32: 1.3 | F32: Pint | G32: 12.75 | I32: 16.575 | J32: 0 | K32: 0 | M32: 0 | N32: 0 | O32: 16.575 | P32: 0 | Q32: 10608 | R32: 0
B33: Insecticide
C34: Prevathon | D34: 16 | F34: Ounce | G34: 0.83 | I34: 13.28 | J34: 0 | K34: 0 | M34: 0 | N34: 0 | O34: 13.28 | P34: 0 | Q34: 8499.2 | R34: 0
C35: Brigade | D35: 2 | F35: Ounce | G35: 1.74875 | I35: 3.4975 | J35: 0 | K35: 0 | M35: 0 | N35: 0 | O35: 3.4975 | P35: 0 | Q35: 2238.4 | R35: 0
B36: Miscellaneous
C37: Insurance - Dryland Cotton | D37: 1 | F37: Acre | G37: 15 | I37: 15 | J37: 0 | K37: 0 | M37: 0 | N37: 0 | O37: 15 | P37: 0 | Q37: 9600 | R37: 0
B38: Seed
C39: Cotton Seed | D39: 11.5 | F39: Pound | G39: 8 | I39: 92 | J39: 0 | K39: 0 | M39: 0 | N39: 0 | O39: 92 | P39: 0 | Q39: 58880 | R39: 0
C40: Wheat Seed | D40: 60 | F40: Pound | G40: 0.15 | I40: 9 | J40: 0 | K40: 0 | M40: 0 | N40: 0 | O40: 9 | P40: 0 | Q40: 5760 | R40: 0
D41: 0 | G41: 0 | I41: 0 | J41: 0 | K41: 0 | M41: 0 | N41: 0 | O41: 0 | P41: 0 | Q41: 0 | R41: 0
D42: 0 | G42: 0 | I42: 0 | J42: 0 | K42: 0 | M42: 0 | N42: 0 | O42: 0 | P42: 0 | Q42: 0 | R42: 0
D43: 0 | G43: 0 | I43: 0 | J43: =E43*H43 -> 0 | K43: 0 | M43: 0 | N43: =J43*L43 -> 0 | O43: 0 | P43: =+J43-N43 -> 0 | Q43: 0 | R43: =+J43*E$7 -> 0
B44: Irrigation
C45: Energy Cost | D45: 11.8 | F45: AcreInch | G45: 4.5 | I45: 53.1 | J45: =E45*H45 -> 0 | K45: 0 | M45: 0 | N45: =J45*L45 -> 0 | O45: 53.1 | P45: =+J45-N45 -> 0 | Q45: 33984 | R45: =+J45*E$7 -> 0
C46: Irrigation Labor | D46: 0.96 | F46: Hour | G46: 14 | I46: 13.44 | J46: 0 | K46: 0 | M46: 0 | N46: 0 | O46: 13.44 | P46: 0 | Q46: 8601.6 | R46: 0
B47: Machinery Labor
C48: Tractors/Self-Propelled | D48: 0.33 | F48: Hour | G48: 14 | I48: 4.62 | J48: =E48*H48 -> 0 | K48: 0 | M48: 0 | N48: =J48*L48 -> 0 | O48: 4.62 | P48: =+J48-N48 -> 0 | Q48: 2956.8 | R48: =+J48*E$7 -> 0
C49: Other Labor | D49: 0.4 | F49: Hour | G49: 14 | I49: 5.6 | J49: =E49*H49 -> 0 | K49: 0 | M49: 0 | N49: =J49*L49 -> 0 | O49: 5.6 | P49: =+J49-N49 -> 0 | Q49: 3584 | R49: =+J49*E$7 -> 0
B51: Diesel Fuel
C52: Pickup/General Use Equipment | D52: 1 | F52: Acre | G52: 0 | I52: 0 | J52: =E52*H52 -> 0 | K52: 0 | M52: 0 | N52: =J52*L52 -> 0 | O52: 0 | P52: =+J52-N52 -> 0 | Q52: 0 | R52: =+J52*E$7 -> 0
C53: Tractors/Self-Propelled | D53: 4.19 | F53: Gallon | G53: 1.4 | I53: 5.866 | J53: =E53*H53 -> 0 | K53: 0 | M53: 0 | N53: =J53*L53 -> 0 | O53: 5.866 | P53: =+J53-N53 -> 0 | Q53: 3754.24 | R53: =+J53*E$7 -> 0
B55: Gasoline
C56: Pickup/General Use Equipment | D56: 1 | F56: Acre | G56: 1.0546875 | I56: 1.0546875 | J56: =E56*H56 -> 0 | K56: 0 | M56: 0 | N56: =J56*L56 -> 0 | O56: 1.0546875 | P56: =+J56-N56 -> 0 | Q56: 675 | R56: =+J56*E$7 -> 0
C57: Tractors/Self-Propelled | D57: 0 | F57: Gallon | G57: 2 | I57: 0 | J57: =E57*H57 -> 0 | K57: 0 | M57: 0 | N57: =J57*L57 -> 0 | O57: 0 | P57: =+J57-N57 -> 0 | Q57: 0 | R57: =+J57*E$7 -> 0
B59: Repairs & Maintenance
C60: Pickup/General Use Equipment | D60: 1 | F60: Acre | G60: 0.3515625 | I60: 0.3515625 | J60: =E60*H60 -> 0 | K60: 0 | M60: 0 | N60: =J60*L60 -> 0 | O60: 0.3515625 | P60: =+J60-N60 -> 0 | Q60: 225 | R60: =+J60*E$7 -> 0
C61: Irrigation Equipment | D61: 1 | F61: Acre | G61: 13.11334 | I61: 13.11334 | J61: 0 | K61: 0 | M61: 0 | N61: 0 | O61: 13.11334 | P61: 0 | Q61: 8392.5376 | R61: 0
C62: Tractors/Self-Propelled | D62: 1 | F62: Acre | G62: 10.6328821 | I62: 10.6328821 | J62: 0 | K62: 0 | M62: 0 | N62: 0 | O62: 10.6328821 | P62: 0 | Q62: 6805.044546 | R62: 0
C63: Implements | D63: 1 | F63: Acre | G63: 15.8914168 | I63: 15.8914168 | J63: 0 | K63: 0 | M63: 0 | N63: 0 | O63: 15.8914168 | P63: 0 | Q63: 10170.50675 | R63: 0
I64: 0 | J64: 0 | K64: 0 | M64: 0 | N64: 0 | O64: 0 | P64: 0 | Q64: 0 | R64: 0
I65: 0 | J65: 0 | K65: 0 | M65: 0 | N65: 0 | O65: 0 | P65: 0 | Q65: 0 | R65: 0
B66: Interest on Credit Line | G66: 0.065 | I66: 15.03594964 | J66: =+SUM(J17:J65)/2*H66 -> 0 | M66: 0 | N66: =+SUM(N17:N65)/2*L66 -> 0 | O66: 15.03594964 | P66: =+SUM(P17:P65)/2*L66 -> 0 | Q66: 9623.00777 | R66: =+J66*E$7 -> 0
A67: Total Variable Costs | I67: 582.9022135 | J67: =SUM(J18:J66) -> 0 | M67: 0 | N67: =SUM(N18:N66) -> 0 | O67: 582.9022135 | P67: =SUM(P18:P66) -> 0 | Q67: 373057.4167 | R67: =SUM(R18:R66) -> 0
A68: Planned Returns Above Variable Costs: | I68: 474.5577865 | J68: =+J13-J67 -> 0 | M68: 0 | N68: =+N13-N67 -> 0 | O68: 474.5577865 | P68: =+P13-P67 -> 0 | Q68: 303716.9833 | R68: =+R13-R67 -> 0
B69: Breakeven Price to Cover Variable Costs | G69: 0.4079091767 | H69: =IF(E10=0,"n/a",(YVarExp-(YTotExp+YTotRet-J10))/E10) -> n/a | I69: Pound
Q70: Enterprise | R70: Enterprise
A71: FIXED COSTS | D71: Quantity | E71: Quantity | F71: Units | G71: $/Unit | H71: $/Unit | I71: Total | J71: Total | K71: Share | L71: Share | M71: Landlord | N71: Landlord | O71: Tenant | P71: Tenant | Q71: Total | R71: Total
B72: Machinery Depreciation
C73: Pickup/General Use Equipment | D73: 1 | F73: Acre | G73: 0.4880859375 | I73: 0.4880859375 | J73: =E73*H73 -> 0 | K73: 0 | M73: 0 | N73: =J73*L73 -> 0 | O73: 0.4880859375 | P73: =+J73-N73 -> 0 | Q73: 312.375 | R73: =+J73*E$7 -> 0
C74: Irrigation Equipment | D74: 1 | F74: Acre | G74: 24.375 | I74: 24.375 | J74: 0 | K74: 0 | M74: 0 | N74: =J74*L74 -> 0 | O74: 24.375 | P74: 0 | Q74: 15600 | R74: 0
C75: Tractors/Self-Propelled | D75: 1 | F75: Acre | G75: 15.22155594 | I75: 15.22155594 | J75: 0 | K75: 0 | M75: 0 | N75: =J75*L75 -> 0 | O75: 15.22155594 | P75: 0 | Q75: 9741.795804 | R75: 0
C76: Implements | D76: 1 | F76: Acre | G76: 17.3317586 | I76: 17.3317586 | J76: 0 | K76: 0 | M76: 0 | N76: =J76*L76 -> 0 | O76: 17.3317586 | P76: 0 | Q76: 11092.3255 | R76: 0
B77: Equipment Investment
C78: Pickup/General Use Equipment | D78: 3.418945312 | F78: Dollars | G78: 0.055 | I78: 0.1880419922 | J78: =E78*H78 -> 0 | K78: 0 | M78: 0 | N78: =J78*L78 -> 0 | O78: 0.1880419922 | P78: =+J78-N78 -> 0 | Q78: 120.346875 | R78: =+J78*E$7 -> 0
C79: Irrigation Equipment | D79: 710.9375 | F79: Dollars | G79: 0.055 | I79: 39.1015625 | J79: 0 | K79: 0 | M79: 0 | N79: =J79*L79 -> 0 | O79: 39.1015625 | P79: 0 | Q79: 25025 | R79: 0
C80: Tractors/Self-Propelled | D80: 116.6134549 | F80: Dollars | G80: 0.055 | I80: 6.41374002 | J80: 0 | K80: 0 | M80: 0 | N80: =J80*L80 -> 0 | O80: 6.41374002 | P80: 0 | Q80: 4104.793613 | R80: 0
C81: Implements | D81: 74.14141178 | F81: Dollars | G81: 0.055 | I81: 4.077777648 | J81: 0 | K81: 0 | M81: 0 | N81: =J81*L81 -> 0 | O81: 4.077777648 | P81: 0 | Q81: 2609.777695 | R81: 0
B82: Salaried Labor | D82: 1 | F82: Acre | G82: 0 | I82: 0 | J82: 0 | K82: 0 | M82: 0 | N82: =J82*L82 -> 0 | O82: 0 | P82: =+J82-N82 -> 0 | Q82: 0 | R82: =+J82*E$7 -> 0
B83: Management Fee, Owner/Operator Labor | D83: 1 | F83: Acre | G83: 0 | I83: 0 | J83: 0 | K83: 0 | M83: 0 | N83: 0 | O83: 0 | P83: 0 | Q83: 0 | R83: 0
B84: Allocated Establishment Cost | D84: 1 | F84: Acre | G84: 0 | I84: 0 | J84: 0 | K84: 0 | M84: 0 | N84: 0 | O84: 0 | P84: 0 | Q84: 0 | R84: 0
B85: Cash Rent - Irrigated Cotton | D85: 1 | F85: Acre | G85: 90 | I85: 90 | J85: 0 | K85: 0 | M85: 0 | N85: 0 | O85: 90 | P85: 0 | Q85: 57600 | R85: 0
B86: Property Taxes | D86: 1 | F86: Acre | G86: 0 | I86: 0 | J86: 0 | K86: 0 | M86: 0 | N86: 0 | O86: 0 | P86: 0 | Q86: 0 | R86: 0
B87: Whole Farm Insurance | D87: 1 | F87: Acre | G87: 0 | I87: 0 | J87: 0 | K87: 0 | M87: 0 | N87: 0 | O87: 0 | P87: 0 | Q87: 0 | R87: 0
D88: 1 | G88: 0 | I88: 0 | J88: 0 | K88: 0 | M88: 0 | N88: 0 | O88: 0 | P88: 0 | Q88: 0 | R88: 0
D89: 1 | G89: 0 | I89: 0 | J89: =E89*H89 -> 0 | K89: 0 | M89: 0 | N89: 0 | O89: 0 | P89: 0 | Q89: 0 | R89: 0
A90: Total Fixed Costs | I90: 197.1975226 | J90: =+SUM(J73:J89) -> 0 | M90: 0 | N90: =+SUM(N73:N89) -> 0 | O90: 197.1975226 | P90: =+SUM(P73:P89) -> 0 | Q90: 126206.4145 | R90: =+SUM(R73:R89) -> 0
A91: Total Specified Costs | I91: 780.0997362 | J91: =+J67+J90 -> 0 | M91: 0 | N91: =+N67+N90 -> 0 | O91: 780.0997362 | P91: =+P67+P90 -> 0 | Q91: 499263.8312 | R91: =+R67+R90 -> 0
A93: Returns Above Specified Costs | I93: 277.3602638 | J93: =+J13-J91 -> 0 | M93: 0 | N93: =+N13-N91 -> 0 | O93: 277.3602638 | P93: =+P13-P91 -> 0 | Q93: 177510.5688 | R93: =+R13-R91 -> 0
A95: Breakeven Price to Cover Total Costs | G95: 0.5459060435 | H95: =IF(E10=0,"n/a",(YTotExp-(YTotExp+YTotRet-J10))/E10) -> n/a | I95: Pound
D97: Example Breakeven Prices
B98: Example | C98: Example | D98: To Cover | G98: To Cover
B99: Yield | C99: Yield | D99: Variable | G99: Total
B100: Percent | C100: Pound | D100: Costs | G100: Costs
B101: 0.75 | C101: 1071.75 | D101: 0.5438789023 | G101: 0.7278747247
B102: 0.9 | C102: 1286.1 | D102: 0.4532324186 | G102: 0.6065622706
B103: 1 | C103: 1429 | D103: 0.4079091767 | G103: 0.5459060435
B104: 1.1 | C104: 1571.9 | D104: 0.3708265243 | G104: 0.4962782214
B105: 1.25 | C105: 1786.25 | D105: 0.3263273414 | G105: 0.4367248348
A107: Francisco Abelló, Assistant Professor and Extension Specialist, Texas A&M AgriLife Extension, 940-647-3908
A109: Information presented is prepared solely as a general guide and not intended to recognize or predict the costs and returns from any one operation. Brand names are mentioned only as examples and imply no endorsement.

Sheet Peanuts
A1: Projections for Planning Purposes Only -- Not to be Used without Updating
A2: 2021 Estimated Costs and Returns per Acre
A3: Irrigated Peanuts
A4: Enter your name for this budget in the cell above.
A5: Enter Your Values in the cells highlighed in MAROON.
E6: Your Acres | R6: Your
C7: Crop Acres | D7: 120 | L7: Your | Q7: Enterprise | R7: Enterprise
E8: Your | H8: Your | I8: Cash | J8: Your | K8: Landlord | L8: Landlord | N8: Your | P8: Your | Q8: Total | R8: Total
A9: REVENUE | D9: Quantity | E9: Quantity | F9: Units | G9: $/Unit | H9: $/Unit | I9: Total | J9: Total | K9: Share | L9: Share | M9: Landlord | N9: Landlord | O9: Tenant | P9: Tenant | Q9: (120 acres) | R9: ="(" & E7 & " acres)" -> ( acres)
B10: Runner Peanuts | D10: 2 | F10: Ton | G10: 470 | I10: 940 | J10: =E10*H10 -> 0 | K10: 0 | M10: 0 | N10: =J10*L10 -> 0 | O10: 940 | P10: =+J10-N10 -> 0 | Q10: 112800 | R10: =+J10*E$7 -> 0
D11: 0 | G11: 0 | I11: 0 | J11: 0 | K11: 0 | M11: 0 | N11: 0 | O11: 0 | P11: =+J11-N11 -> 0 | Q11: 0 | R11: 0
D12: 0 | G12: 0 | I12: 0 | J12: 0 | K12: 0 | M12: 0 | N12: 0 | O12: 0 | P12: 0 | Q12: 0 | R12: 0
A13: Total Revenue | I13: 940 | J13: =SUM(J10:J12) -> 0 | M13: 0 | N13: =SUM(N10:N12) -> 0 | O13: 940 | P13: =SUM(P10:P12) -> 0 | Q13: 112800 | R13: =SUM(R10:R12) -> 0
Q14: Enterprise | R14: Enterprise
A15: VARIABLE COSTS | D15: Quantity | E15: Quantity | F15: Units | G15: $/Unit | H15: $/Unit | I15: Total | J15: Total | K15: Share | L15: Share | M15: Landlord | N15: Landlord | O15: Tenant | P15: Tenant | Q15: Total | R15: Total
A16: Production Costs
B17: Custom
C18: Drying - Peanut | D18: 2 | F18: Ton | G18: 20 | I18: 40 | J18: =E18*H18 -> 0 | K18: 0 | M18: 0 | N18: =J18*L18 -> 0 | O18: 40 | P18: =+J18-N18 -> 0 | Q18: 4800 | R18: =+J18*E$7 -> 0
C19: Fertilizer Application | D19: 1 | F19: Acre | G19: 4.5 | I19: 4.5 | J19: 0 | K19: 0 | M19: 0 | N19: 0 | O19: 4.5 | P19: 0 | Q19: 540 | R19: 0
B20: Fertilizer
C21: Fertilizer (N) | D21: 80 | F21: Pound | G21: 0.25 | I21: 20 | J21: 0 | K21: 0 | M21: 0 | N21: 0 | O21: 20 | P21: 0 | Q21: 2400 | R21: 0
C22: Fertilizer (P) | D22: 50 | F22: Pound | G22: 0.325 | I22: 16.25 | J22: 0 | K22: 0 | M22: 0 | N22: 0 | O22: 16.25 | P22: 0 | Q22: 1950 | R22: 0
B23: Herbicide
C24: Prowl | D24: 1.5 | F24: Ounces | G24: 0.51 | I24: 0.765 | J24: 0 | K24: 0 | M24: 0 | N24: 0 | O24: 0.765 | P24: 0 | Q24: 91.8 | R24: 0
C25: Valor SX | D25: 2 | F25: Ounce | G25: 3.875 | I25: 7.75 | J25: 0 | K25: 0 | M25: 0 | N25: 0 | O25: 7.75 | P25: 0 | Q25: 930 | R25: 0
C26: Cobra | D26: 12.5 | F26: Ounce | G26: 1.896875 | I26: 23.7109375 | J26: 0 | K26: 0 | M26: 0 | N26: 0 | O26: 23.7109375 | P26: 0 | Q26: 2845.3125 | R26: 0
B27: Seed
C28: Peanut Seed | D28: 90 | F28: Pound | G28: 0.95 | I28: 85.5 | J28: 0 | K28: 0 | M28: 0 | N28: 0 | O28: 85.5 | P28: 0 | Q28: 10260 | R28: 0
B29: Fungicides
C30: Folicular Fungicide-Abound | D30: 24.5 | F30: Ounce | G30: 1.483984375 | I30: 36.35761719 | J30: 0 | K30: 0 | M30: 0 | N30: 0 | O30: 36.35761719 | P30: 0 | Q30: 4362.914062 | R30: 0
C31: Fungicide - Bravo | D31: 1.5 | F31: Pint | G31: 3.5625 | I31: 5.34375 | J31: 0 | K31: 0 | M31: 0 | N31: 0 | O31: 5.34375 | P31: 0 | Q31: 641.25 | R31: 0
D32: 0 | G32: 0 | I32: 0 | J32: 0 | K32: 0 | M32: 0 | N32: 0 | O32: 0 | P32: 0 | Q32: 0 | R32: 0
D33: 0 | G33: 0 | I33: 0 | J33: 0 | K33: 0 | M33: 0 | N33: 0 | O33: 0 | P33: 0 | Q33: 0 | R33: 0
D34: 0 | G34: 0 | I34: 0 | J34: =E34*H34 -> 0 | K34: 0 | M34: 0 | N34: =J34*L34 -> 0 | O34: 0 | P34: =+J34-N34 -> 0 | Q34: 0 | R34: =+J34*E$7 -> 0
B35: Irrigation
C36: Energy Cost | D36: 18.95 | F36: AcreInch | G36: 4.5 | I36: 85.275 | J36: =E36*H36 -> 0 | K36: 0 | M36: 0 | N36: =J36*L36 -> 0 | O36: 85.275 | P36: =+J36-N36 -> 0 | Q36: 10233 | R36: =+J36*E$7 -> 0
C37: Irrigation Labor | D37: 1.208 | F37: Hour | G37: 14 | I37: 16.912 | J37: 0 | K37: 0 | M37: 0 | N37: 0 | O37: 16.912 | P37: 0 | Q37: 2029.44 | R37: 0
B38: Machinery Labor
C39: Tractors/Self-Propelled | D39: 2.84 | F39: Hour | G39: 14 | I39: 39.76 | J39: =E39*H39 -> 0 | K39: 0 | M39: 0 | N39: =J39*L39 -> 0 | O39: 39.76 | P39: =+J39-N39 -> 0 | Q39: 4771.2 | R39: =+J39*E$7 -> 0
C40: Other Labor | D40: 3.41 | F40: Hour | G40: 14 | I40: 47.74 | J40: =E40*H40 -> 0 | K40: 0 | M40: 0 | N40: =J40*L40 -> 0 | O40: 47.74 | P40: =+J40-N40 -> 0 | Q40: 5728.8 | R40: =+J40*E$7 -> 0
B42: Diesel Fuel
C43: Pickup/General Use Equipment | D43: 1 | F43: Acre | G43: 0 | I43: 0 | J43: =E43*H43 -> 0 | K43: 0 | M43: 0 | N43: =J43*L43 -> 0 | O43: 0 | P43: =+J43-N43 -> 0 | Q43: 0 | R43: =+J43*E$7 -> 0
C44: Tractors/Self-Propelled | D44: 37.09 | F44: Gallon | G44: 1.4 | I44: 51.926 | J44: =E44*H44 -> 0 | K44: 0 | M44: 0 | N44: =J44*L44 -> 0 | O44: 51.926 | P44: =+J44-N44 -> 0 | Q44: 6231.12 | R44: =+J44*E$7 -> 0
B46: Gasoline
C47: Pickup/General Use Equipment | D47: 1 | F47: Acre | G47: 6.375 | I47: 6.375 | J47: =E47*H47 -> 0 | K47: 0 | M47: 0 | N47: =J47*L47 -> 0 | O47: 6.375 | P47: =+J47-N47 -> 0 | Q47: 765 | R47: =+J47*E$7 -> 0
C48: Tractors/Self-Propelled | D48: 0 | F48: Gallon | G48: 2 | I48: 0 | J48: =E48*H48 -> 0 | K48: 0 | M48: 0 | N48: =J48*L48 -> 0 | O48: 0 | P48: =+J48-N48 -> 0 | Q48: 0 | R48: =+J48*E$7 -> 0
B50: Repairs & Maintenance
C51: Pickup/General Use Equipment | D51: 1 | F51: Acre | G51: 2.125 | I51: 2.125 | J51: =E51*H51 -> 0 | K51: 0 | M51: 0 | N51: =J51*L51 -> 0 | O51: 2.125 | P51: =+J51-N51 -> 0 | Q51: 255 | R51: =+J51*E$7 -> 0
C52: Irrigation Equipment | D52: 1 | F52: Acre | G52: 16.670315 | I52: 16.670315 | J52: 0 | K52: 0 | M52: 0 | N52: 0 | O52: 16.670315 | P52: 0 | Q52: 2000.4378 | R52: 0
C53: Tractors/Self-Propelled | D53: 1 | F53: Acre | G53: 37.12047168 | I53: 37.12047168 | J53: 0 | K53: 0 | M53: 0 | N53: 0 | O53: 37.12047168 | P53: 0 | Q53: 4454.456601 | R53: 0
C54: Implements | D54: 1 | F54: Acre | G54: 15.08598076 | I54: 15.08598076 | J54: 0 | K54: 0 | M54: 0 | N54: 0 | O54: 15.08598076 | P54: 0 | Q54: 1810.317692 | R54: 0
I55: 0 | J55: 0 | K55: 0 | M55: 0 | N55: 0 | O55: 0 | P55: 0 | Q55: 0 | R55: 0
I56: 0 | J56: 0 | K56: 0 | M56: 0 | N56: 0 | O56: 0 | P56: 0 | Q56: 0 | R56: 0
B57: Interest on Credit Line | G57: 0.065 | I57: 16.5045147 | J57: =+SUM(J17:J56)/2*H57 -> 0 | M57: 0 | N57: =+SUM(N17:N56)/2*L57 -> 0 | O57: 16.5045147 | P57: =+SUM(P17:P56)/2*L57 -> 0 | Q57: 1980.541764 | R57: =+J57*E$7 -> 0
A58: Total Variable Costs | I58: 575.6715868 | J58: =SUM(J18:J57) -> 0 | M58: 0 | N58: =SUM(N18:N57) -> 0 | O58: 575.6715868 | P58: =SUM(P18:P57) -> 0 | Q58: 69080.59042 | R58: =SUM(R18:R57) -> 0
A59: Planned Returns Above Variable Costs: | I59: 364.3284132 | J59: =+J13-J58 -> 0 | M59: 0 | N59: =+N13-N58 -> 0 | O59: 364.3284132 | P59: =+P13-P58 -> 0 | Q59: 43719.40958 | R59: =+R13-R58 -> 0
B60: Breakeven Price to Cover Variable Costs | G60: 287.8357934 | H60: =IF(E10=0,"n/a",(YVarExp-(YTotExp+YTotRet-J10))/E10) -> n/a | I60: Ton
Q61: Enterprise | R61: Enterprise
A62: FIXED COSTS | D62: Quantity | E62: Quantity | F62: Units | G62: $/Unit | H62: $/Unit | I62: Total | J62: Total | K62: Share | L62: Share | M62: Landlord | N62: Landlord | O62: Tenant | P62: Tenant | Q62: Total | R62: Total
B63: Machinery Depreciation
C64: Pickup/General Use Equipment | D64: 1 | F64: Acre | G64: 2.950208333 | I64: 2.950208333 | J64: =E64*H64 -> 0 | K64: 0 | M64: 0 | N64: =J64*L64 -> 0 | O64: 2.950208333 | P64: =+J64-N64 -> 0 | Q64: 354.025 | R64: =+J64*E$7 -> 0
C65: Irrigation Equipment | D65: 1 | F65: Acre | G65: 25.16129032 | I65: 25.16129032 | J65: 0 | K65: 0 | M65: 0 | N65: =J65*L65 -> 0 | O65: 25.16129032 | P65: 0 | Q65: 3019.354839 | R65: 0
C66: Tractors/Self-Propelled | D66: 1 | F66: Acre | G66: 109.7625792 | I66: 109.7625792 | J66: 0 | K66: 0 | M66: 0 | N66: =J66*L66 -> 0 | O66: 109.7625792 | P66: 0 | Q66: 13171.5095 | R66: 0
C67: Implements | D67: 1 | F67: Acre | G67: 18.52623102 | I67: 18.52623102 | J67: 0 | K67: 0 | M67: 0 | N67: =J67*L67 -> 0 | O67: 18.52623102 | P67: 0 | Q67: 2223.147722 | R67: 0
B68: Equipment Investment
C69: Pickup/General Use Equipment | D69: 20.665625 | F69: Dollars | G69: 0.055 | I69: 1.136609375 | J69: =E69*H69 -> 0 | K69: 0 | M69: 0 | N69: =J69*L69 -> 0 | O69: 1.136609375 | P69: =+J69-N69 -> 0 | Q69: 136.393125 | R69: =+J69*E$7 -> 0
C70: Irrigation Equipment | D70: 733.8709677 | F70: Dollars | G70: 0.055 | I70: 40.36290323 | J70: 0 | K70: 0 | M70: 0 | N70: =J70*L70 -> 0 | O70: 40.36290323 | P70: 0 | Q70: 4843.548387 | R70: 0
C71: Tractors/Self-Propelled | D71: 821.9087845 | F71: Dollars | G71: 0.055 | I71: 45.20498314 | J71: 0 | K71: 0 | M71: 0 | N71: =J71*L71 -> 0 | O71: 45.20498314 | P71: 0 | Q71: 5424.597977 | R71: 0
C72: Implements | D72: 236.2664574 | F72: Dollars | G72: 0.055 | I72: 12.99465516 | J72: 0 | K72: 0 | M72: 0 | N72: =J72*L72 -> 0 | O72: 12.99465516 | P72: 0 | Q72: 1559.358619 | R72: 0
B73: Salaried Labor | D73: 1 | F73: Acre | G73: 0 | I73: 0 | J73: 0 | K73: 0 | M73: 0 | N73: =J73*L73 -> 0 | O73: 0 | P73: =+J73-N73 -> 0 | Q73: 0 | R73: =+J73*E$7 -> 0
B74: Management Fee, Owner/Operator Labor | D74: 1 | F74: Acre | G74: 0 | I74: 0 | J74: 0 | K74: 0 | M74: 0 | N74: 0 | O74: 0 | P74: 0 | Q74: 0 | R74: 0
B75: Allocated Establishment Cost | D75: 1 | F75: Acre | G75: 0 | I75: 0 | J75: 0 | K75: 0 | M75: 0 | N75: 0 | O75: 0 | P75: 0 | Q75: 0 | R75: 0
B76: Cash Rent - Peanuts | D76: 1 | F76: Acre | G76: 90 | I76: 90 | J76: 0 | K76: 0 | M76: 0 | N76: 0 | O76: 90 | P76: 0 | Q76: 10800 | R76: 0
B77: Property Taxes | D77: 1 | F77: Acre | G77: 0 | I77: 0 | J77: 0 | K77: 0 | M77: 0 | N77: 0 | O77: 0 | P77: 0 | Q77: 0 | R77: 0
B78: Whole Farm Insurance | D78: 1 | F78: Acre | G78: 0 | I78: 0 | J78: 0 | K78: 0 | M78: 0 | N78: 0 | O78: 0 | P78: 0 | Q78: 0 | R78: 0
D79: 1 | G79: 0 | I79: 0 | J79: 0 | K79: 0 | M79: 0 | N79: 0 | O79: 0 | P79: 0 | Q79: 0 | R79: 0
D80: 1 | G80: 0 | I80: 0 | J80: =E80*H80 -> 0 | K80: 0 | M80: 0 | N80: 0 | O80: 0 | P80: 0 | Q80: 0 | R80: 0
A81: Total Fixed Costs | I81: 346.0994598 | J81: =+SUM(J64:J80) -> 0 | M81: 0 | N81: =+SUM(N64:N80) -> 0 | O81: 346.0994598 | P81: =+SUM(P64:P80) -> 0 | Q81: 41531.93517 | R81: =+SUM(R64:R80) -> 0
A82: Total Specified Costs | I82: 921.7710466 | J82: =+J58+J81 -> 0 | M82: 0 | N82: =+N58+N81 -> 0 | O82: 921.7710466 | P82: =+P58+P81 -> 0 | Q82: 110612.5256 | R82: =+R58+R81 -> 0
A84: Returns Above Specified Costs | I84: 18.2289534 | J84: =+J13-J82 -> 0 | M84: 0 | N84: =+N13-N82 -> 0 | O84: 18.2289534 | P84: =+P13-P82 -> 0 | Q84: 2187.474408 | R84: =+R13-R82 -> 0
A86: Breakeven Price to Cover Total Costs | G86: 460.8855233 | H86: =IF(E10=0,"n/a",(YTotExp-(YTotExp+YTotRet-J10))/E10) -> n/a | I86: Ton
D88: Example Breakeven Prices
B89: Example | C89: Example | D89: To Cover | G89: To Cover
B90: Yield | C90: Yield | D90: Variable | G90: Total
B91: Percent | C91: Ton | D91: Costs | G91: Costs
B92: 0.75 | C92: 1.5 | D92: 383.7810579 | G92: 614.5140311
B93: 0.9 | C93: 1.8 | D93: 319.8175482 | G93: 512.0950259
B94: 1 | C94: 2 | D94: 287.8357934 | G94: 460.8855233
B95: 1.1 | C95: 2.2 | D95: 261.6689031 | G95: 418.9868394
B96: 1.25 | C96: 2.5 | D96: 230.2686347 | G96: 368.7084186
A98: Francisco Abelló, Assistant Professor and Extension Specialist, Texas A&M AgriLife Extension, 940-647-3908
A100: Information presented is prepared solely as a general guide and not intended to recognize or predict the costs and returns from any one operation. Brand names are mentioned only as examples and imply no endorsement.

Sheet SorghumDryland
A1: Projections for Planning Purposes Only -- Not to be Used without Updating
A2: 2021 Estimated Costs and Returns per Acre
A3: Dryland Sorghum
A4: Enter your name for this budget in the cell above.
A5: Enter Your Values in the cells highlighed in MAROON.
E6: Your Acres | R6: Your
C7: Crop Acres | D7: 640 | L7: Your | Q7: Enterprise | R7: Enterprise
E8: Your | H8: Your | I8: Cash | J8: Your | K8: Landlord | L8: Landlord | N8: Your | P8: Your | Q8: Total | R8: Total
A9: REVENUE | D9: Quantity | E9: Quantity | F9: Units | G9: $/Unit | H9: $/Unit | I9: Total | J9: Total | K9: Share | L9: Share | M9: Landlord | N9: Landlord | O9: Tenant | P9: Tenant | Q9: (640 acres) | R9: ="(" & E7 & " acres)" -> ( acres)
B10: Grain Sorghum | D10: 25 | F10: CWT | G10: 8 | I10: 200 | J10: =E10*H10 -> 0 | K10: 0 | M10: 0 | N10: =J10*L10 -> 0 | O10: 200 | P10: =+J10-N10 -> 0 | Q10: 128000 | R10: =+J10*E$7 -> 0
D11: 0 | G11: 0 | I11: 0 | J11: 0 | K11: 0 | M11: 0 | N11: 0 | O11: 0 | P11: =+J11-N11 -> 0 | Q11: 0 | R11: 0
D12: 0 | G12: 0 | I12: 0 | J12: 0 | K12: 0 | M12: 0 | N12: 0 | O12: 0 | P12: 0 | Q12: 0 | R12: 0
A13: Total Revenue | I13: 200 | J13: =SUM(J10:J12) -> 0 | M13: 0 | N13: =SUM(N10:N12) -> 0 | O13: 200 | P13: =SUM(P10:P12) -> 0 | Q13: 128000 | R13: =SUM(R10:R12) -> 0
Q14: Enterprise | R14: Enterprise
A15: VARIABLE COSTS | D15: Quantity | E15: Quantity | F15: Units | G15: $/Unit | H15: $/Unit | I15: Total | J15: Total | K15: Share | L15: Share | M15: Landlord | N15: Landlord | O15: Tenant | P15: Tenant | Q15: Total | R15: Total
A16: Production Costs
B17: Herbicide
C18: Atrazine | D18: 1 | F18: Quart | G18: 4.125 | I18: 4.125 | J18: =E18*H18 -> 0 | K18: 0 | M18: 0 | N18: =J18*L18 -> 0 | O18: 4.125 | P18: =+J18-N18 -> 0 | Q18: 2640 | R18: =+J18*E$7 -> 0
B19: Seed
C20: Grain Sorghum Seed | D20: 3 | F20: Pound | G20: 2.5 | I20: 7.5 | J20: 0 | K20: 0 | M20: 0 | N20: 0 | O20: 7.5 | P20: 0 | Q20: 4800 | R20: 0
B21: Custom
C22: Custom Harvest Sorghum | D22: 1 | F22: Acre | G22: 24 | I22: 24 | J22: 0 | K22: 0 | M22: 0 | N22: 0 | O22: 24 | P22: 0 | Q22: 15360 | R22: 0
C23: Custom Haul Sorghum | D23: 22 | F23: CWT | G23: 0.48 | I23: 10.56 | J23: 0 | K23: 0 | M23: 0 | N23: 0 | O23: 10.56 | P23: 0 | Q23: 6758.4 | R23: 0
B24: Miscellaneous
C25: Insurance - Grain Sorghum | D25: 1 | F25: Acre | G25: 12 | I25: 12 | J25: 0 | K25: 0 | M25: 0 | N25: 0 | O25: 12 | P25: 0 | Q25: 7680 | R25: 0
D26: 0 | G26: 0 | I26: 0 | J26: 0 | K26: 0 | M26: 0 | N26: 0 | O26: 0 | P26: 0 | Q26: 0 | R26: 0
D27: 0 | G27: 0 | I27: 0 | J27: 0 | K27: 0 | M27: 0 | N27: 0 | O27: 0 | P27: 0 | Q27: 0 | R27: 0
D28: 0 | G28: 0 | I28: 0 | J28: =E28*H28 -> 0 | K28: 0 | M28: 0 | N28: =J28*L28 -> 0 | O28: 0 | P28: =+J28-N28 -> 0 | Q28: 0 | R28: =+J28*E$7 -> 0
B29: Machinery Labor
C30: Tractors/Self-Propelled | D30: 0.68 | F30: Hour | G30: 14 | I30: 9.52 | J30: =E30*H30 -> 0 | K30: 0 | M30: 0 | N30: =J30*L30 -> 0 | O30: 9.52 | P30: =+J30-N30 -> 0 | Q30: 6092.8 | R30: =+J30*E$7 -> 0
C31: Other Labor | D31: 0.81 | F31: Hour | G31: 14 | I31: 11.34 | J31: =E31*H31 -> 0 | K31: 0 | M31: 0 | N31: =J31*L31 -> 0 | O31: 11.34 | P31: =+J31-N31 -> 0 | Q31: 7257.6 | R31: =+J31*E$7 -> 0
B33: Diesel Fuel
C34: Pickup/General Use Equipment | D34: 1 | F34: Acre | G34: 0 | I34: 0 | J34: =E34*H34 -> 0 | K34: 0 | M34: 0 | N34: =J34*L34 -> 0 | O34: 0 | P34: =+J34-N34 -> 0 | Q34: 0 | R34: =+J34*E$7 -> 0
C35: Tractors/Self-Propelled | D35: 4.61 | F35: Gallon | G35: 1.4 | I35: 6.454 | J35: =E35*H35 -> 0 | K35: 0 | M35: 0 | N35: =J35*L35 -> 0 | O35: 6.454 | P35: =+J35-N35 -> 0 | Q35: 4130.56 | R35: =+J35*E$7 -> 0
B37: Gasoline
C38: Pickup/General Use Equipment | D38: 1 | F38: Acre | G38: 2.109375 | I38: 2.109375 | J38: =E38*H38 -> 0 | K38: 0 | M38: 0 | N38: =J38*L38 -> 0 | O38: 2.109375 | P38: =+J38-N38 -> 0 | Q38: 1350 | R38: =+J38*E$7 -> 0
C39: Tractors/Self-Propelled | D39: 0 | F39: Gallon | G39: 2 | I39: 0 | J39: =E39*H39 -> 0 | K39: 0 | M39: 0 | N39: =J39*L39 -> 0 | O39: 0 | P39: =+J39-N39 -> 0 | Q39: 0 | R39: =+J39*E$7 -> 0
B41: Repairs & Maintenance
C42: Pickup/General Use Equipment | D42: 1 | F42: Acre | G42: 0.703125 | I42: 0.703125 | J42: =E42*H42 -> 0 | K42: 0 | M42: 0 | N42: =J42*L42 -> 0 | O42: 0.703125 | P42: =+J42-N42 -> 0 | Q42: 450 | R42: =+J42*E$7 -> 0
C43: Irrigation Equipment | D43: 1 | F43: Acre | G43: 0 | I43: 0 | J43: 0 | K43: 0 | M43: 0 | N43: 0 | O43: 0 | P43: 0 | Q43: 0 | R43: 0
C44: Tractors/Self-Propelled | D44: 1 | F44: Acre | G44: 9.445454742 | I44: 9.445454742 | J44: 0 | K44: 0 | M44: 0 | N44: 0 | O44: 9.445454742 | P44: 0 | Q44: 6045.091035 | R44: 0
C45: Implements | D45: 1 | F45: Acre | G45: 9.336959318 | I45: 9.336959318 | J45: 0 | K45: 0 | M45: 0 | N45: 0 | O45: 9.336959318 | P45: 0 | Q45: 5975.653964 | R45: 0
I46: 0 | J46: 0 | K46: 0 | M46: 0 | N46: 0 | O46: 0 | P46: 0 | Q46: 0 | R46: 0
I47: 0 | J47: 0 | K47: 0 | M47: 0 | N47: 0 | O47: 0 | P47: 0 | Q47: 0 | R47: 0
B48: Interest on Credit Line | G48: 0.065 | I48: 2.02586864 | J48: =+SUM(J17:J47)/2*H48 -> 0 | M48: 0 | N48: =+SUM(N17:N47)/2*L48 -> 0 | O48: 2.02586864 | P48: =+SUM(P17:P47)/2*L48 -> 0 | Q48: 1296.55593 | R48: =+J48*E$7 -> 0
A49: Total Variable Costs | I49: 109.1197827 | J49: =SUM(J18:J48) -> 0 | M49: 0 | N49: =SUM(N18:N48) -> 0 | O49: 109.1197827 | P49: =SUM(P18:P48) -> 0 | Q49: 69836.66093 | R49: =SUM(R18:R48) -> 0
A50: Planned Returns Above Variable Costs: | I50: 90.8802173 | J50: =+J13-J49 -> 0 | M50: 0 | N50: =+N13-N49 -> 0 | O50: 90.8802173 | P50: =+P13-P49 -> 0 | Q50: 58163.33907 | R50: =+R13-R49 -> 0
B51: Breakeven Price to Cover Variable Costs | G51: 4.364791308 | H51: =IF(E10=0,"n/a",(YVarExp-(YTotExp+YTotRet-J10))/E10) -> n/a | I51: CWT
Q52: Enterprise | R52: Enterprise
A53: FIXED COSTS | D53: Quantity | E53: Quantity | F53: Units | G53: $/Unit | H53: $/Unit | I53: Total | J53: Total | K53: Share | L53: Share | M53: Landlord | N53: Landlord | O53: Tenant | P53: Tenant | Q53: Total | R53: Total
B54: Machinery Depreciation
C55: Pickup/General Use Equipment | D55: 1 | F55: Acre | G55: 0.976171875 | I55: 0.976171875 | J55: =E55*H55 -> 0 | K55: 0 | M55: 0 | N55: =J55*L55 -> 0 | O55: 0.976171875 | P55: =+J55-N55 -> 0 | Q55: 624.75 | R55: =+J55*E$7 -> 0
C56: Tractors/Self-Propelled | D56: 1 | F56: Acre | G56: 9.760303233 | I56: 9.760303233 | J56: 0 | K56: 0 | M56: 0 | N56: =J56*L56 -> 0 | O56: 9.760303233 | P56: 0 | Q56: 6246.594069 | R56: 0
C57: Implements | D57: 1 | F57: Acre | G57: 11.7592659 | I57: 11.7592659 | J57: 0 | K57: 0 | M57: 0 | N57: =J57*L57 -> 0 | O57: 11.7592659 | P57: 0 | Q57: 7525.930176 | R57: 0
B58: Equipment Investment
C59: Pickup/General Use Equipment | D59: 6.837890625 | F59: Dollars | G59: 0.055 | I59: 0.3760839844 | J59: =E59*H59 -> 0 | K59: 0 | M59: 0 | N59: =J59*L59 -> 0 | O59: 0.3760839844 | P59: =+J59-N59 -> 0 | Q59: 240.69375 | R59: =+J59*E$7 -> 0
C60: Tractors/Self-Propelled | D60: 76.03591067 | F60: Dollars | G60: 0.055 | I60: 4.181975087 | J60: 0 | K60: 0 | M60: 0 | N60: =J60*L60 -> 0 | O60: 4.181975087 | P60: 0 | Q60: 2676.464056 | R60: 0
C61: Implements | D61: 50.30352635 | F61: Dollars | G61: 0.055 | I61: 2.766693949 | J61: 0 | K61: 0 | M61: 0 | N61: =J61*L61 -> 0 | O61: 2.766693949 | P61: 0 | Q61: 1770.684128 | R61: 0
B62: Salaried Labor | D62: 1 | F62: Acre | G62: 0 | I62: 0 | J62: 0 | K62: 0 | M62: 0 | N62: =J62*L62 -> 0 | O62: 0 | P62: =+J62-N62 -> 0 | Q62: 0 | R62: =+J62*E$7 -> 0
B63: Management Fee, Owner/Operator Labor | D63: 1 | F63: Acre | G63: 0 | I63: 0 | J63: 0 | K63: 0 | M63: 0 | N63: 0 | O63: 0 | P63: 0 | Q63: 0 | R63: 0
B64: Allocated Establishment Cost | D64: 1 | F64: Acre | G64: 0 | I64: 0 | J64: 0 | K64: 0 | M64: 0 | N64: 0 | O64: 0 | P64: 0 | Q64: 0 | R64: 0
B65: Cash Rent - Grain Sorghum | D65: 1 | F65: Acre | G65: 30 | I65: 30 | J65: 0 | K65: 0 | M65: 0 | N65: 0 | O65: 30 | P65: 0 | Q65: 19200 | R65: 0
B66: Property Taxes | D66: 1 | F66: Acre | G66: 0 | I66: 0 | J66: 0 | K66: 0 | M66: 0 | N66: 0 | O66: 0 | P66: 0 | Q66: 0 | R66: 0
B67: Whole Farm Insurance | D67: 1 | F67: Acre | G67: 0 | I67: 0 | J67: 0 | K67: 0 | M67: 0 | N67: 0 | O67: 0 | P67: 0 | Q67: 0 | R67: 0
D68: 1 | G68: 0 | I68: 0 | J68: 0 | K68: 0 | M68: 0 | N68: 0 | O68: 0 | P68: 0 | Q68: 0 | R68: 0
D69: 1 | G69: 0 | I69: 0 | J69: =E69*H69 -> 0 | K69: 0 | M69: 0 | N69: 0 | O69: 0 | P69: 0 | Q69: 0 | R69: 0
A70: Total Fixed Costs | I70: 59.82049403 | J70: =+SUM(J55:J69) -> 0 | M70: 0 | N70: =+SUM(N55:N69) -> 0 | O70: 59.82049403 | P70: =+SUM(P55:P69) -> 0 | Q70: 38285.11618 | R70: =+SUM(R55:R69) -> 0
A71: Total Specified Costs | I71: 168.9402767 | J71: =+J49+J70 -> 0 | M71: 0 | N71: =+N49+N70 -> 0 | O71: 168.9402767 | P71: =+P49+P70 -> 0 | Q71: 108121.7771 | R71: =+R49+R70 -> 0
A73: Returns Above Specified Costs | I73: 31.05972327 | J73: =+J13-J71 -> 0 | M73: 0 | N73: =+N13-N71 -> 0 | O73: 31.05972327 | P73: =+P13-P71 -> 0 | Q73: 19878.22289 | R73: =+R13-R71 -> 0
A75: Breakeven Price to Cover Total Costs | G75: 6.757611069 | H75: =IF(E10=0,"n/a",(YTotExp-(YTotExp+YTotRet-J10))/E10) -> n/a | I75: CWT
D77: Example Breakeven Prices
B78: Example | C78: Example | D78: To Cover | G78: To Cover
B79: Yield | C79: Yield | D79: Variable | G79: Total
B80: Percent | C80: CWT | D80: Costs | G80: Costs
B81: 0.75 | C81: 18.75 | D81: 5.819721744 | G81: 9.010148092
B82: 0.9 | C82: 22.5 | D82: 4.84976812 | G82: 7.508456744
B83: 1 | C83: 25 | D83: 4.364791308 | G83: 6.757611069
B84: 1.1 | C84: 27.5 | D84: 3.967992098 | G84: 6.14328279
B85: 1.25 | C85: 31.25 | D85: 3.491833046 | G85: 5.406088855
A87: Francisco Abelló, Assistant Professor and Extension Specialist, Texas A&M AgriLife Extension, 940-647-3908
A89: Information presented is prepared solely as a general guide and not intended to recognize or predict the costs and returns from any one operation. Brand names are mentioned only as examples and imply no endorsement.

Sheet WheatDryland
A1: Projections for Planning Purposes Only -- Not to be Used without Updating
A2: 2021 Estimated Costs and Returns per Acre
A3: Dryland Wheat
A4: Enter your name for this budget in the cell above.
A5: Enter Your Values in the cells highlighed in MAROON.
E6: Your Acres | R6: Your
C7: Crop Acres | D7: 640 | L7: Your | Q7: Enterprise | R7: Enterprise
E8: Your | H8: Your | I8: Cash | J8: Your | K8: Landlord | L8: Landlord | N8: Your | P8: Your | Q8: Total | R8: Total
A9: REVENUE | D9: Quantity | E9: Quantity | F9: Units | G9: $/Unit | H9: $/Unit | I9: Total | J9: Total | K9: Share | L9: Share | M9: Landlord | N9: Landlord | O9: Tenant | P9: Tenant | Q9: (640 acres) | R9: ="(" & E7 & " acres)" -> ( acres)
B10: Wheat | D10: 30 | F10: Bushel | G10: 6 | I10: 180 | J10: =E10*H10 -> 0 | K10: 0 | M10: 0 | N10: =J10*L10 -> 0 | O10: 180 | P10: =+J10-N10 -> 0 | Q10: 115200 | R10: =+J10*E$7 -> 0
B11: Wheat Pasture | D11: 64 | F11: Pound of Gain | G11: 0.55 | I11: 35.2 | J11: 0 | K11: 0 | M11: 0 | N11: 0 | O11: 35.2 | P11: =+J11-N11 -> 0 | Q11: 22528 | R11: 0
D12: 0 | G12: 0 | I12: 0 | J12: 0 | K12: 0 | M12: 0 | N12: 0 | O12: 0 | P12: 0 | Q12: 0 | R12: 0
D13: 0 | G13: 0 | I13: 0 | J13: 0 | K13: 0 | M13: 0 | N13: 0 | O13: 0 | P13: 0 | Q13: 0 | R13: 0
A14: Total Revenue | I14: 215.2 | J14: =SUM(J10:J13) -> 0 | M14: 0 | N14: =SUM(N10:N13) -> 0 | O14: 215.2 | P14: =SUM(P10:P13) -> 0 | Q14: 137728 | R14: =SUM(R10:R13) -> 0
Q15: Enterprise | R15: Enterprise
A16: VARIABLE COSTS | D16: Quantity | E16: Quantity | F16: Units | G16: $/Unit | H16: $/Unit | I16: Total | J16: Total | K16: Share | L16: Share | M16: Landlord | N16: Landlord | O16: Tenant | P16: Tenant | Q16: Total | R16: Total
A17: Production Costs
B18: Seed
C19: Wheat Seed | D19: 70 | F19: Pound | G19: 0.15 | I19: 10.5 | J19: =E19*H19 -> 0 | K19: 0 | M19: 0 | N19: =J19*L19 -> 0 | O19: 10.5 | P19: =+J19-N19 -> 0 | Q19: 6720 | R19: =+J19*E$7 -> 0
B20: Fertilizer
C21: Fertilizer (N) | D21: 66 | F21: Pound | G21: 0.25 | I21: 16.5 | J21: 0 | K21: 0 | M21: 0 | N21: 0 | O21: 16.5 | P21: 0 | Q21: 10560 | R21: 0
C22: Fertilizer (P) | D22: 50 | F22: Pound | G22: 0.325 | I22: 16.25 | J22: 0 | K22: 0 | M22: 0 | N22: 0 | O22: 16.25 | P22: 0 | Q22: 10400 | R22: 0
B23: Custom
C24: Custom Harvest Wheat | D24: 1 | F24: Acre | G24: 24 | I24: 24 | J24: 0 | K24: 0 | M24: 0 | N24: 0 | O24: 24 | P24: 0 | Q24: 15360 | R24: 0
C25: Overage - Wheat | D25: 10 | F25: Bushel | G25: 0.24 | I25: 2.4 | J25: 0 | K25: 0 | M25: 0 | N25: 0 | O25: 2.4 | P25: 0 | Q25: 1536 | R25: 0
C26: Custom Haul Wheat | D26: 30 | F26: Bushel | G26: 0.24 | I26: 7.2 | J26: 0 | K26: 0 | M26: 0 | N26: 0 | O26: 7.2 | P26: 0 | Q26: 4608 | R26: 0
B27: Miscellaneous
C28: Insurance - Wheat | D28: 1 | F28: Acre | G28: 12 | I28: 12 | J28: 0 | K28: 0 | M28: 0 | N28: 0 | O28: 12 | P28: 0 | Q28: 7680 | R28: 0
B29: Herbicide
C30: Herbicide - Wheat | D30: 6.4 | F30: Ounce | G30: 0.171875 | I30: 1.1 | J30: 0 | K30: 0 | M30: 0 | N30: 0 | O30: 1.1 | P30: 0 | Q30: 704 | R30: 0
C31: 2,4D | D31: 1.4 | F31: Pint | G31: 2.7475 | I31: 3.8465 | J31: 0 | K31: 0 | M31: 0 | N31: 0 | O31: 3.8465 | P31: 0 | Q31: 2461.76 | R31: 0
C32: Roundup | D32: 2 | F32: Pint | G32: 1.875 | I32: 3.75 | J32: 0 | K32: 0 | M32: 0 | N32: 0 | O32: 3.75 | P32: 0 | Q32: 2400 | R32: 0
B33: Insecticide
C34: Insecticide & Application - Wheat | D34: 1 | F34: Ounce | G34: 5.5 | I34: 5.5 | J34: 0 | K34: 0 | M34: 0 | N34: 0 | O34: 5.5 | P34: 0 | Q34: 3520 | R34: 0
D35: 0 | G35: 0 | I35: 0 | J35: 0 | K35: 0 | M35: 0 | N35: 0 | O35: 0 | P35: 0 | Q35: 0 | R35: 0
D36: 0 | G36: 0 | I36: 0 | J36: 0 | K36: 0 | M36: 0 | N36: 0 | O36: 0 | P36: 0 | Q36: 0 | R36: 0
D37: 0 | G37: 0 | I37: 0 | J37: =E37*H37 -> 0 | K37: 0 | M37: 0 | N37: =J37*L37 -> 0 | O37: 0 | P37: =+J37-N37 -> 0 | Q37: 0 | R37: =+J37*E$7 -> 0
B38: Machinery Labor
C39: Tractors/Self-Propelled | D39: 0.32 | F39: Hour | G39: 14 | I39: 4.48 | J39: =E39*H39 -> 0 | K39: 0 | M39: 0 | N39: =J39*L39 -> 0 | O39: 4.48 | P39: =+J39-N39 -> 0 | Q39: 2867.2 | R39: =+J39*E$7 -> 0
C40: Other Labor | D40: 0.38 | F40: Hour | G40: 14 | I40: 5.32 | J40: =E40*H40 -> 0 | K40: 0 | M40: 0 | N40: =J40*L40 -> 0 | O40: 5.32 | P40: =+J40-N40 -> 0 | Q40: 3404.8 | R40: =+J40*E$7 -> 0
B42: Diesel Fuel
C43: Pickup/General Use Equipment | D43: 1 | F43: Acre | G43: 0 | I43: 0 | J43: =E43*H43 -> 0 | K43: 0 | M43: 0 | N43: =J43*L43 -> 0 | O43: 0 | P43: =+J43-N43 -> 0 | Q43: 0 | R43: =+J43*E$7 -> 0
C44: Tractors/Self-Propelled | D44: 1.68 | F44: Gallon | G44: 1.4 | I44: 2.352 | J44: =E44*H44 -> 0 | K44: 0 | M44: 0 | N44: =J44*L44 -> 0 | O44: 2.352 | P44: =+J44-N44 -> 0 | Q44: 1505.28 | R44: =+J44*E$7 -> 0
B46: Gasoline
C47: Pickup/General Use Equipment | D47: 1 | F47: Acre | G47: 2.109375 | I47: 2.109375 | J47: =E47*H47 -> 0 | K47: 0 | M47: 0 | N47: =J47*L47 -> 0 | O47: 2.109375 | P47: =+J47-N47 -> 0 | Q47: 1350 | R47: =+J47*E$7 -> 0
C48: Tractors/Self-Propelled | D48: 0 | F48: Gallon | G48: 2 | I48: 0 | J48: =E48*H48 -> 0 | K48: 0 | M48: 0 | N48: =J48*L48 -> 0 | O48: 0 | P48: =+J48-N48 -> 0 | Q48: 0 | R48: =+J48*E$7 -> 0
B50: Repairs & Maintenance
C51: Pickup/General Use Equipment | D51: 1 | F51: Acre | G51: 0.703125 | I51: 0.703125 | J51: =E51*H51 -> 0 | K51: 0 | M51: 0 | N51: =J51*L51 -> 0 | O51: 0.703125 | P51: =+J51-N51 -> 0 | Q51: 450 | R51: =+J51*E$7 -> 0
C52: Irrigation Equipment | D52: 1 | F52: Acre | G52: 0 | I52: 0 | J52: 0 | K52: 0 | M52: 0 | N52: 0 | O52: 0 | P52: 0 | Q52: 0 | R52: 0
C53: Tractors/Self-Propelled | D53: 1 | F53: Acre | G53: 2.79577237 | I53: 2.79577237 | J53: 0 | K53: 0 | M53: 0 | N53: 0 | O53: 2.79577237 | P53: 0 | Q53: 1789.294316 | R53: 0
C54: Implements | D54: 1 | F54: Acre | G54: 4.618283431 | I54: 4.618283431 | J54: 0 | K54: 0 | M54: 0 | N54: 0 | O54: 4.618283431 | P54: 0 | Q54: 2955.701396 | R54: 0
I55: 0 | J55: 0 | K55: 0 | M55: 0 | N55: 0 | O55: 0 | P55: 0 | Q55: 0 | R55: 0
I56: 0 | J56: 0 | K56: 0 | M56: 0 | N56: 0 | O56: 0 | P56: 0 | Q56: 0 | R56: 0
B57: Interest on Credit Line | G57: 0.065 | I57: 3.586130455 | J57: =+SUM(J18:J56)/2*H57 -> 0 | M57: 0 | N57: =+SUM(N18:N56)/2*L57 -> 0 | O57: 3.586130455 | P57: =+SUM(P18:P56)/2*L57 -> 0 | Q57: 2295.123491 | R57: =+J57*E$7 -> 0
A58: Total Variable Costs | I58: 129.0111863 | J58: =SUM(J19:J57) -> 0 | M58: 0 | N58: =SUM(N19:N57) -> 0 | O58: 129.0111863 | P58: =SUM(P19:P57) -> 0 | Q58: 82567.1592 | R58: =SUM(R19:R57) -> 0
A59: Planned Returns Above Variable Costs: | I59: 86.18881374 | J59: =+J14-J58 -> 0 | M59: 0 | N59: =+N14-N58 -> 0 | O59: 86.18881374 | P59: =+P14-P58 -> 0 | Q59: 55160.8408 | R59: =+R14-R58 -> 0
B60: Breakeven Price to Cover Variable Costs | G60: 3.127039542 | H60: =IF(E10=0,"n/a",(YVarExp-(YTotExp+YTotRet-J10))/E10) -> n/a | I60: Bushel
Q61: Enterprise | R61: Enterprise
A62: FIXED COSTS | D62: Quantity | E62: Quantity | F62: Units | G62: $/Unit | H62: $/Unit | I62: Total | J62: Total | K62: Share | L62: Share | M62: Landlord | N62: Landlord | O62: Tenant | P62: Tenant | Q62: Total | R62: Total
B63: Machinery Depreciation
C64: Pickup/General Use Equipment | D64: 1 | F64: Acre | G64: 0.976171875 | I64: 0.976171875 | J64: =E64*H64 -> 0 | K64: 0 | M64: 0 | N64: =J64*L64 -> 0 | O64: 0.976171875 | P64: =+J64-N64 -> 0 | Q64: 624.75 | R64: =+J64*E$7 -> 0
C65: Tractors/Self-Propelled | D65: 1 | F65: Acre | G65: 4.14597283 | I65: 4.14597283 | J65: 0 | K65: 0 | M65: 0 | N65: =J65*L65 -> 0 | O65: 4.14597283 | P65: 0 | Q65: 2653.422611 | R65: 0
C66: Implements | D66: 1 | F66: Acre | G66: 5.937792983 | I66: 5.937792983 | J66: 0 | K66: 0 | M66: 0 | N66: =J66*L66 -> 0 | O66: 5.937792983 | P66: 0 | Q66: 3800.187509 | R66: 0
B67: Equipment Investment
C68: Pickup/General Use Equipment | D68: 6.837890625 | F68: Dollars | G68: 0.055 | I68: 0.3760839844 | J68: =E68*H68 -> 0 | K68: 0 | M68: 0 | N68: =J68*L68 -> 0 | O68: 0.3760839844 | P68: =+J68-N68 -> 0 | Q68: 240.69375 | R68: =+J68*E$7 -> 0
C69: Tractors/Self-Propelled | D69: 31.64267373 | F69: Dollars | G69: 0.055 | I69: 1.740347055 | J69: 0 | K69: 0 | M69: 0 | N69: =J69*L69 -> 0 | O69: 1.740347055 | P69: 0 | Q69: 1113.822115 | R69: 0
C70: Implements | D70: 25.40055887 | F70: Dollars | G70: 0.055 | I70: 1.397030738 | J70: 0 | K70: 0 | M70: 0 | N70: =J70*L70 -> 0 | O70: 1.397030738 | P70: 0 | Q70: 894.0996722 | R70: 0
B71: Salaried Labor | D71: 1 | F71: Acre | G71: 0 | I71: 0 | J71: 0 | K71: 0 | M71: 0 | N71: =J71*L71 -> 0 | O71: 0 | P71: =+J71-N71 -> 0 | Q71: 0 | R71: =+J71*E$7 -> 0
B72: Management Fee, Owner/Operator Labor | D72: 1 | F72: Acre | G72: 0 | I72: 0 | J72: 0 | K72: 0 | M72: 0 | N72: 0 | O72: 0 | P72: 0 | Q72: 0 | R72: 0
B73: Allocated Establishment Cost | D73: 1 | F73: Acre | G73: 0 | I73: 0 | J73: 0 | K73: 0 | M73: 0 | N73: 0 | O73: 0 | P73: 0 | Q73: 0 | R73: 0
B74: Cash Rent - Wheat | D74: 1 | F74: Acre | G74: 30 | I74: 30 | J74: 0 | K74: 0 | M74: 0 | N74: 0 | O74: 30 | P74: 0 | Q74: 19200 | R74: 0
B75: Property Taxes | D75: 1 | F75: Acre | G75: 0 | I75: 0 | J75: 0 | K75: 0 | M75: 0 | N75: 0 | O75: 0 | P75: 0 | Q75: 0 | R75: 0
B76: Whole Farm Insurance | D76: 1 | F76: Acre | G76: 0 | I76: 0 | J76: 0 | K76: 0 | M76: 0 | N76: 0 | O76: 0 | P76: 0 | Q76: 0 | R76: 0
D77: 1 | G77: 0 | I77: 0 | J77: 0 | K77: 0 | M77: 0 | N77: 0 | O77: 0 | P77: 0 | Q77: 0 | R77: 0
D78: 1 | G78: 0 | I78: 0 | J78: =E78*H78 -> 0 | K78: 0 | M78: 0 | N78: 0 | O78: 0 | P78: 0 | Q78: 0 | R78: 0
A79: Total Fixed Costs | I79: 44.57339947 | J79: =+SUM(J64:J78) -> 0 | M79: 0 | N79: =+SUM(N64:N78) -> 0 | O79: 44.57339947 | P79: =+SUM(P64:P78) -> 0 | Q79: 28526.97566 | R79: =+SUM(R64:R78) -> 0
A80: Total Specified Costs | I80: 173.5845857 | J80: =+J58+J79 -> 0 | M80: 0 | N80: =+N58+N79 -> 0 | O80: 173.5845857 | P80: =+P58+P79 -> 0 | Q80: 111094.1349 | R80: =+R58+R79 -> 0
A82: Returns Above Specified Costs | I82: 41.61541428 | J82: =+J14-J80 -> 0 | M82: 0 | N82: =+N14-N80 -> 0 | O82: 41.61541428 | P82: =+P14-P80 -> 0 | Q82: 26633.86514 | R82: =+R14-R80 -> 0
A84: Breakeven Price to Cover Total Costs | G84: 4.612819524 | H84: =IF(E10=0,"n/a",(YTotExp-(YTotExp+YTotRet-J10))/E10) -> n/a | I84: Bushel
D86: Example Breakeven Prices
B87: Example | C87: Example | D87: To Cover | G87: To Cover
B88: Yield | C88: Yield | D88: Variable | G88: Total
B89: Percent | C89: Bushel | D89: Costs | G89: Costs
B90: 0.75 | C90: 22.5 | D90: 4.169386056 | G90: 6.150426032
B91: 0.9 | C91: 27 | D91: 3.47448838 | G91: 5.125355027
B92: 1 | C92: 30 | D92: 3.127039542 | G92: 4.612819524
B93: 1.1 | C93: 33 | D93: 2.84276322 | G93: 4.193472295
B94: 1.25 | C94: 37.5 | D94: 2.501631633 | G94: 3.690255619
A96: Francisco Abelló, Assistant Professor and Extension Specialist, Texas A&M AgriLife Extension, 940-647-3908
A98: Information presented is prepared solely as a general guide and not intended to recognize or predict the costs and returns from any one operation. Brand names are mentioned only as examples and imply no endorsement.

Sheet SmallGrain
A1: Projections for Planning Purposes Only -- Not to be Used without Updating
A2: 2021 Estimated Costs and Returns per Acre
A3: Small Grain Grazing
A4: Enter your name for this budget in the cell above.
A5: Enter Your Values in the cells highlighed in MAROON.
E6: Your Acres | R6: Your
C7: Crop Acres | D7: 640 | L7: Your | Q7: Enterprise | R7: Enterprise
E8: Your | H8: Your | I8: Cash | J8: Your | K8: Landlord | L8: Landlord | N8: Your | P8: Your | Q8: Total | R8: Total
A9: REVENUE | D9: Quantity | E9: Quantity | F9: Units | G9: $/Unit | H9: $/Unit | I9: Total | J9: Total | K9: Share | L9: Share | M9: Landlord | N9: Landlord | O9: Tenant | P9: Tenant | Q9: (640 acres) | R9: ="(" & E7 & " acres)" -> ( acres)
B10: 0 | D10: 0 | G10: 0 | I10: 0 | J10: =E10*H10 -> 0 | K10: 0 | M10: 0 | N10: =J10*L10 -> 0 | O10: 0 | P10: =+J10-N10 -> 0 | Q10: 0 | R10: =+J10*E$7 -> 0
D11: 0 | G11: 0 | I11: 0 | J11: 0 | K11: 0 | M11: 0 | N11: 0 | O11: 0 | P11: =+J11-N11 -> 0 | Q11: 0 | R11: 0
D12: 0 | G12: 0 | I12: 0 | J12: 0 | K12: 0 | M12: 0 | N12: 0 | O12: 0 | P12: 0 | Q12: 0 | R12: 0
A13: Total Revenue | I13: 0 | J13: =SUM(J10:J12) -> 0 | M13: 0 | N13: =SUM(N10:N12) -> 0 | O13: 0 | P13: =SUM(P10:P12) -> 0 | Q13: 0 | R13: =SUM(R10:R12) -> 0
Q14: Enterprise | R14: Enterprise
A15: VARIABLE COSTS | D15: Quantity | E15: Quantity | F15: Units | G15: $/Unit | H15: $/Unit | I15: Total | J15: Total | K15: Share | L15: Share | M15: Landlord | N15: Landlord | O15: Tenant | P15: Tenant | Q15: Total | R15: Total
A16: Production Costs
B17: Fertilizer
C18: Fertilizer (N) - Small Grain | D18: 50 | F18: Pound | G18: 0.25 | I18: 12.5 | J18: =E18*H18 -> 0 | K18: 0 | M18: 0 | N18: =J18*L18 -> 0 | O18: 12.5 | P18: =+J18-N18 -> 0 | Q18: 8000 | R18: =+J18*E$7 -> 0
B19: Seed
C20: Triticale | D20: 80 | F20: Pound | G20: 0.63 | I20: 50.4 | J20: 0 | K20: 0 | M20: 0 | N20: 0 | O20: 50.4 | P20: 0 | Q20: 32256 | R20: 0
B21: Herbicide
C22: Roundup | D22: 2 | F22: Pint | G22: 1.875 | I22: 3.75 | J22: 0 | K22: 0 | M22: 0 | N22: 0 | O22: 3.75 | P22: 0 | Q22: 2400 | R22: 0
C23: 2,4D | D23: 1.4 | F23: Pint | G23: 2.7475 | I23: 3.8465 | J23: 0 | K23: 0 | M23: 0 | N23: 0 | O23: 3.8465 | P23: 0 | Q23: 2461.76 | R23: 0
D24: 0 | G24: 0 | I24: 0 | J24: 0 | K24: 0 | M24: 0 | N24: 0 | O24: 0 | P24: 0 | Q24: 0 | R24: 0
D25: 0 | G25: 0 | I25: 0 | J25: 0 | K25: 0 | M25: 0 | N25: 0 | O25: 0 | P25: 0 | Q25: 0 | R25: 0
D26: 0 | G26: 0 | I26: 0 | J26: =E26*H26 -> 0 | K26: 0 | M26: 0 | N26: =J26*L26 -> 0 | O26: 0 | P26: =+J26-N26 -> 0 | Q26: 0 | R26: =+J26*E$7 -> 0
B27: Machinery Labor
C28: Tractors/Self-Propelled | D28: 0.34 | F28: Hour | G28: 14 | I28: 4.76 | J28: =E28*H28 -> 0 | K28: 0 | M28: 0 | N28: =J28*L28 -> 0 | O28: 4.76 | P28: =+J28-N28 -> 0 | Q28: 3046.4 | R28: =+J28*E$7 -> 0
C29: Other Labor | D29: 0.41 | F29: Hour | G29: 14 | I29: 5.74 | J29: =E29*H29 -> 0 | K29: 0 | M29: 0 | N29: =J29*L29 -> 0 | O29: 5.74 | P29: =+J29-N29 -> 0 | Q29: 3673.6 | R29: =+J29*E$7 -> 0
B31: Diesel Fuel
C32: Pickup/General Use Equipment | D32: 1 | F32: Acre | G32: 0 | I32: 0 | J32: =E32*H32 -> 0 | K32: 0 | M32: 0 | N32: =J32*L32 -> 0 | O32: 0 | P32: =+J32-N32 -> 0 | Q32: 0 | R32: =+J32*E$7 -> 0
C33: Tractors/Self-Propelled | D33: 2.41 | F33: Gallon | G33: 1.4 | I33: 3.374 | J33: =E33*H33 -> 0 | K33: 0 | M33: 0 | N33: =J33*L33 -> 0 | O33: 3.374 | P33: =+J33-N33 -> 0 | Q33: 2159.36 | R33: =+J33*E$7 -> 0
B35: Gasoline
C36: Pickup/General Use Equipment | D36: 1 | F36: Acre | G36: 0 | I36: 0 | J36: =E36*H36 -> 0 | K36: 0 | M36: 0 | N36: =J36*L36 -> 0 | O36: 0 | P36: =+J36-N36 -> 0 | Q36: 0 | R36: =+J36*E$7 -> 0
C37: Tractors/Self-Propelled | D37: 0 | F37: Gallon | G37: 2 | I37: 0 | J37: =E37*H37 -> 0 | K37: 0 | M37: 0 | N37: =J37*L37 -> 0 | O37: 0 | P37: =+J37-N37 -> 0 | Q37: 0 | R37: =+J37*E$7 -> 0
B39: Repairs & Maintenance
C40: Pickup/General Use Equipment | D40: 1 | F40: Acre | G40: 0 | I40: 0 | J40: =E40*H40 -> 0 | K40: 0 | M40: 0 | N40: =J40*L40 -> 0 | O40: 0 | P40: =+J40-N40 -> 0 | Q40: 0 | R40: =+J40*E$7 -> 0
C41: Irrigation Equipment | D41: 1 | F41: Acre | G41: 0 | I41: 0 | J41: 0 | K41: 0 | M41: 0 | N41: 0 | O41: 0 | P41: 0 | Q41: 0 | R41: 0
C42: Tractors/Self-Propelled | D42: 1 | F42: Acre | G42: 4.820420284 | I42: 4.820420284 | J42: 0 | K42: 0 | M42: 0 | N42: 0 | O42: 4.820420284 | P42: 0 | Q42: 3085.068982 | R42: 0
C43: Implements | D43: 1 | F43: Acre | G43: 4.523425581 | I43: 4.523425581 | J43: 0 | K43: 0 | M43: 0 | N43: 0 | O43: 4.523425581 | P43: 0 | Q43: 2894.992372 | R43: 0
I44: 0 | J44: 0 | K44: 0 | M44: 0 | N44: 0 | O44: 0 | P44: 0 | Q44: 0 | R44: 0
I45: 0 | J45: 0 | K45: 0 | M45: 0 | N45: 0 | O45: 0 | P45: 0 | Q45: 0 | R45: 0
B46: Interest on Credit Line | G46: 0.065 | I46: 0.4663755406 | J46: =+SUM(J17:J45)/2*H46 -> 0 | M46: 0 | N46: =+SUM(N17:N45)/2*L46 -> 0 | O46: 0.4663755406 | P46: =+SUM(P17:P45)/2*L46 -> 0 | Q46: 298.480346 | R46: =+J46*E$7 -> 0
A47: Total Variable Costs | I47: 94.18072141 | J47: =SUM(J18:J46) -> 0 | M47: 0 | N47: =SUM(N18:N46) -> 0 | O47: 94.18072141 | P47: =SUM(P18:P46) -> 0 | Q47: 60275.6617 | R47: =SUM(R18:R46) -> 0
A48: Planned Returns Above Variable Costs: | I48: -94.18072141 | J48: =+J13-J47 -> 0 | M48: 0 | N48: =+N13-N47 -> 0 | O48: -94.18072141 | P48: =+P13-P47 -> 0 | Q48: -60275.6617 | R48: =+R13-R47 -> 0
B49: Breakeven Price to Cover Variable Costs | G49: n/a | H49: =IF(E10=0,"n/a",(YVarExp-(YTotExp+YTotRet-J10))/E10) -> n/a
Q50: Enterprise | R50: Enterprise
A51: FIXED COSTS | D51: Quantity | E51: Quantity | F51: Units | G51: $/Unit | H51: $/Unit | I51: Total | J51: Total | K51: Share | L51: Share | M51: Landlord | N51: Landlord | O51: Tenant | P51: Tenant | Q51: Total | R51: Total
B52: Machinery Depreciation
C53: Tractors/Self-Propelled | D53: 1 | F53: Acre | G53: 5.686808367 | I53: 5.686808367 | J53: =E53*H53 -> 0 | K53: 0 | M53: 0 | N53: =J53*L53 -> 0 | O53: 5.686808367 | P53: =+J53-N53 -> 0 | Q53: 3639.557355 | R53: =+J53*E$7 -> 0
C54: Implements | D54: 1 | F54: Acre | G54: 5.607540595 | I54: 5.607540595 | J54: 0 | K54: 0 | M54: 0 | N54: =J54*L54 -> 0 | O54: 5.607540595 | P54: 0 | Q54: 3588.825981 | R54: 0
B55: Equipment Investment
C56: Tractors/Self-Propelled | D56: 43.97417562 | F56: Dollars | G56: 0.055 | I56: 2.418579659 | J56: =E56*H56 -> 0 | K56: 0 | M56: 0 | N56: =J56*L56 -> 0 | O56: 2.418579659 | P56: =+J56-N56 -> 0 | Q56: 1547.890982 | R56: =+J56*E$7 -> 0
C57: Implements | D57: 23.98781255 | F57: Dollars | G57: 0.055 | I57: 1.31932969 | J57: 0 | K57: 0 | M57: 0 | N57: =J57*L57 -> 0 | O57: 1.31932969 | P57: 0 | Q57: 844.3710016 | R57: 0
B58: Salaried Labor | D58: 1 | F58: Acre | G58: 0 | I58: 0 | J58: 0 | K58: 0 | M58: 0 | N58: =J58*L58 -> 0 | O58: 0 | P58: =+J58-N58 -> 0 | Q58: 0 | R58: =+J58*E$7 -> 0
B59: Management Fee, Owner/Operator Labor | D59: 1 | F59: Acre | G59: 0 | I59: 0 | J59: 0 | K59: 0 | M59: 0 | N59: 0 | O59: 0 | P59: 0 | Q59: 0 | R59: 0
B60: Allocated Establishment Cost | D60: 1 | F60: Acre | G60: 0 | I60: 0 | J60: 0 | K60: 0 | M60: 0 | N60: 0 | O60: 0 | P60: 0 | Q60: 0 | R60: 0
B61: Cash Rent - Small Grains | D61: 1 | F61: Acre | G61: 30 | I61: 30 | J61: 0 | K61: 0 | M61: 0 | N61: 0 | O61: 30 | P61: 0 | Q61: 19200 | R61: 0
B62: Property Taxes | D62: 1 | F62: Acre | G62: 0 | I62: 0 | J62: 0 | K62: 0 | M62: 0 | N62: 0 | O62: 0 | P62: 0 | Q62: 0 | R62: 0
B63: Whole Farm Insurance | D63: 1 | F63: Acre | G63: 0 | I63: 0 | J63: 0 | K63: 0 | M63: 0 | N63: 0 | O63: 0 | P63: 0 | Q63: 0 | R63: 0
D64: 1 | G64: 0 | I64: 0 | J64: 0 | K64: 0 | M64: 0 | N64: 0 | O64: 0 | P64: 0 | Q64: 0 | R64: 0
D65: 1 | G65: 0 | I65: 0 | J65: =E65*H65 -> 0 | K65: 0 | M65: 0 | N65: 0 | O65: 0 | P65: 0 | Q65: 0 | R65: 0
A66: Total Fixed Costs | I66: 45.03225831 | J66: =+SUM(J53:J65) -> 0 | M66: 0 | N66: =+SUM(N53:N65) -> 0 | O66: 45.03225831 | P66: =+SUM(P53:P65) -> 0 | Q66: 28820.64532 | R66: =+SUM(R53:R65) -> 0
A67: Total Specified Costs | I67: 139.2129797 | J67: =+J47+J66 -> 0 | M67: 0 | N67: =+N47+N66 -> 0 | O67: 139.2129797 | P67: =+P47+P66 -> 0 | Q67: 89096.30702 | R67: =+R47+R66 -> 0
A69: Returns Above Specified Costs | I69: -139.2129797 | J69: =+J13-J67 -> 0 | M69: 0 | N69: =+N13-N67 -> 0 | O69: -139.2129797 | P69: =+P13-P67 -> 0 | Q69: -89096.30702 | R69: =+R13-R67 -> 0
A71: Breakeven Price to Cover Total Costs | G71: n/a | H71: =IF(E10=0,"n/a",(YTotExp-(YTotExp+YTotRet-J10))/E10) -> n/a
D73: Example Breakeven Prices
B74: Example | C74: Example | D74: To Cover | G74: To Cover
B75: Yield | C75: Yield | D75: Variable | G75: Total
B76: Percent | D76: Costs | G76: Costs
B77: 0.75 | C77: 0 | D77: 0 | G77: 0
B78: 0.9 | C78: 0 | D78: 0 | G78: 0
B79: 1 | C79: 0 | D79: 0 | G79: 0
B80: 1.1 | C80: 0 | D80: 0 | G80: 0
B81: 1.25 | C81: 0 | D81: 0 | G81: 0
A83: Francisco Abelló, Assistant Professor and Extension Specialist, Texas A&M AgriLife Extension, 940-647-3908
A85: Information presented is prepared solely as a general guide and not intended to recognize or predict the costs and returns from any one operation. Brand names are mentioned only as examples and imply no endorsement.

Sheet CowCalf
A1: Projections for Planning Purposes Only -- Not to be Used without Updating
A2: 2021 Estimated Costs and Returns per Animal Unit
A3: Rolling Plains Cow-Calf Production
A4: Enter your name for this budget in the cell above.
A5: Enter Your Values in the cells highlighed in MAROON.
E6: Your Cows
B7: Animal Units (AU) | D7: 400 | F7: Animal Unit | N7: Your
B8: Breeding Females | D8: 400 | F8: Calf | G8: Your | M8: Enterprise | N8: Enterprise
E9: Your | F9: Quantity | G9: Quantity | J9: Your | L9: Your | M9: Total | N9: Total
A10: REVENUE | D10: Head | E10: Head | F10: Per Head | G10: Per Head | H10: Units | I10: $/Unit | J10: $/Unit | K10: Total | L10: Total | M10: ="(" & D7 & " AUs)" -> (400 AUs) | N10: ="(" & E7 & " AUs)" -> ( AUs)
B11: Steer | D11: 0.44 | F11: 5.56 | H11: CWT | I11: 160 | K11: 391.424 | L11: =+E11*G11*J11 -> 0 | M11: 156569.6 | N11: =+L11*E$7 -> 0
B12: Heifer | D12: 0.24 | F12: 5.14 | H12: CWT | I12: 150 | K12: 185.04 | L12: =+E12*G12*J12 -> 0 | M12: 74016 | N12: =+L12*E$7 -> 0
B13: Cull Cow | D13: 0.15 | F13: 11 | H13: CWT | I13: 55 | K13: 90.75 | L13: 0 | M13: 36300 | N13: 0
B14: Cull Bull | D14: 0.009 | F14: 16.5 | H14: CWT | I14: 60 | K14: 8.91 | L14: 0 | M14: 3564 | N14: 0
D15: 0 | F15: 0 | I15: 0 | K15: 0 | L15: 0 | M15: 0 | N15: 0
D16: 0 | F16: 0 | I16: 0 | K16: 0 | L16: 0 | M16: 0 | N16: 0
A17: Total Revenue | F17: 368 | K17: 676.124 | L17: =+SUM(L11:L16) -> 0 | M17: 270449.6 | N17: =+SUM(N11:N16) -> 0
F18: 547.85
F19: 179.85 | M19: Enterprise | N19: Enterprise
A20: VARIABLE COSTS | F20: Quantity | G20: Quantity | H20: Units | I20: $/Unit | J20: $/Unit | K20: Total | L20: Total | M20: Total | N20: Total
A21: Production Costs
B22: Miscellaneous
C23: Brush Control | F23: 1 | H23: AU | I23: 12 | K23: 12 | L23: =+J23*G23 -> 0 | M23: 4800 | N23: =+L23*E$7 -> 0
C24: Ranch Repairs | F24: 1 | H24: AU | I24: 16.25 | K24: 16.25 | L24: 0 | M24: 6500 | N24: 0
F25: 1 | I25: 0 | K25: 0 | L25: 0 | M25: 0 | N25: 0
F26: 1 | I26: 0 | K26: 0 | L26: 0 | M26: 0 | N26: 0
B27: Marketing Expense | F27: 1 | H27: AU | I27: 14.36148 | K27: 14.36148 | L27: 0 | M27: 5744.592 | N27: 0
B28: Feed
C29: Supplement | F29: 396 | H29: Pound | I29: 0.196 | K29: 77.616 | L29: =+J29*G29 -> 0 | M29: 31046.4 | N29: =+L29*E$7 -> 0
C30: Salt and Mineral | F30: 30 | H30: Pound | I30: 0.45 | K30: 13.5 | L30: 0 | M30: 5400 | N30: 0
C31: Hay | F31: 1584 | H31: Pound | I31: 0.09 | K31: 142.56 | L31: 0 | M31: 57024 | N31: 0
F32: 0 | I32: 0 | K32: 0 | L32: 0 | M32: 0 | N32: 0
F33: 0 | I33: 0 | K33: 0 | L33: 0 | M33: 0 | N33: 0
F34: 0 | I34: 0 | K34: 0 | L34: 0 | M34: 0 | N34: 0
B35: Vet. Medicine
C36: Vet/Medicine - Cow-Calf | F36: 1 | H36: Head | I36: 32 | K36: 32 | L36: =+J36*G36 -> 0 | M36: 12800 | N36: =+L36*E$7 -> 0
F37: 0 | I37: 0 | K37: 0 | L37: 0 | M37: 0 | N37: 0
F38: 0 | I38: 0 | K38: 0 | L38: 0 | M38: 0 | N38: 0
F39: 0 | I39: 0 | K39: 0 | L39: 0 | M39: 0 | N39: 0
B40: Fuel | F40: 1 | H40: AU | I40: 36.72845 | K40: 36.72845 | L40: 0 | M40: 14691.38 | N40: 0
B41: Lube (As a % of fuel) | F41: 0.1 | H41: Percent | I41: 36.72845 | K41: 3.672845 | L41: 0 | M41: 1469.138 | N41: 0
B42: Repairs | F42: 1 | H42: AU | I42: 0 | K42: 0 | L42: 0 | M42: 0 | N42: 0
B43: Labor | F43: 0.5 | H43: Hours | I43: 15 | K43: 7.5 | L43: 0 | M43: 3000 | N43: 0
B44: Utilities | F44: 1 | H44: AU | I44: 10 | K44: 10 | L44: 0 | M44: 4000 | N44: 0
K45: 0 | L45: =+J45*G45 -> 0 | M45: 0 | N45: 0
B46: Purchase Breeding Female | F46: 1 | I46: 0 | K46: 0 | L46: 0 | M46: 0 | N46: 0
B47: Purchase Breeding Male | F47: 1 | I47: 0 | K47: 0 | L47: 0 | M47: 0 | N47: 0
B48: Purchase Older Repalcement Female | F48: 1 | I48: 0 | K48: 0 | L48: 0 | M48: 0 | N48: 0
B49: Purchase Younger Repalcement Female | F49: 1 | I49: 0 | K49: 0 | L49: 0 | M49: 0 | N49: 0
B50: Interest on Credit Line | I50: 0.065 | K50: 23.11729214 | L50: =+SUM(L21:L49)/2*J50 -> 0 | M50: 9246.916857 | N50: 0
A51: Total Variable Costs | K51: 389.3060671 | L51: =+SUM(L23:L50) -> 0 | M51: 155722.4269 | N51: =+SUM(N23:N50) -> 0
A53: Planned Returns Above Variable Costs: | K53: 286.8179329 | L53: =+L17-L51 -> 0 | M53: 114727.1731 | N53: =+N17-N51 -> 0
B54: Average Calf Breakeven Price to Cover Variable Costs | I54: 78.70817042 | J54: =IF((E11*G11+E12*G12)=0,"n/a",(L51-SUM(L13:L16))/(E11*G11+E12*G12)) -> n/a | K54: CWT
M55: Enterprise | N55: Enterprise
A56: FIXED COSTS | F56: Quantity | G56: Quantity | H56: Units | I56: $/Unit | J56: $/Unit | K56: Total | L56: Total | M56: Total | N56: Total
B57: Depreciation - Equipment | F57: 1 | H57: AU | I57: 70.00716667 | K57: 70.00716667 | L57: =+G57*J57 -> 0 | M57: 28002.86667 | N57: =+L57*E$7 -> 0
B58: Depreciation - Livestock | F58: 1 | H58: AU | I58: 62.96625 | K58: 62.96625 | L58: 0 | M58: 25186.5 | N58: 0
B59: Equipment Investment | F59: 873.0425 | H59: dollars | I59: 0.055 | K59: 48.0173375 | L59: 0 | M59: 19206.935 | N59: 0
B60: Insurance | F60: 1 | H60: AU | I60: 0 | K60: 0 | L60: 0 | M60: 0 | N60: 0
B61: Management Fee, Owner/Operator Labor | F61: 1 | H61: AU | I61: 100 | K61: 100 | L61: =+J61*G61 -> 0 | M61: 40000 | N61: 0
B62: Salaried Labor | F62: 1 | H62: AU | I62: 37.5 | K62: 37.5 | L62: =+J62*G62 -> 0 | M62: 15000 | N62: 0
B63: Pasture Cost | F63: 11.25 | H63: Acres | I63: 15 | K63: 168.75 | L63: 0 | M63: 67500 | N63: 0
K64: 0 | L64: =+G64*J64 -> 0 | M64: 0 | N64: 0
K65: 0 | L65: 0 | M65: 0 | N65: 0
A66: Total Fixed Costs | K66: 487.2407542 | L66: =+SUM(L57:L63) -> 0 | M66: 194896.3017 | N66: =+SUM(N57:N63) -> 0
A67: Total Costs | K67: 876.5468213 | L67: =+L51+L66 -> 0 | M67: 350618.7285 | N67: =+N51+N66 -> 0
A68: Planned Returns to Management, Risk, and Profit: | K68: -200.4228213 | L68: =+L17-L67 -> 0 | M68: -80169.12852 | N68: =+N17-N67 -> 0
B69: Average Calf Breakeven Price to Cover Total Costs | I69: 211.1105493 | J69: =IF((E11*G11+E12*G12)=0,"n/a",(L67-SUM(L13:L16))/(E11*G11+E12*G12)) -> n/a | K69: CWT
C71: Sensitivity Analysis for Example
C72: Example Weaning Percent | D72: Example Gross Sales per Animal Unit | F72: Pounds Produced per Animal Unit | H72: Example Breakeven Calf Pay Weight to Cover Total Cost | K72: Example Average Breakeven Price to Cover Total Cost
C73: 0.94 | D73: 715.4283636 | F73: 572.9409091 | H73: 627.7782873 | K73: 197.6354078
C74: 0.91 | D74: 695.7761818 | F74: 560.3954545 | H74: 652.5590091 | K74: 204.1508608
C75: 0.88 | D75: 676.124 | F75: 547.85 | H75: 679.3765026 | K75: 211.1105493
C76: 0.85 | D76: 656.4718182 | F76: 535.3045455 | H76: 708.4926385 | K76: 218.5615098
C77: 0.82 | D77: 636.8196364 | F77: 522.7590909 | H77: 740.2161895 | K77: 226.5576626
D79: ="Example Male "&F8&" Price" -> Example Male Calf Price | K79: =+I11 -> 160
D80: ="Example Female "&F8&" Price" -> Example Female Calf Price | K80: =+I12 -> 150
D81: ="Example Weighted Average "&F8&" Price ($/cwt)" -> Example Weighted Average Calf Price ($/cwt) | K81: =+(K11+K12)/(D11*F11+D12*F12) -> 156.6478261
A83: Francisco Abelló, Assistant Professor and Extension Specialist, Texas A&M AgriLife Extension, 940-647-3908
A85: Information presented is prepared solely as a general guide and not intended to recognize or predict the costs and returns from any one operation. Brand names are mentioned only as examples and imply no endorsement.

Sheet StockersMar1
A1: Projections for Planning Purposes Only -- Not to be Used without Updating
A2: 2021 Estimated Costs and Returns per Animal
A3: Stocker Calf Budget - Pull off Wheat March 1
A4: Enter your name for this budget in the cell above.
A5: Enter Your Values in the cells highlighed in MAROON. | M5: Stocker
E6: Your Head | N6: Your
B7: Number of Head | D7: 800 | G7: Your | M7: Enterprise | N7: Enterprise
E8: Your | F8: Pay Weight | G8: Weight | J8: Your | L8: Your | M8: Total | N8: Total
A9: REVENUE | D9: Head | E9: Head | F9: or Amount | G9: or Amount | H9: Units | I9: $/Unit | J9: $/Unit | K9: Total | L9: Total | M9: ="(" & D7 & " Head)" -> (800 Head) | N9: ="(" & E7 & " Head)" -> ( Head)
B11: Stocker | D11: 0.985 | F11: 6.9 | H11: CWT | I11: 152 | K11: 1033.068 | L11: =+J11*G11*E11 -> 0 | M11: 826454.4 | N11: =+L11*E$7 -> 0
D12: 0.985 | F12: 0 | I12: 0 | K12: 0 | L12: 0 | M12: 0 | N12: 0
D13: 0.985 | F13: 0 | I13: 0 | K13: 0 | L13: 0 | M13: 0 | N13: 0
A14: Total Revenue | K14: 1033.068 | L14: =+L11 -> 0 | M14: 826454.4 | N14: 0
M15: Enterprise | N15: Enterprise
A16: VARIABLE COSTS | F16: Quantity | G16: Quantity | H16: Units | I16: $/Unit | J16: $/Unit | K16: Total | L16: Total | M16: Total | N16: Total
A17: Production Costs
B18: Stocker Purchase | F18: 4.75 | H18: CWT | I18: 160 | K18: 760 | L18: =+J18*G18 -> 0 | M18: 608000 | N18: =+L18*E$7 -> 0
B19: Stocker Delivery | F19: 1 | H19: Head | I19: 0 | K19: 0 | L19: =+J19*G19 -> 0 | M19: 0 | N19: =+L19*E$7 -> 0
B20: Grazing
C21: Acre Lease | F21: 0.00125 | H21: Acre | I21: 0 | K21: 0 | L21: 0 | M21: 0 | N21: =+L21*E$7 -> 0
C22: Grazing by Month | F22: 0 | H22: Month | I22: 0 | K22: 0 | L22: 0 | M22: 0 | N22: 0
C23: Gain Contract | F23: 207.7664975 | H23: Pounds | I23: 0.55 | K23: 114.2715736 | L23: 0 | M23: 91417.25888 | N23: 0
C24: On Weight Per Month | F24: 0 | H24: Month | I24: 0 | K24: 0 | L24: =+G24*J24*G18 -> 0 | M24: 0 | N24: 0
B25: Health
C26: Vet/Medicine - Stocker | F26: 1 | H26: Head | I26: 24 | K26: 24 | L26: =+J26*G26 -> 0 | M26: 19200 | N26: =+L26*E$7 -> 0
F27: 0 | I27: 0 | K27: 0 | L27: 0 | M27: 0 | N27: 0
F28: 0 | I28: 0 | K28: 0 | L28: 0 | M28: 0 | N28: 0
F29: 0 | I29: 0 | K29: 0 | L29: 0 | M29: 0 | N29: 0
B30: Feed
C31: Hay | F31: 125 | H31: Pound | I31: 0.09 | K31: 11.25 | L31: 0 | M31: 9000 | N31: 0
C32: Salt & Mineral - Stocker | F32: 15 | H32: Pound | I32: 0.45 | K32: 6.75 | L32: 0 | M32: 5400 | N32: 0
F33: 0 | I33: 0 | K33: 0 | L33: 0 | M33: 0 | N33: 0
F34: 0 | I34: 0 | K34: 0 | L34: 0 | M34: 0 | N34: 0
F35: 0 | I35: 0 | K35: 0 | L35: 0 | M35: 0 | N35: 0
B36: Miscellaneous
F37: 1 | I37: 0 | K37: 0 | L37: =+J37*G37 -> 0 | M37: 0 | N37: =+L37*E$7 -> 0
F38: 1 | I38: 0 | K38: 0 | L38: 0 | M38: 0 | N38: 0
B39: Fuel | F39: 1 | H39: Head | I39: 7.96375 | K39: 7.96375 | L39: 0 | M39: 6371 | N39: 0
B40: Lube (As a % of fuel) | F40: 0.1 | H40: Percent | I40: 7.96375 | K40: 0.796375 | L40: 0 | M40: 637.1 | N40: 0
B41: Utilities | F41: 1 | H41: Head | I41: 0 | K41: 0 | L41: 0 | M41: 0 | N41: 0
B42: Repairs | F42: 1 | H42: Head | I42: 0 | K42: 0 | L42: 0 | M42: 0 | N42: 0
B43: Marketing | F43: 0.985 | H43: Head | I43: 12 | K43: 11.82 | L43: 0 | M43: 9456 | N43: 0
B44: Labor | F44: 1 | H44: Head | I44: 8.415 | K44: 8.415 | L44: 0 | M44: 6732 | N44: 0
K45: 0 | L45: =+J45*G45 -> 0 | M45: 0 | N45: =+L45*E$7 -> 0
K46: 0 | L46: =+J46*G46 -> 0 | M46: 0 | N46: =+L46*E$7 -> 0
B47: Interest on Credit Line | I47: 0.065 | K47: 20.37332768 | L47: =+SUM(L18:L44)*J47/2 -> 0 | M47: 16298.66215 | N47: 0
A48: Total Variable Costs | K48: 965.6400263 | L48: =+SUM(L18:L47) -> 0 | M48: 772512.021 | N48: =+SUM(N18:N47) -> 0
A50: Planned Returns Above Variable Costs: | K50: 67.42797371 | L50: =+L14-L48 -> 0 | M50: 53942.37897 | N50: =+N14-N48 -> 0
B52: Breakeven Price to Cover Variable Costs | I52: 142.0790151 | J52: =+IF(G11=0,"n/a",(L48-SUM(L12:L13))/(G11*E11)) -> n/a | K52: CWT
M53: Enterprise | N53: Enterprise
A54: FIXED COSTS | F54: Quantity | G54: Quantity | H54: Units | I54: $/Unit | J54: $/Unit | K54: Total | L54: Total | M54: Total | N54: Total
B56: Depreciation | F56: 1 | H56: Head | I56: 12.48583333 | K56: 12.48583333 | L56: =+J56*G56 -> 0 | M56: 9988.666667 | N56: =+L56*E$7 -> 0
B57: Equipment Investment | F57: 27.215 | H57: dollars | I57: 0.055 | K57: 1.496825 | L57: 0 | M57: 1197.46 | N57: 0
B58: Salaried Labor | F58: 1 | H58: Head | I58: 0 | K58: 0 | L58: 0 | M58: 0 | N58: 0
B59: Management Fee, Owner/Operator Labor | F59: 1 | H59: Head | I59: 23.33333333 | K59: 23.33333333 | L59: 0 | M59: 18666.66667 | N59: 0
B60: Insurance | F60: 1 | H60: Head | I60: 0 | K60: 0 | L60: 0 | M60: 0 | N60: 0
K61: 0 | L61: 0 | M61: 0 | N61: 0
K62: 0 | L62: 0 | M62: 0 | N62: 0
A63: Total Fixed Costs | K63: 37.31599167 | L63: =+SUM(L56:L60) -> 0 | M63: 29852.79333 | N63: =+SUM(N56:N60) -> 0
A65: Total Costs | K65: 1002.956018 | L65: =+L48+L63 -> 0 | M65: 802364.8144 | N65: =+N48+N63 -> 0
A67: Planned Returns to Management, Risk, and Profit: | K67: 30.11198205 | L67: =+L50-L63 -> 0 | M67: 24089.58564 | N67: =+N50-N63 -> 0
A69: Breakeven Price to Cover Total Costs | I69: 147.5694869 | J69: =+IF(G11=0,"n/a",(L65-SUM(L12:L13))/(G11*E11)) -> n/a | K69: CWT
C71: Example Breakeven Sensitivity Analysis
F72: Purchase Weight (Lbs/Hd): 475 | H72: Sales Price/Cwt of $Total
F73: Sales Price/Cwt 152.00 | H73: Purchase Price/Cwt 160.00
C74: ADG (Lbs/day) | D74: Net Pay Weight with Shrink | F74: Breakeven Purchase Price ($/CWT) | H74: Breakeven Sales Price ($/CWT)
C75: 2.0465 | D75: 753.324 | F75: 186.2990894 | H75: 135.1648772
C76: 1.875958333 | D76: 730.1303333 | F76: 178.9884457 | H76: 139.4585889
C77: 1.705416667 | D77: 690 | F77: 166.3393646 | H77: 147.5694869
C78: 1.534875 | D78: 683.743 | F78: 164.3671582 | H78: 148.9199099
C79: 1.364333333 | D79: 660.5493333 | F79: 157.0565145 | H79: 154.1488892
A81: Francisco Abelló, Assistant Professor and Extension Specialist, Texas A&M AgriLife Extension, 940-647-3908
A83: Information presented is prepared solely as a general guide and not intended to recognize or predict the costs and returns from any one operation. Brand names are mentioned only as examples and imply no endorsement.

Sheet StockerGrazeOut
A1: Projections for Planning Purposes Only -- Not to be Used without Updating
A2: 2021 Estimated Costs and Returns per Animal
A3: Stocker Calf Budget - Grazeout
A4: Enter your name for this budget in the cell above.
A5: Enter Your Values in the cells highlighed in MAROON. | M5: Stocker
E6: Your Head | N6: Your
B7: Number of Head | D7: 800 | G7: Your | M7: Enterprise | N7: Enterprise
E8: Your | F8: Pay Weight | G8: Weight | J8: Your | L8: Your | M8: Total | N8: Total
A9: REVENUE | D9: Head | E9: Head | F9: or Amount | G9: or Amount | H9: Units | I9: $/Unit | J9: $/Unit | K9: Total | L9: Total | M9: ="(" & D7 & " Head)" -> (800 Head) | N9: ="(" & E7 & " Head)" -> ( Head)
B11: Stocker | D11: 0.97 | F11: 7.95 | H11: CWT | I11: 145 | K11: 1118.1675 | L11: =+J11*G11*E11 -> 0 | M11: 894534 | N11: =+L11*E$7 -> 0
D12: 0.97 | F12: 0 | I12: 0 | K12: 0 | L12: 0 | M12: 0 | N12: 0
D13: 0.97 | F13: 0 | I13: 0 | K13: 0 | L13: 0 | M13: 0 | N13: 0
A14: Total Revenue | K14: 1118.1675 | L14: =+L11 -> 0 | M14: 894534 | N14: 0
M15: Enterprise | N15: Enterprise
A16: VARIABLE COSTS | F16: Quantity | G16: Quantity | H16: Units | I16: $/Unit | J16: $/Unit | K16: Total | L16: Total | M16: Total | N16: Total
A17: Production Costs
B18: Stocker Purchase | F18: 4.75 | H18: CWT | I18: 160 | K18: 760 | L18: =+J18*G18 -> 0 | M18: 608000 | N18: =+L18*E$7 -> 0
B19: Stocker Delivery | F19: 1 | H19: Head | I19: 0 | K19: 0 | L19: =+J19*G19 -> 0 | M19: 0 | N19: =+L19*E$7 -> 0
B20: Grazing
C21: Acre Lease | F21: 0.00125 | H21: Acre | I21: 0 | K21: 0 | L21: 0 | M21: 0 | N21: =+L21*E$7 -> 0
C22: Grazing by Month | F22: 0 | H22: Month | I22: 0 | K22: 0 | L22: 0 | M22: 0 | N22: 0
C23: Gain Contract | F23: 305.3092784 | H23: Pounds | I23: 0.55 | K23: 167.9201031 | L23: 0 | M23: 134336.0825 | N23: 0
C24: On Weight Per Month | F24: 0 | H24: Month | I24: 0 | K24: 0 | L24: =+G24*J24*G18 -> 0 | M24: 0 | N24: 0
B25: Health
C26: Vet/Medicine - Stocker 1 | F26: 1 | H26: Head | I26: 12 | K26: 12 | L26: =+J26*G26 -> 0 | M26: 9600 | N26: =+L26*E$7 -> 0
C27: Vet/Medicine - Stocker 2 | F27: 0.25 | H27: Head | I27: 16.8 | K27: 4.2 | L27: 0 | M27: 3360 | N27: 0
F28: 0 | I28: 0 | K28: 0 | L28: 0 | M28: 0 | N28: 0
F29: 0 | I29: 0 | K29: 0 | L29: 0 | M29: 0 | N29: 0
F30: 0 | I30: 0 | K30: 0 | L30: 0 | M30: 0 | N30: 0
B31: Feed
C32: Hay | F32: 300 | H32: Pound | I32: 0.09 | K32: 27 | L32: 0 | M32: 21600 | N32: 0
C33: Salt & Mineral - Stocker | F33: 14 | H33: Pound | I33: 0.45 | K33: 6.3 | L33: 0 | M33: 5040 | N33: 0
F34: 0 | I34: 0 | K34: 0 | L34: 0 | M34: 0 | N34: 0
F35: 0 | I35: 0 | K35: 0 | L35: 0 | M35: 0 | N35: 0
F36: 0 | I36: 0 | K36: 0 | L36: 0 | M36: 0 | N36: 0
B37: Miscellaneous
F38: 1 | I38: 0 | K38: 0 | L38: =+J38*G38 -> 0 | M38: 0 | N38: =+L38*E$7 -> 0
F39: 1 | I39: 0 | K39: 0 | L39: 0 | M39: 0 | N39: 0
B40: Fuel | F40: 1 | H40: Head | I40: 18.425 | K40: 18.425 | L40: 0 | M40: 14740 | N40: 0
B41: Lube (As a % of fuel) | F41: 0.1 | H41: Percent | I41: 18.425 | K41: 1.8425 | L41: 0 | M41: 1474 | N41: 0
B42: Utilities | F42: 1 | H42: Head | I42: 0 | K42: 0 | L42: 0 | M42: 0 | N42: 0
B43: Repairs | F43: 1 | H43: Head | I43: 0 | K43: 0 | L43: 0 | M43: 0 | N43: 0
B44: Marketing | F44: 0.97 | H44: Head | I44: 15 | K44: 14.55 | L44: 0 | M44: 11640 | N44: 0
B45: Labor | F45: 1 | H45: Head | I45: 12.55875 | K45: 12.55875 | L45: 0 | M45: 10047 | N45: 0
K46: 0 | L46: =+J46*G46 -> 0 | M46: 0 | N46: =+L46*E$7 -> 0
K47: 0 | L47: =+J47*G47 -> 0 | M47: 0 | N47: =+L47*E$7 -> 0
B48: Interest on Credit Line | I48: 0.065 | K48: 30.04803082 | L48: =+SUM(L18:L45)*J48/2 -> 0 | M48: 24038.42466 | N48: 0
A49: Total Variable Costs | K49: 1054.844384 | L49: =+SUM(L18:L48) -> 0 | M49: 843875.5071 | N49: =+SUM(N18:N48) -> 0
A51: Planned Returns Above Variable Costs: | K51: 63.32311609 | L51: =+L14-L49 -> 0 | M51: 50658.49287 | N51: =+N14-N49 -> 0
B53: Breakeven Price to Cover Variable Costs | I53: 136.7884826 | J53: =+IF(G11=0,"n/a",(L49-SUM(L12:L13))/(G11*E11)) -> n/a | K53: CWT
M54: Enterprise | N54: Enterprise
A55: FIXED COSTS | F55: Quantity | G55: Quantity | H55: Units | I55: $/Unit | J55: $/Unit | K55: Total | L55: Total | M55: Total | N55: Total
B57: Depreciation | F57: 1 | H57: Head | I57: 12.48583333 | K57: 12.48583333 | L57: =+J57*G57 -> 0 | M57: 9988.666667 | N57: =+L57*E$7 -> 0
B58: Equipment Investment | F58: 27.215 | H58: dollars | I58: 0.055 | K58: 1.496825 | L58: 0 | M58: 1197.46 | N58: 0
B59: Salaried Labor | F59: 1 | H59: Head | I59: 0 | K59: 0 | L59: 0 | M59: 0 | N59: 0
B60: Management Fee, Owner/Operator Labor | F60: 1 | H60: Head | I60: 35 | K60: 35 | L60: 0 | M60: 28000 | N60: 0
B61: Insurance | F61: 1 | H61: Head | I61: 0 | K61: 0 | L61: 0 | M61: 0 | N61: 0
K62: 0 | L62: 0 | M62: 0 | N62: 0
K63: 0 | L63: 0 | M63: 0 | N63: 0
A64: Total Fixed Costs | K64: 48.98265833 | L64: =+SUM(L57:L61) -> 0 | M64: 39186.12667 | N64: =+SUM(N57:N61) -> 0
A66: Total Costs | K66: 1103.827042 | L66: =+L49+L64 -> 0 | M66: 883061.6338 | N66: =+N49+N64 -> 0
A68: Planned Returns to Management, Risk, and Profit: | K68: 14.34045775 | L68: =+L51-L64 -> 0 | M68: 11472.3662 | N68: =+N51-N64 -> 0
A70: Breakeven Price to Cover Total Costs | I70: 143.1403802 | J70: =+IF(G11=0,"n/a",(L66-SUM(L12:L13))/(G11*E11)) -> n/a | K70: CWT
C72: Example Breakeven Sensitivity Analysis
F73: Purchase Weight (Lbs/Hd): 475 | H73: Sales Price/Cwt of $Total
F74: Sales Price/Cwt 145.00 | H74: Purchase Price/Cwt 160.00
C75: ADG (Lbs/day) | D75: Net Pay Weight with Shrink | F75: Breakeven Purchase Price ($/CWT) | H75: Breakeven Sales Price ($/CWT)
C76: 1.963425414 | D76: 861.7948066 | F76: 182.7973375 | H76: 132.0460525
C77: 1.79980663 | D77: 829.5619061 | F77: 173.253006 | H77: 137.1767453
C78: 1.636187845 | D78: 795 | F78: 163.0190437 | H78: 143.1403802
C79: 1.472569061 | D79: 765.096105 | F79: 154.164343 | H79: 148.7350433
C80: 1.308950276 | D80: 732.8632044 | F80: 144.6200115 | H80: 155.2767305
A82: Francisco Abelló, Assistant Professor and Extension Specialist, Texas A&M AgriLife Extension, 940-647-3908
A84: Information presented is prepared solely as a general guide and not intended to recognize or predict the costs and returns from any one operation. Brand names are mentioned only as examples and imply no endorsement.

Sheet Livestock Budget
A1: Estimated Costs and Returns per Animal or Breeding Female
A3: Livestock Budget
A5: Number of Head of Livestock | D5: 0
A7: Enter Your Values in the cells highlighed in MAROON. | H7: Enterprise
A8: REVENUE | C8: Head | D8: Quantity | E8: Units | F8: $/Unit | G8: Total | H8: Total
B9: Males Sold | C9: 0 | D9: 0 | E9: CWT | F9: 0 | G9: =IF($D$5=0,0,C9/$D$5*D9*F9) -> 0 | H9: =+G9*$D$5 -> 0
B10: Females Sold | C10: 0 | D10: 0 | E10: CWT | F10: 0 | G10: =IF($D$5=0,0,C10/$D$5*D10*F10) -> 0 | H10: =+G10*$D$5 -> 0
B11: Cull Breeding Females | C11: 0 | D11: 0 | E11: CWT | F11: 0 | G11: 0 | H11: 0
B12: Cull Breeding Males | C12: 0 | D12: 0 | E12: CWT | F12: 0 | G12: 0 | H12: 0
B13: Stocker or Feed Animal | C13: 0 | D13: 0 | E13: CWT | F13: 0 | G13: 0 | H13: 0
B14: Other Revenue | C14: 0 | D14: 0 | E14: CWT | F14: 0 | G14: 0 | H14: 0
B15: Other Revenue | C15: 0 | D15: 0 | E15: CWT | F15: 0 | G15: 0 | H15: 0
B16: Other Revenue | C16: 0 | D16: 0 | E16: CWT | F16: 0 | G16: 0 | H16: 0
A18: Total Revenue | G18: =+SUM(G9:G17) -> 0 | H18: =+SUM(H9:H17) -> 0
H20: Enterprise
A21: VARIABLE COSTS | D21: Quantity | E21: Units | F21: $/Unit | G21: Total | H21: Total
A22: Production Costs
B23: Animal Purchase Price, if applicable | D23: 0 | E23: Cwt | F23: 0 | G23: =D23*F23 -> 0 | H23: =+G23*$D$5 -> 0
B24: Pasture | C24: =+SUM(G25:G28) -> 0
C25: Pasture 1 | D25: 0 | E25: Acre | F25: 0 | G25: =D25*F25 -> 0 | H25: =+G25*$D$5 -> 0
C26: Pasture 2 | D26: 0 | E26: Acre | F26: 0 | G26: 0 | H26: 0
C27: Pasture 3 | D27: 0 | E27: Acre | F27: 0 | G27: 0 | H27: 0
C28: Pasture 4 | D28: 0 | E28: Acre | F28: 0 | G28: 0 | H28: 0
B29: Feed | C29: =SUM(G30:G37) -> 0
C30: Hay | D30: 0 | E30: Bales | F30: 0 | G30: =D30*F30 -> 0 | H30: =+G30*$D$5 -> 0
C31: Supplement | D31: 0 | E31: Cwt,lb,etc | F31: 0 | G31: =D31*F31 -> 0 | H31: =+G31*$D$5 -> 0
C32: Salt Minerals | D32: 0 | E32: Cwt | F32: 0 | G32: 0 | H32: 0
C33: Other Feed | D33: 0 | E33: Cwt,lb,etc | F33: 0 | G33: 0 | H33: 0
C34: Other Feed | D34: 0 | E34: Cwt,lb,etc | F34: 0 | G34: 0 | H34: 0
C35: Other Feed | D35: 0 | E35: Cwt,lb,etc | F35: 0 | G35: 0 | H35: 0
C36: Other Feed | D36: 0 | E36: Cwt,lb,etc | F36: 0 | G36: 0 | H36: 0
C37: Other Feed | D37: 0 | E37: Cwt,lb,etc | F37: 0 | G37: 0 | H37: 0
B38: Health | C38: =SUM(G39:G48) -> 0
C39: Vet/Medicine 1 | D39: 0 | E39: Visit,dose,cc's, etc. | F39: 0 | G39: =D39*F39 -> 0 | H39: =+G39*$D$5 -> 0
C40: Vet/Medicine 2 | D40: 0 | E40: Visit,dose,cc's, etc. | F40: 0 | G40: 0 | H40: 0
C41: Vet/Medicine 3 | D41: 0 | E41: Visit,dose,cc's, etc. | F41: 0 | G41: 0 | H41: 0
C42: Vet/Medicine 4 | D42: 0 | E42: Visit,dose,cc's, etc. | F42: 0 | G42: 0 | H42: 0
C43: Vet/Medicine 5 | D43: 0 | E43: Visit,dose,cc's, etc. | F43: 0 | G43: 0 | H43: 0
C44: Vet/Medicine 6 | D44: 0 | E44: Visit,dose,cc's, etc. | F44: 0 | G44: 0 | H44: 0
C45: Vet/Medicine 7 | D45: 0 | E45: Visit,dose,cc's, etc. | F45: 0 | G45: 0 | H45: 0
C46: Vet/Medicine 8 | D46: 0 | E46: Visit,dose,cc's, etc. | F46: 0 | G46: 0 | H46: 0
C47: Vet/Medicine 9 | D47: 0 | E47: Visit,dose,cc's, etc. | F47: 0 | G47: 0 | H47: 0
C48: Vet/Medicine 10 | D48: 0 | E48: Visit,dose,cc's, etc. | F48: 0 | G48: 0 | H48: 0
B50: Fuel, Lube, Repair | D50: 1 | E50: Head | F50: 0 | G50: 0 | H50: 0
B52: Labor | D52: 0 | E52: Hours | F52: 0 | G52: 0 | H52: 0
B54: Other Variable Expense | D54: 0 | E54: Cwt,lb,etc | F54: 0 | G54: 0 | H54: 0
B55: Other Variable Expense | D55: 0 | E55: Cwt,lb,etc | F55: 0 | G55: 0 | H55: 0
B56: Other Variable Expense | D56: 0 | E56: Cwt,lb,etc | F56: 0 | G56: 0 | H56: 0
B57: Other Variable Expense | D57: 0 | E57: Cwt,lb,etc | F57: 0 | G57: 0 | H57: 0
B58: Other Variable Expense | D58: 0 | E58: Cwt,lb,etc | F58: 0 | G58: 0 | H58: 0
B59: Other Variable Expense | D59: 0 | E59: Cwt,lb,etc | F59: 0 | G59: 0 | H59: 0
B61: Operating Interest | F61: 0 | G61: =+SUM(G23:G59)/2*F61 -> 0 | H61: 0
A63: Total Variable Costs | G63: =+SUM(G23:G62) -> 0 | H63: =+SUM(H23:H62) -> 0
A65: Planned Returns Above Variable Costs | G65: =+G18-G63 -> 0 | H65: =+H18-H63 -> 0
B67: Breakeven Price to Cover Variable Costs | E67: =IF((H101/100+C13*D13)=0,0,(G63-SUM(G11:G12,G14:G16))/(H101/100+C13/D5*D13)) -> 0 | F67: =+E9 -> CWT
H69: Enterprise
A70: FIXED COSTS | D70: Quantity | E70: Units | F70: $/Unit | G70: Total | H70: Total
B71: Depreciation - Equipment | D71: 0 | E71: Head,$,etc | F71: 0 | G71: =D71*F71 -> 0 | H71: =+G71*$D$5 -> 0
B72: Depreciation - Livestock | D72: 0 | E72: Head,$,etc | F72: 0 | G72: =D72*F72 -> 0 | H72: 0
B73: Equipment Investment | D73: 0 | E73: Head,$,etc | F73: 0 | G73: 0 | H73: 0
B74: Insurance | D74: 0 | E74: Head,$,etc | F74: 0 | G74: 0 | H74: 0
B75: Management Fee | D75: 0 | E75: Head,$,etc | F75: 0 | G75: 0 | H75: 0
B76: Owner/Operator Labor | D76: 0 | E76: Head,$,etc | F76: 0 | G76: 0 | H76: 0
B77: Salaried Labor | D77: 0 | E77: Head,$,etc | F77: 0 | G77: 0 | H77: 0
B78: Other Fixed Expense | D78: 0 | E78: Head,$,etc | F78: 0 | G78: 0 | H78: 0
B79: Other Fixed Expense | D79: 0 | E79: Head,$,etc | F79: 0 | G79: 0 | H79: 0
B80: Other Fixed Expense | D80: 0 | E80: Head,$,etc | F80: 0 | G80: 0 | H80: 0
B81: Other Fixed Expense | D81: 0 | E81: Head,$,etc | F81: 0 | G81: 0 | H81: 0
B82: Other Fixed Expense | D82: 0 | E82: Head,$,etc | F82: 0 | G82: 0 | H82: 0
D84: Total Fixed Costs | G84: =+SUM(G71:G83) -> 0 | H84: =+SUM(H71:H83) -> 0
D86: Total Specified Costs | G86: =+G63+G84 -> 0 | H86: =+H63+H84 -> 0
D88: Returns Above Specifiied Costs | G88: =+G18-G86 -> 0 | H88: =+H18-H86 -> 0
B90: Breakeven Price to Cover Total Costs | E90: =IF((H101/100+C13*D13)=0,0,(G86-SUM(G11:G12,G14:G16))/(H101/100+C13/D5*D13)) -> 0 | F90: =+F67 -> CWT
B93: Sensitivity Analysis for Your Breeding Herd or Flock Values
B94: Your Weaning Percent | C94: Your Gross Sales per Head | D94: Pounds Produced per Head | E94: ="Your Breakeven Pay Weight to Cover Total Cost" -> Your Breakeven Pay Weight to Cover Total Cost | G94: Your Average Breakeven Price to Cover Total Cost
B95: =+B96-0.03 -> -0.06 | C95: =+IF($B$97=0,0,YTotRet-$G$9-$G$10+($G$9+$G$10)*B95/$B$97) -> 0 | D95: =IF($B$97=0,0,$H$101*B95/$B$97+$H$102) -> 0 | E95: =IF($C$97=0,0,(YTotExp-($G$18-$G$9-$G$10))/(YPrice/100)/(B95-$C$11/$D$5)) -> 0 | G95: =IF(D95-$H$102=0,0,(YTotExp-($G$18-$G$9-$G$10))/(D95-$H$102)*100) -> 0
B96: =+B97-0.03 -> -0.03 | C96: =+IF($B$97=0,0,YTotRet-$G$9-$G$10+($G$9+$G$10)*B96/$B$97) -> 0 | D96: =IF($B$97=0,0,$H$101*B96/$B$97+$H$102) -> 0 | E96: =IF($C$97=0,0,(YTotExp-($G$18-$G$9-$G$10))/(YPrice/100)/(B96-$C$11/$D$5)) -> 0 | G96: =IF(D96-$H$102=0,0,(YTotExp-($G$18-$G$9-$G$10))/(D96-$H$102)*100) -> 0
B97: 0 | C97: =+G18 -> 0 | D97: =H101+H102 -> 0 | E97: =IF($C$97=0,0,(YTotExp-($G$18-$G$9-$G$10))/(YPrice/100)/(B97-$C$11/$D$5)) -> 0 | G97: =IF(D97-$H$102=0,0,(YTotExp-($G$18-$G$9-$G$10))/(D97-$H$102)*100) -> 0
B98: =+B97+0.03 -> 0.03 | C98: =+IF($B$97=0,0,YTotRet-$G$9-$G$10+($G$9+$G$10)*B98/$B$97) -> 0 | D98: =IF($B$97=0,0,$H$101*B98/$B$97+$H$102) -> 0 | E98: =IF($C$97=0,0,(YTotExp-($G$18-$G$9-$G$10))/(YPrice/100)/(B98-$C$11/$D$5)) -> 0 | G98: =IF(D98-$H$102=0,0,(YTotExp-($G$18-$G$9-$G$10))/(D98-$H$102)*100) -> 0
B99: =+B98+0.03 -> 0.06 | C99: =+IF($B$97=0,0,YTotRet-$G$9-$G$10+($G$9+$G$10)*B99/$B$97) -> 0 | D99: =IF($B$97=0,0,$H$101*B99/$B$97+$H$102) -> 0 | E99: =IF($C$97=0,0,(YTotExp-($G$18-$G$9-$G$10))/(YPrice/100)/(B99-$C$11/$D$5)) -> 0 | G99: =IF(D99-$H$102=0,0,(YTotExp-($G$18-$G$9-$G$10))/(D99-$H$102)*100) -> 0
C101: Your Male Price | F101: =+F9 -> 0 | H101: =IF(D5=0,0,(C9*D9+C10*D10)*100/D5) -> 0
C102: Your Female Price | F102: =+F10 -> 0 | H102: =IF(D5=0,0,(C11*D11+C12*D12)*100/D5) -> 0
C103: Your Weighted Average Price ($/cwt) | F103: =+IF((C9*D9+C10*D10)=0,F13,(G9+G10)/((C9*D9+C10*D10)/D5)) -> 0
C105: Your Stocker or Feeder Breakeven Sensitivity Analysis
C106: Your Average Daily Gain | E106: 0 | F106: Pounds per Day
C107: =+"Your Animal"&IF(M25="Stocker"," Grazing"," Feeding")&" Days" -> Your Animal Feeding Days | E107: 0 | F107: Days
C108: Your Sale Shrink | E108: 0
C109: Average Daily Gain (Pounds/day) | D109: Net Pay Weight with Shrink (Pounds) | F109: =+"Purchase Weight (Pounds/Head): "&D23*100 -> Purchase Weight (Pounds/Head): 0 | H109: Sales Price/Cwt of $Total
F110: ="Sales Price "&IF(F13="",".00",TEXT(F13,"#.00")) -> Sales Price .00 | H110: ="Purchase Price "&IF(F23="",".00",TEXT(F23,"#.00")) -> Purchase Price .00
F111: Breakeven Purchase Price ($/CWT) | H111: Breakeven Sales Price ($/CWT)
C112: =+C114*1.2 -> 0 | D112: =+(C112*$E$107+$D$23*100)*(1-$E$108) -> 0 | F112: =IF($D$23=0,0,(((D112*$F$13/100*($C$13/$D$5))-($G$86-SUM($G$14:$G$16)-$G$23))/(100*$D$23))*100) -> 0 | H112: =IF($C$13=0,0,($G$86-SUM($G$14:$G$16))/(D112*($C$13/$D$5)*100)) -> 0
C113: =+C114*1.1 -> 0 | D113: =+(C113*$E$107+$D$23*100)*(1-$E$108) -> 0 | F113: =IF($D$23=0,0,(((D113*$F$13/100*($C$13/$D$5))-($G$86-SUM($G$14:$G$16)-$G$23))/(100*$D$23))*100) -> 0 | H113: =IF($C$13=0,0,($G$86-SUM($G$14:$G$16))/(D113*($C$13/$D$5)*100)) -> 0
C114: =+E106 -> 0 | D114: =+(C114*$E$107+$D$23*100)*(1-$E$108) -> 0 | F114: =IF($D$23=0,0,(((D114*$F$13/100*($C$13/$D$5))-($G$86-SUM($G$14:$G$16)-$G$23))/(100*$D$23))*100) -> 0 | H114: =IF($C$13=0,0,($G$86-SUM($G$14:$G$16))/(D114*($C$13/$D$5)*100)) -> 0
C115: =+C114*0.9 -> 0 | D115: =+(C115*$E$107+$D$23*100)*(1-$E$108) -> 0 | F115: =IF($D$23=0,0,(((D115*$F$13/100*($C$13/$D$5))-($G$86-SUM($G$14:$G$16)-$G$23))/(100*$D$23))*100) -> 0 | H115: =IF($C$13=0,0,($G$86-SUM($G$14:$G$16))/(D115*($C$13/$D$5)*100)) -> 0
C116: =+C114*0.8 -> 0 | D116: =+(C116*$E$107+$D$23*100)*(1-$E$108) -> 0 | F116: =IF($D$23=0,0,(((D116*$F$13/100*($C$13/$D$5))-($G$86-SUM($G$14:$G$16)-$G$23))/(100*$D$23))*100) -> 0 | H116: =IF($C$13=0,0,($G$86-SUM($G$14:$G$16))/(D116*($C$13/$D$5)*100)) -> 0

Sheet Crop Budget
A1: Estimated Costs and Returns per Acre
A3: Crop Enterprise
A5: Number of Acres of Crop | D5: 0
A7: Enter Your Values in the cells highlighed in MAROON. | G7: Enterprise
A8: REVENUE | C8: Quantity | D8: Units | E8: $/Unit | F8: Total | G8: Total
B9: Primary Product | C9: 0 | D9: Cwt,lb,etc | E9: 0 | F9: =C9*E9 -> 0 | G9: =+F9*$D$5 -> 0
B10: Secondary Product | C10: 0 | D10: Cwt,lb,etc | E10: 0 | F10: =C10*E10 -> 0 | G10: =+F10*$D$5 -> 0
B11: Secondary Product | C11: 0 | D11: Cwt,lb,etc | E11: 0 | F11: 0 | G11: 0
B12: Secondary Product | C12: 0 | D12: Cwt,lb,etc | E12: 0 | F12: 0 | G12: 0
B13: Secondary Product | C13: 0 | D13: Cwt,lb,etc | E13: 0 | F13: 0 | G13: 0
B14: Secondary Product | C14: 0 | D14: Cwt,lb,etc | E14: 0 | F14: 0 | G14: 0
B15: Secondary Product | C15: 0 | D15: Cwt,lb,etc | E15: 0 | F15: 0 | G15: 0
B16: Secondary Product | C16: 0 | D16: Cwt,lb,etc | E16: 0 | F16: 0 | G16: 0
A18: Total Revenue | F18: =+SUM(F9:F16) -> 0 | G18: =+SUM(G9:G16) -> 0
G20: Enterprise
A21: VARIABLE COSTS | C21: Quantity | D21: Units | E21: $/Unit | F21: Total | G21: Total
A23: Custom Field and Harvest Operations
B24: Custom Field Operation 1 | C24: 0 | D24: Acre | E24: 0 | F24: =C24*E24 -> 0 | G24: =+F24*$D$5 -> 0
B25: Custom Field Operation 2 | C25: 0 | D25: Acre | E25: 0 | F25: 0 | G25: 0
B26: Custom Field Operation 3 | C26: 0 | D26: Acre | E26: 0 | F26: 0 | G26: 0
B27: Custom Field Operation 4 | C27: 0 | D27: Acre | E27: 0 | F27: 0 | G27: 0
B28: Custom Field Operation 5 | C28: 0 | D28: Acre | E28: 0 | F28: 0 | G28: 0
B29: Custom Field Operation 6 | C29: 0 | D29: Acre | E29: 0 | F29: 0 | G29: 0
A30: Machinery Expenses
B31: Diesel | C31: 0 | D31: Gallon | E31: 0 | F31: =C31*E31 -> 0 | G31: 0
B32: Gasoline | C32: 0 | D32: Gallon | E32: 0 | F32: 0 | G32: 0
B33: Lube | C33: 0 | D33: Acre | E33: 0 | F33: 0 | G33: 0
B34: Repairs | C34: 0 | D34: Acre | E34: 0 | F34: 0 | G34: 0
B35: Other Machinery Expense 1 | C35: 0 | D35: Acre | E35: 0 | F35: 0 | G35: 0
B36: Other Machinery Expense 2 | C36: 0 | D36: Acre | E36: 0 | F36: 0 | G36: 0
A37: Labor
B38: Labor 1 | C38: 0 | D38: Hour | E38: 0 | F38: =C38*E38 -> 0 | G38: 0
B39: Labor 2 | C39: 0 | D39: Hour | E39: 0 | F39: 0 | G39: 0
B40: Labor 3 | C40: 0 | D40: Hour | E40: 0 | F40: 0 | G40: 0
B41: Labor 4 | C41: 0 | D41: Hour | E41: 0 | F41: 0 | G41: 0
B42: Labor 5 | C42: 0 | D42: Hour | E42: 0 | F42: 0 | G42: 0
B43: Irrigation Labor | C43: 0 | D43: Hour | E43: 0 | F43: 0 | G43: 0
A44: Seed or Transplants
B45: Seed | C45: 0 | D45: Pound | E45: 0 | F45: =C45*E45 -> 0 | G45: 0
B46: Seed Treatment | C46: 0 | D46: Pound | E46: 0 | F46: 0 | G46: 0
B47: Seed Fee | C47: 0 | D47: Pound | E47: 0 | F47: 0 | G47: 0
B48: Transplants | C48: 0 | D48: Thousand | E48: 0 | F48: 0 | G48: 0
B49: Mulch | C49: 0 | D49: Foot | E49: 0 | F49: 0 | G49: 0
B50: Other Seed or Transplant | C50: 0 | D50: Pound | E50: 0 | F50: 0 | G50: 0
A51: Fertilizer and Lime
B52: Fertlizer 1 | C52: 0 | D52: Pound | E52: 0 | F52: =C52*E52 -> 0 | G52: 0
B53: Fertlizer 2 | C53: 0 | D53: Pound | E53: 0 | F53: 0 | G53: 0
B54: Fertlizer 3 | C54: 0 | D54: Pound | E54: 0 | F54: 0 | G54: 0
B55: Fertlizer 4 | C55: 0 | D55: Pound | E55: 0 | F55: 0 | G55: 0
B56: Fertlizer 5 | C56: 0 | D56: Pound | E56: 0 | F56: 0 | G56: 0
B57: Lime | C57: 0 | D57: Ton | E57: 0 | F57: 0 | G57: 0
B58: Other Soil Amendment 1 | C58: 0 | D58: Pound | E58: 0 | F58: 0 | G58: 0
B59: Other Soil Amendment 2 | C59: 0 | D59: Pound | E59: 0 | F59: 0 | G59: 0
A60: Herbicides
B61: Herbicide 1 | C61: 0 | D61: Lb,Oz,Acre | E61: 0 | F61: =C61*E61 -> 0 | G61: 0
B62: Herbicide 2 | C62: 0 | D62: Lb,Oz,Acre | E62: 0 | F62: 0 | G62: 0
B63: Herbicide 3 | C63: 0 | D63: Lb,Oz,Acre | E63: 0 | F63: 0 | G63: 0
B64: Herbicide 4 | C64: 0 | D64: Lb,Oz,Acre | E64: 0 | F64: 0 | G64: 0
B65: Herbicide 5 | C65: 0 | D65: Lb,Oz,Acre | E65: 0 | F65: 0 | G65: 0
B66: Herbicide 6 | C66: 0 | D66: Lb,Oz,Acre | E66: 0 | F66: 0 | G66: 0
A67: Insecticides
B68: Insecticide 1 | C68: 0 | D68: Lb,Oz,Acre | E68: 0 | F68: =C68*E68 -> 0 | G68: 0
B69: Insecticide 2 | C69: 0 | D69: Lb,Oz,Acre | E69: 0 | F69: 0 | G69: 0
B70: Insecticide 3 | C70: 0 | D70: Lb,Oz,Acre | E70: 0 | F70: 0 | G70: 0
B71: Insecticide 4 | C71: 0 | D71: Lb,Oz,Acre | E71: 0 | F71: 0 | G71: 0
B72: Insecticide 5 | C72: 0 | D72: Lb,Oz,Acre | E72: 0 | F72: 0 | G72: 0
B73: Insecticide 6 | C73: 0 | D73: Lb,Oz,Acre | E73: 0 | F73: 0 | G73: 0
A74: Fungicides
B75: Fungicide 1 | C75: 0 | D75: Lb,Oz,Acre | E75: 0 | F75: =C75*E75 -> 0 | G75: 0
B76: Fungicide 2 | C76: 0 | D76: Lb,Oz,Acre | E76: 0 | F76: 0 | G76: 0
B77: Fungicide 3 | C77: 0 | D77: Lb,Oz,Acre | E77: 0 | F77: 0 | G77: 0
B78: Fungicide 4 | C78: 0 | D78: Lb,Oz,Acre | E78: 0 | F78: 0 | G78: 0
B79: Fungicide 5 | C79: 0 | D79: Lb,Oz,Acre | E79: 0 | F79: 0 | G79: 0
B80: Fungicide 6 | C80: 0 | D80: Lb,Oz,Acre | E80: 0 | F80: 0 | G80: 0
A81: Growth Regulators
B82: Growth Regulator 1 | C82: 0 | D82: Lb,Oz,Acre | E82: 0 | F82: =C82*E82 -> 0 | G82: 0
B83: Growth Regulator 2 | C83: 0 | D83: Lb,Oz,Acre | E83: 0 | F83: 0 | G83: 0
B84: Growth Regulator 3 | C84: 0 | D84: Lb,Oz,Acre | E84: 0 | F84: 0 | G84: 0
B85: Growth Regulator 4 | C85: 0 | D85: Lb,Oz,Acre | E85: 0 | F85: 0 | G85: 0
B86: Growth Regulator 5 | C86: 0 | D86: Lb,Oz,Acre | E86: 0 | F86: 0 | G86: 0
B87: Growth Regulator 6 | C87: 0 | D87: Lb,Oz,Acre | E87: 0 | F87: 0 | G87: 0
A88: Other Chemicals
B89: Fumigant | C89: 0 | D89: Lb,Oz,Acre | E89: 0 | F89: =C89*E89 -> 0 | G89: 0
B90: Other Chemical 1 | C90: 0 | D90: Lb,Oz,Acre | E90: 0 | F90: 0 | G90: =+F90*$D$5 -> 0
B91: Other Chemical 2 | C91: 0 | D91: Lb,Oz,Acre | E91: 0 | F91: 0 | G91: =+F91*$D$5 -> 0
B92: Other Chemical 3 | C92: 0 | D92: Lb,Oz,Acre | E92: 0 | F92: 0 | G92: =+F92*$D$5 -> 0
B93: Other Chemical 4 | C93: 0 | D93: Lb,Oz,Acre | E93: 0 | F93: 0 | G93: =+F93*$D$5 -> 0
B94: Other Chemical 5 | C94: 0 | D94: Lb,Oz,Acre | E94: 0 | F94: 0 | G94: =+F94*$D$5 -> 0
A95: Irrigation
B96: Well Expense | C96: 0 | D96: Acre | E96: 0 | F96: =C96*E96 -> 0 | G96: =+F96*$D$5 -> 0
B97: Pump Fuel | C97: 0 | D97: Mcf,kWh,Gallon | E97: 0 | F97: 0 | G97: 0
B98: Pump Expense | C98: 0 | D98: Acre | E98: 0 | F98: 0 | G98: 0
B99: Irrigation Equipment Expense | C99: 0 | D99: Acre | E99: 0 | F99: 0 | G99: 0
B100: Repairs | C100: 0 | D100: Acre | E100: 0 | F100: 0 | G100: 0
B101: Drip Tape | C101: 0 | D101: Foot,Acre | E101: 0 | F101: 0 | G101: 0
B102: Water Cost | C102: 0 | D102: AcIn,Gallon | E102: 0 | F102: 0 | G102: 0
B103: Other Irrigation Expense 1 | C103: 0 | D103: Acre | E103: 0 | F103: 0 | G103: 0
B104: Other Irrigation Expense 2 | C104: 0 | D104: Acre | E104: 0 | F104: 0 | G104: 0
A105: Miscellaneous Expenses
B106: Crop Insurance | C106: 0 | D106: Acre | E106: 0 | F106: =C106*E106 -> 0 | G106: 0
B107: Other Variable Expense 1 | C107: 0 | D107: Enter Unit | E107: 0 | F107: 0 | G107: 0
B108: Other Variable Expense 2 | C108: 0 | D108: Enter Unit | E108: 0 | F108: 0 | G108: 0
B109: Other Variable Expense 3 | C109: 0 | D109: Enter Unit | E109: 0 | F109: 0 | G109: 0
B110: Other Variable Expense 4 | C110: 0 | D110: Enter Unit | E110: 0 | F110: 0 | G110: 0
B111: Other Variable Expense 5 | C111: 0 | D111: Enter Unit | E111: 0 | F111: 0 | G111: 0
B112: Other Variable Expense 6 | C112: 0 | D112: Enter Unit | E112: 0 | F112: 0 | G112: 0
B113: Other Variable Expense 7 | C113: 0 | D113: Enter Unit | E113: 0 | F113: 0 | G113: 0
B114: Other Variable Expense 8 | C114: 0 | D114: Enter Unit | E114: 0 | F114: 0 | G114: 0
B116: Operating Interest | E116: 0 | F116: =+SUM(F23:F115)/2*E116 -> 0 | G116: =+F116*$D$6 -> 0
A118: Total Variable Costs | F118: =+SUM(F23:F116) -> 0 | G118: =+SUM(G23:G116) -> 0
A120: Planned Returns Above Variable Costs | F120: =+F18-F118 -> 0 | G120: =+G18-G118 -> 0
B122: Breakeven Price to Cover Variable Costs | E122: =+IF(C9=0,0,F118-SUM(F10:F16)/C9) -> 0 | F122: =+D9 -> Cwt,lb,etc
G124: Enterprise
A125: FIXED COSTS | C125: Quantity | D125: Units | E125: $/Unit | F125: Total | G125: Total
B126: Land Rent or Expense | C126: 1 | D126: Acre | E126: 0 | F126: =C126*E126 -> 0 | G126: =+F126*$D$6 -> 0
B127: Depreciation - Equipment | C127: 1 | D127: Acre | E127: 0 | F127: =C127*E127 -> 0 | G127: 0
B128: Equipment Investment | C128: 0 | D128: $ | E128: 0 | F128: 0 | G128: 0
B129: Insurance | C129: 1 | D129: Acre | E129: 0 | F129: 0 | G129: 0
B130: Management Fee | C130: 1 | D130: Acre | E130: 0 | F130: 0 | G130: 0
B131: Owner/Operator Labor | C131: 0 | D131: Acre | E131: 0 | F131: 0 | G131: 0
B132: Salaried Labor | C132: 1 | D132: Acre,$,etc | E132: 0 | F132: 0 | G132: 0
B133: Other Fixed Expense | C133: 0 | D133: Acre,$,etc | E133: 0 | F133: 0 | G133: 0
B134: Other Fixed Expense | C134: 0 | D134: Acre,$,etc | E134: 0 | F134: 0 | G134: 0
B135: Other Fixed Expense | C135: 0 | D135: Acre,$,etc | E135: 0 | F135: 0 | G135: 0
B136: Other Fixed Expense | C136: 0 | D136: Acre,$,etc | E136: 0 | F136: 0 | G136: 0
B137: Other Fixed Expense | C137: 0 | D137: Acre,$,etc | E137: 0 | F137: 0 | G137: 0
D139: Total Fixed Costs | F139: =+SUM(F126:F137) -> 0 | G139: =+SUM(G126:G137) -> 0
D141: Total Specified Costs | F141: =+F118+F139 -> 0 | G141: =+G118+G139 -> 0
D143: Returns Above Specifiied Costs | F143: =+F18-F141 -> 0 | G143: =+G18-G141 -> 0
B145: Breakeven Price to Cover Total Costs | E145: =+IF(C9=0,0,F141-SUM(F10:F16)/C9) -> 0 | F145: =+D9 -> Cwt,lb,etc
B147: Breakeven Prices for Your Crop
E148: Price To Cover | G148: Price To Cover
B149: Yield | C149: Yield | E149: Variable | G149: Total
B150: Percent | C150: =+D9 -> Cwt,lb,etc | E150: Costs | G150: Costs
B151: 0.75 | C151: =+$C$153*B151 -> 0 | E151: =+IF(C151=0,0,($F$118-SUM($F$10:$F$16))/C151) -> 0 | G151: =+IF(C151=0,0,($F$141-SUM($F$10:$F$16))/C151) -> 0
B152: 0.9 | C152: =+$C$153*B152 -> 0 | E152: =+IF(C152=0,0,($F$118-SUM($F$10:$F$16))/C152) -> 0 | G152: =+IF(C152=0,0,($F$141-SUM($F$10:$F$16))/C152) -> 0
B153: 1 | C153: =+C9 -> 0 | E153: =+IF(C153=0,0,($F$118-SUM($F$10:$F$16))/C153) -> 0 | G153: =+IF(C153=0,0,($F$141-SUM($F$10:$F$16))/C153) -> 0
B154: 1.1 | C154: 0 | E154: =+IF(C154=0,0,($F$118-SUM($F$10:$F$16))/C154) -> 0 | G154: =+IF(C154=0,0,($F$141-SUM($F$10:$F$16))/C154) -> 0
B155: 1.25 | C155: 0 | E155: =+IF(C155=0,0,($F$118-SUM($F$10:$F$16))/C155) -> 0 | G155: =+IF(C155=0,0,($F$141-SUM($F$10:$F$16))/C155) -> 0

Sheet Comparative Returns - Cash Rent
A1: Comparative Returns - Cash Rent
B3: Returns Above Total Specified Expenses | E3: Total Direct Expenses | H3: Breakeven Yield to Cover Total Costs at Price Entered
B4: Total Costs | C4: Variable Costs | E4: Total Costs | F4: Variable Costs | H4: Price | I4: Units | J4: Total Costs | K4: Variable Costs
A5: FORAGE CROPS
A7: =+AlfalfaDrylandEstablish!A3 -> Dryland Alfalfa Establishment | B7: =+AlfalfaDrylandEstablish!TotRet -> -270.8790514 | C7: =+AlfalfaDrylandEstablish!VarRet -> -217.5840764 | E7: =+AlfalfaDrylandEstablish!TotExp -> 270.8790514 | F7: =+AlfalfaDrylandEstablish!VarExp -> 217.5840764 | H7: =+AlfalfaDrylandEstablish!Price -> 0 | I7: =+AlfalfaDrylandEstablish!Unit ->  | J7: =+IF($H7=0,0,E7/$H7) -> 0 | K7: 0
A8: =+AlfalfaHayDryland!A3 -> Dryland Alfalfa Hay | B8: =+AlfalfaHayDryland!TotRet -> 387.7811569 | C8: =+AlfalfaHayDryland!VarRet -> 518.4302819 | E8: =+AlfalfaHayDryland!TotExp -> 359.7188431 | F8: =+AlfalfaHayDryland!VarExp -> 229.0697181 | H8: =+AlfalfaHayDryland!Price -> 230 | I8: =+AlfalfaHayDryland!Unit -> Ton | J8: 1.56399497 | K8: 0.9959552963
A9: =+AlfalfaIrrigatedEstablish!A3 -> Irrigated Alfalfa Establishment | B9: =+AlfalfaIrrigatedEstablish!TotRet -> -399.3069871 | C9: =+AlfalfaIrrigatedEstablish!VarRet -> -262.5745121 | E9: =+AlfalfaIrrigatedEstablish!TotExp -> 399.3069871 | F9: =+AlfalfaIrrigatedEstablish!VarExp -> 262.5745121 | H9: =+AlfalfaIrrigatedEstablish!Price -> 0 | I9: =+AlfalfaIrrigatedEstablish!Unit ->  | J9: 0 | K9: 0
A10: =+AlfalfaHayIrrigated!A3 -> Irrigated Alfalfa Hay | B10: =+AlfalfaHayIrrigated!TotRet -> 786.5431752 | C10: =+AlfalfaHayIrrigated!VarRet -> 1063.523144 | E10: =+AlfalfaHayIrrigated!TotExp -> 708.4568248 | F10: =+AlfalfaHayIrrigated!VarExp -> 431.4768561 | H10: =+AlfalfaHayIrrigated!Price -> 230 | I10: =+AlfalfaHayIrrigated!Unit -> Ton | J10: 3.080247065 | K10: 1.875986331
A11: =+SmallGrain!A3 -> Small Grain Grazing | B11: =+SmallGrain!TotRet -> -139.2129797 | C11: =+SmallGrain!VarRet -> -94.18072141 | E11: =+SmallGrain!TotExp -> 139.2129797 | F11: =+SmallGrain!VarExp -> 94.18072141 | H11: =+SmallGrain!Price -> 0 | I11: =+SmallGrain!Unit ->  | J11: 0 | K11: 0
A13: FIELD CROPS
A15: =+CottonDrylandSolid!A3 -> Dryland Cotton (Solid 40" Rows) | B15: =+CottonDrylandSolid!TotRet -> -52.8577785 | C15: =+CottonDrylandSolid!VarRet -> 19.16003223 | E15: =+CottonDrylandSolid!TotExp -> 378.4577785 | F15: =+CottonDrylandSolid!VarExp -> 306.4399678 | H15: =+CottonDrylandSolid!Price -> 0.74 | I15: =+CottonDrylandSolid!Unit -> Pound | J15: =+IF($H15=0,0,E15/$H15) -> 511.4294304 | K15: =+IF($H15=0,0,F15/$H15) -> 414.1080646
A16: ='Red Till Irrig Cotton'!A3 -> Cotton - Red Till Irrig | B16: ='Red Till Irrig Cotton'!TotRet -> 209.7123134 | C16: ='Red Till Irrig Cotton'!VarRet -> 402.7359039 | E16: ='Red Till Irrig Cotton'!TotExp -> 727.8676866 | F16: ='Red Till Irrig Cotton'!VarExp -> 534.8440961 | H16: ='Red Till Irrig Cotton'!Price -> 0.74 | I16: ='Red Till Irrig Cotton'!Unit -> Pound | J16: =IF(H16=0,0,E16/H16) -> 983.6049818 | K16: =IF(H16=0,0,F16/H16) -> 722.762292
A17: ='Conv M Irrig Cotton'!A3 -> Conventional Irrig Cotton | B17: ='Conv M Irrig Cotton'!TotRet -> 220.223246 | C17: ='Conv M Irrig Cotton'!VarRet -> 413.6118822 | E17: ='Conv M Irrig Cotton'!TotExp -> 750.656754 | F17: ='Conv M Irrig Cotton'!VarExp -> 557.2681178 | H17: ='Conv M Irrig Cotton'!Price -> 0.74 | I17: ='Conv M Irrig Cotton'!Unit -> Pound | J17: 1014.401019 | K17: 753.065024
A18: ='NT Irrig M Cotton'!A3 -> Cotton - No-Till Irrigated | B18: ='NT Irrig M Cotton'!TotRet -> 299.9549568 | C18: ='NT Irrig M Cotton'!VarRet -> 483.2777673 | E18: ='NT Irrig M Cotton'!TotExp -> 739.0050432 | F18: ='NT Irrig M Cotton'!VarExp -> 555.6822327 | H18: ='NT Irrig M Cotton'!Price -> 0.74 | I18: ='NT Irrig M Cotton'!Unit -> Pound | J18: 998.6554637 | K18: 750.921936
A19: ='NT-CC2 Irr M Cotton'!A3 -> Cotton NT - Cover Crop Wheat Irrig | B19: ='NT-CC2 Irr M Cotton'!TotRet -> 277.3602638 | C19: ='NT-CC2 Irr M Cotton'!VarRet -> 474.5577865 | E19: ='NT-CC2 Irr M Cotton'!TotExp -> 780.0997362 | F19: ='NT-CC2 Irr M Cotton'!VarExp -> 582.9022135 | H19: ='NT-CC2 Irr M Cotton'!Price -> 0.74 | I19: ='NT-CC2 Irr M Cotton'!Unit -> Pound | J19: =IF(H19=0,0,E19/H19) -> 1054.188833 | K19: =IF(H19=0,0,F19/H19) -> 787.705694
A20: ='No Till Dryland Cotton'!A3 -> Cotton - No Till Dryland | B20: ='No Till Dryland Cotton'!TotRet -> -15.05951404 | C20: ='No Till Dryland Cotton'!VarRet -> 40.96277589 | E20: ='No Till Dryland Cotton'!TotExp -> 340.659514 | F20: ='No Till Dryland Cotton'!VarExp -> 284.6372241 | H20: ='No Till Dryland Cotton'!Price -> 0.74 | I20: ='No Till Dryland Cotton'!Unit -> Pound | J20: 460.3506946 | K20: 384.6448974
A21: =+Peanuts!A3 -> Irrigated Peanuts | B21: =+Peanuts!TotRet -> 18.2289534 | C21: =+Peanuts!VarRet -> 364.3284132 | E21: =+Peanuts!TotExp -> 921.7710466 | F21: =+Peanuts!VarExp -> 575.6715868 | H21: =+Peanuts!Price -> 470 | I21: =+Peanuts!Unit -> Ton | J21: 1.961214993 | K21: 1.224833163
A22: =+SorghumDryland!A3 -> Dryland Sorghum | B22: =+SorghumDryland!TotRet -> 31.05972327 | C22: =+SorghumDryland!VarRet -> 90.8802173 | E22: =+SorghumDryland!TotExp -> 168.9402767 | F22: =+SorghumDryland!VarExp -> 109.1197827 | H22: =+SorghumDryland!Price -> 8 | I22: =+SorghumDryland!Unit -> CWT | J22: =+IF($H22=0,0,E22/$H22) -> 21.11753459 | K22: 13.63997284
A23: =+WheatDryland!A3 -> Dryland Wheat | B23: =+WheatDryland!TotRet -> 41.61541428 | C23: =+WheatDryland!VarRet -> 86.18881374 | E23: =+WheatDryland!TotExp -> 173.5845857 | F23: =+WheatDryland!VarExp -> 129.0111863 | H23: =+WheatDryland!Price -> 6 | I23: =+WheatDryland!Unit -> Bushel | J23: 28.93076429 | K23: 21.50186438
A25: LIVESTOCK
A27: =+CowCalf!A3 -> Rolling Plains Cow-Calf Production | B27: =+CowCalf!TotRet -> -200.4228213 | C27: =+CowCalf!VarRet -> 286.8179329 | E27: =+CowCalf!TotExp -> 876.5468213 | F27: =+CowCalf!VarExp -> 389.3060671 | H27: =+CowCalf!Price -> 156.6478261 | I27: =+CowCalf!Unit -> CWT | J27: =+IF($H27=0,0,E27/$H27) -> 5.595652638 | K27: 2.485231215
A28: =+StockersMar1!A3 -> Stocker Calf Budget - Pull off Wheat March 1 | B28: =+StockersMar1!TotRet -> 30.11198205 | C28: =+StockersMar1!VarRet -> 67.42797371 | E28: =+StockersMar1!TotExp -> 1002.956018 | F28: =+StockersMar1!VarExp -> 965.6400263 | H28: =+StockersMar1!Price -> 152 | I28: =+StockersMar1!Unit -> CWT | J28: 6.598394855 | K28: 6.35289491
A29: =+StockerGrazeOut!A3 -> Stocker Calf Budget - Grazeout | B29: =+StockerGrazeOut!TotRet -> 14.34045775 | C29: =+StockerGrazeOut!VarRet -> 63.32311609 | E29: =+StockerGrazeOut!TotExp -> 1103.827042 | F29: =+StockerGrazeOut!VarExp -> 1054.844384 | H29: =+StockerGrazeOut!Price -> 145 | I29: =+StockerGrazeOut!Unit -> CWT | J29: =+IF($H29=0,0,E29/$H29) -> 7.612600291 | K29: =+IF($H29=0,0,F29/$H29) -> 7.274788855

Sheet Your Returns - Cash Rent
A1: Your Returns - Cash Rent
B3: Quantity | C3: Returns Above Total Specified Expenses | F3: Total Direct Expenses | I3: Breakeven Yield to Cover Total Costs at Price Entered
B4: Acres, AUs, or Head | C4: Total Costs | D4: Variable Costs | F4: Total Costs | G4: Variable Costs | I4: Price | J4: Units | K4: Total Costs | L4: Variable Costs
A5: FORAGE CROPS
A7: =+AlfalfaDrylandEstablish!A3 -> Dryland Alfalfa Establishment | B7: =+AlfalfaDrylandEstablish!E7 -> 0 | C7: =+AlfalfaDrylandEstablish!YTotRet -> 0 | D7: =+AlfalfaDrylandEstablish!YVarRet -> 0 | F7: =+AlfalfaDrylandEstablish!YTotExp -> 0 | G7: =+AlfalfaDrylandEstablish!YVarExp -> 0 | I7: =+AlfalfaDrylandEstablish!YPrice -> 0 | J7: =+AlfalfaDrylandEstablish!Unit ->  | K7: =+IF($I7=0,0,F7/$I7) -> 0 | L7: 0
A8: =+AlfalfaHayDryland!A3 -> Dryland Alfalfa Hay | B8: =+AlfalfaHayDryland!E7 -> 0 | C8: =+AlfalfaHayDryland!YTotRet -> 0 | D8: =+AlfalfaHayDryland!YVarRet -> 0 | F8: =+AlfalfaHayDryland!YTotExp -> 0 | G8: =+AlfalfaHayDryland!YVarExp -> 0 | I8: =+AlfalfaHayDryland!YPrice -> 0 | J8: =+AlfalfaHayDryland!Unit -> Ton | K8: 0 | L8: 0
A9: =+AlfalfaIrrigatedEstablish!A3 -> Irrigated Alfalfa Establishment | B9: =+AlfalfaIrrigatedEstablish!E7 -> 0 | C9: =+AlfalfaIrrigatedEstablish!YTotRet -> 0 | D9: =+AlfalfaIrrigatedEstablish!YVarRet -> 0 | F9: =+AlfalfaIrrigatedEstablish!YTotExp -> 0 | G9: =+AlfalfaIrrigatedEstablish!YVarExp -> 0 | I9: =+AlfalfaIrrigatedEstablish!YPrice -> 0 | J9: =+AlfalfaIrrigatedEstablish!Unit ->  | K9: 0 | L9: 0
A10: =+AlfalfaHayIrrigated!A3 -> Irrigated Alfalfa Hay | B10: =+AlfalfaHayIrrigated!E7 -> 0 | C10: =+AlfalfaHayIrrigated!YTotRet -> 0 | D10: =+AlfalfaHayIrrigated!YVarRet -> 0 | F10: =+AlfalfaHayIrrigated!YTotExp -> 0 | G10: =+AlfalfaHayIrrigated!YVarExp -> 0 | I10: =+AlfalfaHayIrrigated!YPrice -> 0 | J10: =+AlfalfaHayIrrigated!Unit -> Ton | K10: 0 | L10: 0
A11: =+SmallGrain!A3 -> Small Grain Grazing | B11: =+SmallGrain!E7 -> 0 | C11: =+SmallGrain!YTotRet -> 0 | D11: =+SmallGrain!YVarRet -> 0 | F11: =+SmallGrain!YTotExp -> 0 | G11: =+SmallGrain!YVarExp -> 0 | I11: =+SmallGrain!YPrice -> 0 | J11: =+SmallGrain!Unit ->  | K11: 0 | L11: 0
A13: FIELD CROPS
A15: =+CottonDrylandSolid!A3 -> Dryland Cotton (Solid 40" Rows) | B15: =+CottonDrylandSolid!E7 -> 0 | C15: =+CottonDrylandSolid!YTotRet -> 0 | D15: =+CottonDrylandSolid!YVarRet -> 0 | F15: =+CottonDrylandSolid!YTotExp -> 0 | G15: =+CottonDrylandSolid!YVarExp -> 0 | I15: =+CottonDrylandSolid!YPrice -> 0 | J15: =+CottonDrylandSolid!Unit -> Pound | K15: =+IF($I15=0,0,F15/$I15) -> 0 | L15: =+IF($I15=0,0,G15/$I15) -> 0
A16: ='Red Till Irrig Cotton'!A3 -> Cotton - Red Till Irrig | B16: ='Red Till Irrig Cotton'!E7 -> 0 | C16: ='Red Till Irrig Cotton'!YTotRet -> 0 | D16: ='Red Till Irrig Cotton'!YVarRet -> 0 | F16: ='Red Till Irrig Cotton'!YTotExp -> 0 | G16: ='Red Till Irrig Cotton'!YVarExp -> 0 | I16: ='Red Till Irrig Cotton'!YPrice -> 0 | J16: ='Red Till Irrig Cotton'!Unit -> Pound | K16: =IF(I16=0,0,F16/I16) -> 0 | L16: =IF(I16=0,0,G16/I16) -> 0
A17: ='Conv M Irrig Cotton'!A3 -> Conventional Irrig Cotton | B17: ='Conv M Irrig Cotton'!E7 -> 0 | C17: ='Conv M Irrig Cotton'!YTotRet -> 0 | D17: ='Conv M Irrig Cotton'!YVarRet -> 0 | F17: ='Conv M Irrig Cotton'!YTotExp -> 0 | G17: ='Conv M Irrig Cotton'!YVarExp -> 0 | I17: ='Conv M Irrig Cotton'!YPrice -> 0 | J17: ='Conv M Irrig Cotton'!Unit -> Pound | K17: 0 | L17: 0
A18: ='NT Irrig M Cotton'!A3 -> Cotton - No-Till Irrigated | B18: ='NT Irrig M Cotton'!E7 -> 0 | C18: ='NT Irrig M Cotton'!YTotRet -> 0 | D18: ='NT Irrig M Cotton'!YVarRet -> 0 | F18: ='NT Irrig M Cotton'!YTotExp -> 0 | G18: ='NT Irrig M Cotton'!YVarExp -> 0 | I18: ='NT Irrig M Cotton'!YPrice -> 0 | J18: ='NT Irrig M Cotton'!Unit -> Pound | K18: 0 | L18: 0
A19: ='NT-CC2 Irr M Cotton'!A3 -> Cotton NT - Cover Crop Wheat Irrig | B19: ='NT-CC2 Irr M Cotton'!E7 -> 0 | C19: ='NT-CC2 Irr M Cotton'!YTotRet -> 0 | D19: ='NT-CC2 Irr M Cotton'!YVarRet -> 0 | F19: ='NT-CC2 Irr M Cotton'!YTotExp -> 0 | G19: ='NT-CC2 Irr M Cotton'!YVarExp -> 0 | I19: ='NT-CC2 Irr M Cotton'!YPrice -> 0 | J19: ='NT-CC2 Irr M Cotton'!Unit -> Pound | K19: =IF(I19=0,0,F19/I19) -> 0 | L19: =IF(I19=0,0,G19/I19) -> 0
A20: ='No Till Dryland Cotton'!A3 -> Cotton - No Till Dryland | B20: ='No Till Dryland Cotton'!E7 -> 0 | C20: ='No Till Dryland Cotton'!YTotRet -> 0 | D20: ='No Till Dryland Cotton'!YVarRet -> 0 | F20: ='No Till Dryland Cotton'!YTotExp -> 0 | G20: ='No Till Dryland Cotton'!YVarExp -> 0 | I20: ='No Till Dryland Cotton'!YPrice -> 0 | J20: ='No Till Dryland Cotton'!Unit -> Pound | K20: 0 | L20: 0
A21: =+Peanuts!A3 -> Irrigated Peanuts | B21: =+Peanuts!E7 -> 0 | C21: =+Peanuts!YTotRet -> 0 | D21: =+Peanuts!YVarRet -> 0 | F21: =+Peanuts!YTotExp -> 0 | G21: =+Peanuts!YVarExp -> 0 | I21: =+Peanuts!YPrice -> 0 | J21: =+Peanuts!Unit -> Ton | K21: 0 | L21: 0
A22: =+SorghumDryland!A3 -> Dryland Sorghum | B22: =+SorghumDryland!E7 -> 0 | C22: =+SorghumDryland!YTotRet -> 0 | D22: =+SorghumDryland!YVarRet -> 0 | F22: =+SorghumDryland!YTotExp -> 0 | G22: =+SorghumDryland!YVarExp -> 0 | I22: =+SorghumDryland!YPrice -> 0 | J22: =+SorghumDryland!Unit -> CWT | K22: =+IF($I22=0,0,F22/$I22) -> 0 | L22: 0
A23: =+WheatDryland!A3 -> Dryland Wheat | B23: =+WheatDryland!E7 -> 0 | C23: =+WheatDryland!YTotRet -> 0 | D23: =+WheatDryland!YVarRet -> 0 | F23: =+WheatDryland!YTotExp -> 0 | G23: =+WheatDryland!YVarExp -> 0 | I23: =+WheatDryland!YPrice -> 0 | J23: =+WheatDryland!Unit -> Bushel | K23: 0 | L23: 0
A25: LIVESTOCK
A27: =+CowCalf!A3 -> Rolling Plains Cow-Calf Production | B27: =+CowCalf!E7 -> 0 | C27: =+CowCalf!YTotRet -> 0 | D27: =+CowCalf!YVarRet -> 0 | F27: =+CowCalf!YTotExp -> 0 | G27: =+CowCalf!YVarExp -> 0 | I27: =+CowCalf!YPrice ->  | J27: =+CowCalf!Unit -> CWT | K27: =+IF($I27=0,0,F27/$I27) -> 
A28: =+StockersMar1!A3 -> Stocker Calf Budget - Pull off Wheat March 1 | B28: =+StockersMar1!E7 -> 0 | C28: =+StockersMar1!YTotRet -> 0 | D28: =+StockersMar1!YVarRet -> 0 | F28: =+StockersMar1!YTotExp -> 0 | G28: =+StockersMar1!YVarExp -> 0 | I28: =+StockersMar1!YPrice -> 0 | J28: =+StockersMar1!Unit -> CWT | K28: 0 | L28: 0
A29: =+StockerGrazeOut!A3 -> Stocker Calf Budget - Grazeout | B29: =+StockerGrazeOut!E7 -> 0 | C29: =+StockerGrazeOut!YTotRet -> 0 | D29: =+StockerGrazeOut!YVarRet -> 0 | F29: =+StockerGrazeOut!YTotExp -> 0 | G29: =+StockerGrazeOut!YVarExp -> 0 | I29: =+StockerGrazeOut!YPrice -> 0 | J29: =+StockerGrazeOut!Unit -> CWT | K29: =+IF($I29=0,0,F29/$I29) -> 0 | L29: =+IF($I29=0,0,G29/$I29) -> 0
A31: OTHER BUDGETS
A33: =+'Livestock Budget'!A3 -> Livestock Budget | B33: =+'Livestock Budget'!D5 -> 0 | C33: =+'Livestock Budget'!YTotRet -> 0 | D33: =+'Livestock Budget'!YVarRet -> 0 | F33: =+'Livestock Budget'!YTotExp -> 0 | G33: =+'Livestock Budget'!YVarExp -> 0 | I33: =+'Livestock Budget'!YPrice -> 0 | J33: =+'Livestock Budget'!Unit -> CWT | K33: =+IF($I33=0,0,F33/$I33) -> 0 | L33: =+IF($I33=0,0,G33/$I33) -> 0
A34: =+'Crop Budget'!A3 -> Crop Enterprise | B34: =+'Crop Budget'!D5 -> 0 | C34: =+'Crop Budget'!YTotRet -> 0 | D34: =+'Crop Budget'!YVarRet -> 0 | F34: =+'Crop Budget'!YTotExp -> 0 | G34: =+'Crop Budget'!YVarExp -> 0 | I34: =+'Crop Budget'!YPrice -> 0 | J34: =+'Crop Budget'!Unit -> Cwt,lb,etc | K34: =+IF($I34=0,0,F34/$I34) -> 0 | L34: =+IF($I34=0,0,G34/$I34) -> 0
